Workbook

Sheet 4（1） (hidden)
A1: 綦江区政府性基金预算2024年收支预算草案表（表四）
A2: 制表：綦江区财政局 | U2: 单位：万元
A3: 收入及财力 | I3: 支出 | V3: 备注
A4: 项目名称 | B4: 2023年决算数 | C4: 2023年预算数 | E4: 2023年预算调整 | F4: 2024年全口径 | G4: 2024年编入年初预算 | I4: 项目名称 | J4: 2022年决算数 | K4: 2023年预算数 | M4: 2023年预算调整 | N4: 2022年预算调整草案 | Q4: 2024年全口径 | U4: 2024年编入预算
C5: 全口径 | D5: 编入年初 | K5: 全口径 | L5: 编入年初 | N5: 编入部门 | O5: 财政直编 | P5: 比预算±额 | Q5: 小计 | R5: 本级资金 | S5: 上级资金 | T5: 比上年±
A6: 一、基金预算收入 | B6: =B7+B21+B22+B25 -> 249,279 | C6: 259,061 | D6: 259,061 | E6: 259,061 | F6: 0 | G6: 0 | I6: 支出合计 | J6: =J7+J8 -> 0 | K6: 247,795 | L6: 247,795 | M6: 247,795 | N6: =N7+N8 -> 0 | O6: 0 | P6: 0 | Q6: 0 | R6: 0 | S6: 0 | T6: =Q6-M6 -> -247,795 | U6: =U7+U8 -> 0
A7: （一）土地出让收入 | B7: 229,854 | C7: 231,625 | D7: 231,625 | E7: 231,625 | F7: =F9+F11+F13+F15+F17+F19 -> 0 | G7: =G9+G11+G13+G15+G17+G19 -> 0 | I7: 一、街镇级体制结算 | K7: 6,406 | L7: 6,406 | M7: 6,406 | Q7: =R7+S7 -> 0 | T7: -6,406
A8: 其中划拨用地 | B8: =B10+B12+B14+B16+B18+B20 -> 0 | C8: 46,537 | D8: 46,537 | E8: 46,537 | F8: =F10+F12+F14+F16+F18+F20 -> 0 | G8: =G10+G12+G14+G16+G18+G20 -> 0 | I8: 二、区级预算支出 | J8: =J9+J19 -> 0 | K8: =K9+K19+K33 -> 241,389 | L8: =L9+L19+L33 -> 241,389 | M8: =M9+M19+M33 -> 241,389 | N8: =N9+N19 -> 0 | O8: 0 | P8: 0 | Q8: =Q9+Q19+Q33 -> 0 | R8: 0 | S8: 0 | T8: -241,389 | U8: =U9+U19 -> 0
A9: 渝南系 | C9: 25,657 | D9: 25,657 | E9: 25,657 | I9: （一）以收定支项目支出 | J9: =J10+J13+J16 -> 0 | K9: 19,376 | L9: 19,376 | M9: =M10+M13+M16 -> 19,376 | N9: =N10+N13+N16 -> 0 | O9: 0 | P9: 0 | Q9: 0 | R9: 0 | S9: 0 | T9: -19,376 | U9: =U10+U13+U16 -> 0
A10: 其中划拨用地 | C10: 6,749 | D10: 6,749 | E10: 6,749 | I10: 1.建设项目 | J10: =SUM(J11:J12) -> 0 | K10: 5,212 | L10: 2,512 | M10: =SUM(M11:M12) -> 4,612 | N10: =SUM(N11:N12) -> 0 | O10: =SUM(O11:O12) -> 0 | P10: =SUM(P11:P12) -> 0 | Q10: =R10+S10 -> 0 | R10: =R11+R12 -> 0 | S10: =S11+S12 -> 0 | T10: -4,612 | U10: 0
A11: 城投系 | C11: 84,160 | D11: 84,160 | E11: 84,160 | I11: 文体、社保 | K11: 1,260 | L11: 1,260 | M11: 1,260 | Q11: =R11+S11 -> 0 | T11: -1,260
A12: 其中划拨用地 | C12: 16,711 | D12: 16,711 | E12: 16,711 | I12: 交通、市政、城建等 | K12: 3,352 | L12: 3,352 | M12: 3,352 | Q12: 0 | T12: -3,352
A13: 旅投系 | C13: 16,115 | D13: 16,115 | E13: 16,115 | I13: 2.专项业务 | J13: =SUM(J14:J15) -> 0 | K13: 14,710 | L13: 14,710 | M13: =SUM(M14:M15) -> 14,710 | N13: =SUM(N14:N15) -> 0 | O13: =SUM(O14:O15) -> 0 | P13: =SUM(P14:P15) -> 0 | Q13: 0 | R13: =R14+R15 -> 0 | S13: 0 | T13: -14,710 | U13: 0
A14: 其中划拨用地 | C14: 11,425 | D14: 11,425 | E14: 11,425 | I14: 文体、社保 | K14: 1,395 | L14: 1,395 | M14: 1,395 | Q14: 0 | T14: -1,395
A15: 交通系 | C15: 24,057 | D15: 24,057 | E15: 24,057 | I15: 交通、市政、城建等 | K15: 13,315 | L15: 13,315 | M15: 13,315 | Q15: 0 | T15: -13,315
A16: 其中划拨用地 | I16: 3.事务活动 | J16: =SUM(J17:J18) -> 0 | K16: =K17 -> 54 | L16: =L17 -> 54 | M16: =SUM(M17:M18) -> 54 | N16: =SUM(N17:N18) -> 0 | O16: =SUM(O17:O18) -> 0 | P16: =SUM(P17:P18) -> 0 | Q16: 0 | R16: =R17+R18 -> 0 | S16: =S17+S18 -> 0 | T16: -54 | U16: =SUM(U17:U18) -> 0
A17: 街镇 | C17: 1,551 | D17: 1,551 | E17: 1,551 | I17: 文体、社保 | K17: 54 | L17: 54 | M17: 54 | Q17: 0 | T17: -54
A18: 其中划拨用地 | C18: 837 | D18: 837 | E18: 837 | I18: 交通、市政、城建等 | K18: 0 | M18: =N18+O18 -> 0 | Q18: 0 | T18: 0
A19: 其他 | C19: 178,460 | D19: 178,460 | E19: 178,460 | I19: （二）执行中分配预算 | J19: =J20+J21+J22+J23+J32+J31 -> 0 | K19: =K20+K21+K22+K23+K32+K31+K30 -> 214,709 | L19: =L20+L21+L22+L23+L32+L31+L30 -> 214,709 | M19: =M20+M21+M22+M23+M32+M31+M30 -> 214,709 | N19: =N20+N21+N22+N23+N32+N31 -> 0 | O19: =O20+O21+O22+O23+O32+O31 -> 0 | P19: =P20+P21+P22+P23+P32+P31 -> 0 | Q19: =Q20+Q21+Q22+Q23+Q32+Q31+Q30 -> 0 | R19: 0 | S19: 0 | T19: -214,709 | U19: =U20+U21+U22+U23+U32+U33+U31+U30 -> 0
A20: 其中划拨用地 | C20: 168,503 | D20: 168,503 | E20: 168,503 | I20: 1.政府债券利息 | K20: 44,100 | L20: 44,100 | M20: 44,100 | Q20: 0 | T20: -44,100
A21: （三）污水处理费收入 | B21: 1,257 | C21: 600 | D21: 600 | E21: 600 | I21: 2.专项债券 | K21: 0 | M21: =N21+O21 -> 0 | Q21: 0 | T21: 0
A22: （四）城市建设配套费 | B22: =SUM(B23:B24) -> 18,168 | C22: 10,000 | D22: 10,000 | E22: 10,000 | I22: 其中：新增 | K22: 0 | Q22: 0 | T22: 0
A23: 园城范围内配套费 | I23: 3.园城公司结算 | J23: =SUM(J24:J30) -> 0 | K23: -0 | L23: -0 | M23: =SUM(M24:M29) -> -0 | N23: =SUM(N24:N31) -> 0 | O23: =SUM(O24:O31) -> 0 | P23: =SUM(P24:P31) -> 0 | Q23: =SUM(Q24:Q29) -> 0 | R23: =SUM(R24:R29) -> 0 | S23: =SUM(S24:S29) -> 0 | T23: 0 | U23: 0
A24: 区本级其他 | B24: 18,168 | C24: 10,000 | D24: 10,000 | E24: 10,000 | I24: 工业园区管委会出让金 | K24: 26,100 | L24: 26,100 | M24: 26,100 | Q24: 0 | T24: -26,100
A25: 二、专项债收益 | C25: 16,836 | D25: 16,836 | E25: 16,836 | I25: 东部新城管委会出让金 | K25: 95,880 | L25: 95,880 | M25: 95,880 | Q25: 0 | T25: -95,880
A26: 三、上级补助 | B26: 9,424 | C26: 4,200 | D26: 4,200 | E26: 4,200 | I26: 旅游开发管委会出让金 | K26: 7,082 | L26: 7,082 | M26: 7,082 | Q26: 0 | T26: -7,082
A27: 四、债券转贷收入 | B27: 166,600 | C27: 166,600 | D27: 166,600 | E27: 166,600 | I27: 国有公司配套费（总） | K27: 11,000 | L27: 11,000 | M27: 11,000 | Q27: 0 | T27: -11,000
A28: 五、债务还本 | B28: -16,600 | C28: -16,600 | D28: -16,600 | E28: -16,600 | I28: 交通实业出让金 | K28: 30,312 | L28: 30,312 | M28: 30,312 | Q28: 0 | T28: -30,312 | X28: =R31+R7+#REF! -> 
A29: 六、上年结余 | B29: 11,499 | C29: 8,174 | D29: 8,174 | E29: 8,174 | I29: 其他结算 | K29: -170,374 | L29: -170,374 | M29: -170,374 | Q29: 0 | T29: 170,374
A30: 七、上解支出 | B30: -11,668 | C30: -17,015 | D30: -17,015 | E30: -17,015 | I30: 4.街镇结算 | K30: 2,084 | L30: 2,084 | M30: 2,084 | Q30: =R30 -> 0 | T30: -2,084
A31: 八、调出资金 | B31: -198,000 | C31: -105,000 | D31: -105,000 | E31: -105,000 | I31: 5.债务风险化解 | K31: 98,525 | L31: 98,525 | M31: 98,525 | Q31: 0 | T31: -98,525
A32: 九、政府性基金财力 | B32: =B6+B26+B27+B28+B29+B30+B31 -> 210,534 | C32: 299,420 | D32: 299,420 | E32: 299,420 | F32: 0 | G32: 0 | I32: 6.应急等风险防控支出 | K32: 70,000 | L32: 70,000 | M32: 70,000 | Q32: 0 | T32: -70,000
A33: （一）区本级财力 | B33: =B32-B34 -> 202,679 | C33: 54,498 | D33: 51,799 | E33: =E32-E34 -> 293,075 | F33: =F32-F34 -> -6,406 | G33: =G32-G34 -> -6,406 | I33: （三）上年结转定向支出 | K33: 7,304 | L33: 7,304 | M33: 7,304 | Q33: 0 | T33: -7,304
A34: （二）街镇级财力 | B34: 7,855 | C34: 6,345 | D34: 6,345 | E34: 6,345 | F34: =5206+1200 -> 6,406 | G34: 6,406 | I34: 三、本级预算平衡 | J34: =B33-J8 -> 202,679 | K34: =C33-K8 -> -186,891 | L34: =D33-L8 -> -189,590 | M34: =E33-M8 -> 51,686 | P34: =M34-K34 -> 238,577 | Q34: =F33-Q8 -> -6,406 | T34: -58,092 | U34: =G33-U8 -> -6,406

Sheet 1-1
A1: 表1-1
A2: 重庆市綦江区2026年一般公共预算收支草案表（表一）
A3: 制表：綦江区财政局 | AY3: 单位：万元
A4: 预算收入 | Q4: 预算支出
A5: 项目 | B5: 2023年 预算草案 | C5: 2022年预算草案 | E5: 2023年 执行数 | F5: 2023年执行数 | H5: 2024年 预算草案 | I5: 2024年预算草案 | K5: 2024执行数 | L5: 2025年 预算草案 | M5: 2025年 调整预算 | N5: 2025执行数 | O5: 2026年 预算草案 | P5: 比上年±% | Q5: 项目 | R5: 2023年 预算草案 | S5: 2022年预算草案 | W5: 2023年 执行数 | X5: 2023年执行数 | Z5: 2024年 预算草案 | AA5: 2023年预算草案 | AI5: 2024执行数 | AJ5: 2025年 预算草案 | AP5: 2025年 调整预算 | AQ5: 2025执行数 | AR5: 2026年 预算草案 | AY5: 比上年±%
C6: 区本级 | D6: 街镇级 | F6: 区本级 | G6: 街镇级 | I6: 区本级 | J6: 街镇级 | S6: 区本级当年 | T6: 区本级结转 | U6: 街镇级当年 | V6: 街镇级结转 | X6: 区本级 | Y6: 街镇级 | AA6: 区本级当年 | AB6: 区本级结转 | AC6: 区本级专项 | AD6: 区级调节基金 | AE6: 街镇级当年 | AF6: 街镇级专项 | AG6: 街镇级结转 | AH6: 调整 | AK6: 当年部门 | AL6: 当年街镇 | AM6: 结转部门 | AN6: 结转街镇 | AO6: 直编 | AS6: 当年部门 | AT6: 当年街镇 | AU6: 结转部门 | AV6: 结转街镇 | AW6: 直编部门 | AX6: 直编街镇
A7: 101 税收收入 | B7: =SUM(C7:D7) -> 120,411 | C7: =SUM(C8:C20) -> 120,411 | D7: 0 | E7: =F7+G7 -> 120,472 | F7: 120,472 | G7: 0 | H7: =SUM(I7:J7) -> 126,498 | I7: =SUM(I8:I20) -> 126,498 | J7: 0 | K7: 121,250 | L7: 128,525 | M7: 133,525 | N7: 133,607 | O7: 141,623 | P7: =(O7-N7)/N7*100 -> 6.0 | Q7: 201 一般公共服务 | R7: 79,918 | W7: =X7+Y7 -> 61,456 | X7: =39220.4737560001-0.3 -> 39,220 | Y7: 22,236 | Z7: =AA7+AB7+AD7+AE7+AG7+AC7+AF7+AH7 -> 71,097 | AA7: 41,995 | AB7: 1,458 | AC7: 502 | AD7: 1,736 | AE7: 20,323 | AG7: 83 | AH7: 5,000 | AI7: 63,900 | AJ7: =SUM(AK7:AO7) -> 71,595 | AK7: 45,220 | AL7: 21,120 | AM7: 108 | AN7: 147 | AO7: 5,000 | AP7: 78,732 | AQ7: 66,431 | AR7: 77,920 | AS7: =52277-10000+612 -> 42,889 | AT7: 23,434 | AU7: 128 | AV7: 351 | AW7: =1730-612 -> 1,118 | AY7: =(AR7-AQ7)/AQ7*100 -> 17.3
A8: 10101 增值税 | B8: 34,186 | C8: 34,186 | E8: =SUM(F8:G8) -> 35,013 | F8: 35,013 | H8: =I8+J8 -> 35,408 | I8: 35,408 | K8: 37,148 | L8: 37,700 | M8: 37,818 | N8: 37,997 | O8: 36,826 | P8: -3.1 | Q8: 203 国防 | R8: 682 | W8: 596 | X8: 594 | Y8: 2 | Z8: 632 | AA8: 568 | AB8: 0 | AC8: 64 | AD8: 0 | AE8: 0 | AG8: 0 | AI8: 558 | AJ8: 698 | AK8: 598 | AL8: 0 | AO8: 100 | AP8: 698 | AQ8: 645 | AR8: =SUM(AS8:AX8) -> 647 | AS8: 611 | AT8: 0 | AU8: 0 | AV8: 0 | AW8: 36 | AY8: =(AR8-AQ8)/AQ8*100 -> 0.3
A9: 10104 企业所得税 | B9: 7,200 | C9: 7,200 | E9: 13,036 | F9: 13,036 | H9: 10,000 | I9: 10,000 | K9: 10,205 | L9: 7,560 | M9: 17,450 | N9: 17,849 | O9: 16,400 | P9: -8.1 | Q9: 204 公共安全 | R9: 40,062 | W9: 31,913 | X9: 31,584 | Y9: 329 | Z9: 35,574 | AA9: 23,351 | AB9: 7,063 | AC9: 3,276 | AD9: 1,855 | AE9: 0 | AG9: 29 | AI9: 25,643 | AJ9: 35,809 | AK9: 26,313 | AL9: 0 | AM9: 1,865 | AN9: 131 | AO9: 7,500 | AP9: 43,744 | AQ9: 29,410 | AR9: 33,973 | AS9: =33021-3000+3000-4000 -> 29,021 | AT9: 0 | AV9: 108 | AW9: 844 | AY9: 15.5
A10: 10106 个人所得税 | B10: 2,400 | C10: 2,400 | E10: 2,571 | F10: 2,571 | H10: 2,640 | I10: 2,640 | K10: 2,613 | L10: 2,400 | M10: 2,365 | N10: 2,460 | O10: 2,304 | P10: -6.3 | Q10: 205 教育 | R10: 149,932 | W10: 146,102 | X10: 146,102 | Y10: 0 | Z10: 159,886 | AA10: 130,117 | AB10: 8,386 | AC10: 17,781 | AD10: 3,602 | AE10: 0 | AG10: 0 | AI10: 146,279 | AJ10: 161,178 | AK10: 147,360 | AL10: 0 | AM10: 8,818 | AN10: 0 | AO10: 5,000 | AP10: 161,315 | AQ10: 147,077 | AR10: 163,110 | AS10: =153794-10000+1500 -> 145,294 | AT10: 0 | AU10: 7,365 | AV10: 0 | AW10: 1,951 | AY10: 10.9
A11: 10107 资源税 | B11: 1,500 | C11: 1,500 | E11: 2,298 | F11: 2,298 | H11: 3,500 | I11: 3,500 | K11: 2,446 | L11: 5,200 | M11: 3,733 | N11: 3,498 | O11: 4,300 | P11: 22.9 | Q11: 206 科学技术 | R11: 8,860 | W11: 9,014 | X11: 9,014 | Y11: 0 | Z11: 9,967 | AA11: 8,319 | AB11: 370 | AC11: 87 | AD11: 1,192 | AE11: 0 | AG11: 0 | AI11: 9,263 | AJ11: 9,983 | AK11: 9,383 | AL11: 0 | AM11: 100 | AN11: 0 | AO11: 500 | AP11: 10,083 | AQ11: 9,302 | AR11: 10,060 | AS11: 8,518 | AT11: 205 | AU11: 0 | AV11: 0 | AW11: 1,337 | AY11: 8.1
A12: 10109 城市维护建设税 | B12: 9,000 | C12: 9,000 | E12: 8,669 | F12: 8,669 | H12: 7,200 | I12: 7,200 | K12: 8,243 | L12: 8,550 | M12: 8,426 | N12: 8,401 | O12: 7,950 | P12: -5.4 | Q12: 207 文化体育与传媒 | R12: 12,072 | W12: 8,815 | X12: 6,154 | Y12: 2,661 | Z12: 13,137 | AA12: 5,166 | AB12: 895 | AC12: 883 | AD12: 4,249 | AE12: 1,807 | AG12: 136 | AI12: 9,097 | AJ12: 13,369 | AK12: 5,407 | AL12: 1,602 | AM12: 1,496 | AN12: 965 | AO12: 3,900 | AP12: 17,167 | AQ12: 18,470 | AR12: 19,316 | AS12: =5020+3000+2000 -> 10,020 | AT12: 1,796 | AU12: =3658+3156 -> 6,814 | AV12: 291 | AW12: 395 | AY12: 4.6
A13: 10110 房产税 | B13: 9,100 | C13: 9,100 | E13: 10,813 | F13: 10,813 | H13: 12,500 | I13: 12,500 | K13: 12,373 | L13: 19,600 | M13: 13,768 | N13: 12,875 | O13: 15,400 | P13: 19.6 | Q13: 208 社会保障和就业 | R13: 143,666 | W13: 132,112 | X13: 122,138 | Y13: 9,974 | Z13: 142,102 | AA13: 75,250 | AB13: 10,542 | AC13: 34,497 | AD13: 8,312 | AE13: 10,501 | AG13: 0 | AH13: 3,000 | AI13: 145,708 | AJ13: 143,548 | AK13: 124,274 | AL13: 11,178 | AM13: 2,070 | AN13: 26 | AO13: 6,000 | AP13: 150,227 | AQ13: 145,725 | AR13: 159,144 | AS13: =117593+145 -> 117,738 | AT13: =10762 -> 10,762 | AU13: 12,477 | AV13: 86 | AW13: 18,226 | AY13: 9.2
A14: 10111 印花税 | B14: 2,800 | C14: 2,800 | E14: 5,353 | F14: 5,353 | H14: 5,000 | I14: 5,000 | K14: 3,229 | L14: 5,550 | M14: 3,974 | N14: 4,062 | O14: 4,200 | P14: 3.4 | Q14: 210 卫生健康支出 | R14: 89,945 | W14: 96,953 | X14: 95,013 | Y14: 1,941 | Z14: 91,373 | AA14: 40,427 | AB14: 9,504 | AC14: 16,730 | AD14: 1,680 | AE14: 2,041 | AG14: 0 | AH14: =18000+2991 -> 20,991 | AI14: 77,061 | AJ14: 94,410 | AK14: 61,324 | AL14: 1,988 | AM14: 11,098 | AN14: 0 | AO14: 20,000 | AP14: 99,478 | AQ14: 79,607 | AR14: =SUM(AS14:AX14) -> 87,236 | AS14: 68,527 | AT14: 1,959 | AU14: 1,664 | AV14: 0 | AW14: 15,086 | AY14: 9.6
A15: 10112 城镇土地使用税 | B15: 13,500 | C15: 13,500 | E15: 19,043 | F15: 19,043 | H15: 13,500 | I15: 13,500 | K15: 19,127 | L15: 20,400 | M15: 20,909 | N15: 19,417 | O15: 16,200 | P15: -16.6 | Q15: 211 节能环保 | R15: 25,850 | W15: 27,122 | X15: 25,554 | Y15: 1,568 | Z15: 33,505 | AA15: 4,498 | AB15: 18,003 | AC15: 4,914 | AD15: 5,279 | AE15: 0 | AG15: 811 | AI15: 27,555 | AJ15: 35,485 | AK15: 19,382 | AL15: 3,710 | AM15: 11,881 | AN15: 512 | AP15: 46,485 | AQ15: 33,608 | AR15: 35,722 | AS15: 15,608 | AT15: 0 | AU15: 8,372 | AV15: 759 | AW15: 10,983 | AY15: 6.3
A16: 10113 土地增值税 | B16: 17,600 | C16: 17,600 | E16: 4,202 | F16: 4,202 | H16: 7,000 | I16: 7,000 | K16: 5,868 | L16: 1,179 | M16: 8,218 | N16: 8,196 | O16: 10,900 | P16: 33.0 | Q16: 212 城乡社区 | R16: 107,164 | W16: 38,270 | X16: 26,723 | Y16: 11,547 | Z16: 64,332 | AA16: 17,216 | AB16: 2,934 | AC16: 0 | AD16: 2,065 | AE16: 11,870 | AG16: 247 | AH16: 30,000 | AI16: 43,498 | AJ16: 55,502 | AK16: 8,701 | AL16: 4,368 | AM16: 9,317 | AN16: 397 | AO16: =35432-2713 -> 32,719 | AP16: 113,499 | AQ16: 37,799 | AR16: 46,131 | AS16: =27479-2000-10000+15000+10000+4000 -> 44,479 | AT16: 7,452 | AU16: 17,810 | AV16: 9 | AW16: =2881+500+2000 -> 5,381 | AY16: 22.0
A17: 10118 耕地占用税 | B17: 8,000 | C17: 8,000 | E17: 3,121 | F17: 3,121 | H17: 11,000 | I17: 11,000 | K17: 7,553 | L17: 8,246 | M17: 3,352 | N17: 3,027 | O17: 11,013 | P17: 263.8 | Q17: 213 农林水 | R17: 127,238 | W17: 80,629 | X17: 45,408 | Y17: 35,221 | Z17: 227,461 | AA17: 14,245 | AB17: =78297.122741+82761-3352 -> 157,706 | AC17: 33,935 | AD17: 27,811 | AE17: =22938.492113+3352 -> 26,290 | AG17: 4,285 | AH17: =-27811-8000-1000 -> -36,811 | AI17: 191,612 | AJ17: 138,485 | AK17: 37,755 | AL17: 22,606 | AM17: 72,905 | AN17: 5,219 | AP17: 124,338 | AQ17: 121,316 | AR17: 139,479 | AS17: 44,962 | AT17: 14,626 | AU17: 35,013 | AV17: 3,884 | AW17: =20994+2000 -> 22,994 | AX17: =10000+8000 -> 18,000 | AY17: 15.0
A18: 10119 契税 | B18: 14,000 | C18: 14,000 | E18: 15,008 | F18: 15,008 | H18: 17,500 | I18: 17,500 | K18: 11,495 | L18: 11,500 | M18: 12,956 | N18: 15,298 | O18: 15,600 | P18: 2.0 | Q18: 214 交通运输 | R18: 65,703 | W18: 53,902 | X18: 53,871 | Y18: 31 | Z18: 64,594 | AA18: 6,341 | AB18: 18,411 | AC18: 7,485 | AD18: 2,562 | AE18: 0 | AG18: 9,795 | AH18: 20,000 | AI18: 29,326 | AJ18: 59,694 | AK18: 20,729 | AL18: 0 | AM18: 18,781 | AN18: 183 | AO18: 20,000 | AP18: 71,587 | AQ18: 29,046 | AR18: 46,318 | AS18: =23949-2000-15000+10000 -> 16,949 | AT18: 0 | AU18: 20,929 | AV18: 0 | AW18: =7440-2000-2000 -> 3,440 | AY18: 59.5
A19: 10121 环保税 | B19: 1,125 | C19: 1,125 | E19: 1,343 | F19: 1,343 | H19: 1,250 | I19: 1,250 | K19: 948 | L19: 640 | M19: 517 | N19: 514 | O19: 530 | P19: 3.1 | Q19: 215 资源勘探信息等 | R19: 8,813 | W19: 1,792 | X19: 1,733 | Y19: 59 | Z19: 2,831 | AA19: 1,577 | AB19: 273 | AC19: 925 | AD19: 7 | AE19: 49 | AG19: 0 | AI19: 2,746 | AJ19: 4,128 | AK19: 3,832 | AL19: 0 | AM19: 297 | AN19: 0 | AP19: 4,168 | AQ19: 1,979 | AR19: =SUM(AS19:AX19) -> 3,100 | AS19: =2695-1000 -> 1,695 | AT19: 0 | AU19: 1,320 | AV19: 0 | AW19: 85 | AY19: 56.6
A20: 10199 其他税收收入 | B20: 0 | E20: 2 | F20: 2 | K20: 2 | M20: 39 | N20: 13 | Q20: 216 商业服务业等 | R20: 1,437 | W20: 1,054 | X20: 1,054 | Y20: 0 | Z20: 1,781 | AA20: 307 | AB20: 591 | AC20: 880 | AD20: 0 | AE20: 3 | AG20: 0 | AI20: 1,247 | AJ20: 1,803 | AK20: 899 | AL20: 0 | AM20: 504 | AN20: 0 | AO20: 400 | AP20: 2,033 | AQ20: 967 | AR20: 1,401 | AS20: 413 | AT20: 0 | AU20: 461 | AV20: 0 | AW20: =1027-500 -> 527 | AY20: 44.9
A21: 103 非税收入 | B21: =SUM(C21:D21) -> 102,575 | C21: =SUM(C22:C27) -> 102,195 | D21: 380 | E21: =F21+G21 -> 106,235 | F21: 105,846 | G21: 389 | H21: =SUM(I21:J21) -> 113,814 | I21: =SUM(I22:I27) -> 113,648 | J21: 166 | K21: 107,427 | L21: 113,873 | M21: 167,276 | N21: 167,690 | O21: 168,693 | P21: 0.6 | Q21: 217 金融支出 | AR21: 131 | AS21: 0 | AT21: 0 | AU21: 84 | AV21: 0 | AW21: 47
A22: 10302 专项收入 | B22: 9,630 | C22: 9,630 | E22: =SUM(F22:G22) -> 7,766 | F22: 7,766 | H22: =I22+J22 -> 9,360 | I22: 9,360 | J22: 0 | K22: 9,070 | L22: 9,564 | M22: 9,100 | N22: 9,231 | O22: 6,500 | P22: -29.6 | Q22: 220 自然资源海洋气象等 | R22: 11,708 | W22: =X22+Y22 -> 5,499 | X22: 4,388 | Y22: 1,112 | Z22: =AA22+AB22+AD22+AE22+AG22+AC22+AF22+AH22 -> 10,349 | AA22: 4,147 | AB22: 2,367 | AD22: 2,935 | AE22: 0 | AF22: 900 | AG22: 0 | AI22: 4,122 | AJ22: 10,403 | AK22: 3,420 | AM22: 4,630 | AN22: 953 | AO22: 1,400 | AP22: 10,681 | AQ22: 11,406 | AR22: 14,531 | AS22: =2475+10000 -> 12,475 | AT22: 0 | AU22: 1,231 | AV22: 0 | AW22: 825 | AY22: =(AR22-AQ22)/AQ22*100 -> 27.4
A23: 10304 行政事业性收费 | B23: 2,993 | C23: 2,833 | D23: 160 | E23: 11,434 | F23: 11,434 | H23: 26,616 | I23: 26,616 | J23: 0 | K23: 12,679 | L23: 21,400 | M23: 5,700 | N23: 24,865 | O23: 7,000 | P23: -71.8 | Q23: 221 住房保障 | R23: 59,802 | W23: 59,624 | X23: 54,426 | Y23: 5,198 | Z23: 77,604 | AA23: 13,657 | AB23: 34,050 | AC23: 22,255 | AD23: 5,367 | AE23: 2,245 | AG23: 30 | AI23: 39,632 | AJ23: 77,662 | AK23: 39,551 | AL23: 2,191 | AM23: 12,775 | AN23: 10,895 | AO23: 12,250 | AP23: 114,768 | AQ23: 70,260 | AR23: 100,956 | AS23: 49,273 | AT23: 2,388 | AU23: 45,078 | AV23: 4,134 | AW23: 83 | AY23: 43.7
A24: 10305 罚没收入 | B24: 9,890 | C24: 9,770 | D24: 120 | E24: 5,015 | F24: 4,972 | G24: 43 | H24: 20,021 | I24: 19,981 | J24: 40 | K24: 26,931 | L24: 8,832 | M24: 14,405 | N24: 18,237 | O24: 15,620 | P24: -14.3 | Q24: 222 粮油物资储备 | R24: 904 | W24: 658 | X24: 658 | Y24: 0 | Z24: 946 | AA24: 0 | AB24: 246 | AE24: 0 | AG24: 0 | AH24: 700 | AI24: 242 | AJ24: 968 | AK24: 68 | AO24: 900 | AP24: 968 | AQ24: 18 | AR24: 168 | AS24: =118-100 -> 18 | AT24: 0 | AU24: =50-45 -> 5 | AV24: 0 | AW24: 0 | AY24: 833.3
A25: 10307 国有资产有偿使用收入 | B25: 73,447 | C25: 73,347 | D25: 100 | E25: 80,070 | F25: 79,755 | G25: 315 | H25: 55,037 | I25: 54,946 | J25: 92 | K25: 47,862 | L25: 73,130 | M25: 137,011 | N25: 107,467 | O25: 138,303 | P25: 28.7 | Q25: 224 灾害防治及应急管理支出 | R25: 12,206 | W25: 21,112 | X25: 18,987 | Y25: 2,126 | Z25: 12,019 | AA25: 4,499 | AB25: 369 | AC25: 237 | AD25: 1,733 | AE25: 0 | AG25: 180 | AH25: 5,000 | AI25: 9,076 | AJ25: 12,126 | AK25: 6,459 | AM25: 654 | AN25: 412 | AO25: 4,600 | AP25: 14,350 | AQ25: 7,095 | AR25: 12,150 | AS25: 3,123 | AT25: 0 | AU25: 1,254 | AV25: 162 | AW25: 7,611 | AY25: 71.2
A26: 10308 捐赠收入 | B26: 50 | C26: 50 | E26: 31 | F26: 26 | G26: 5 | H26: 10 | I26: 10 | J26: 0 | K26: 150 | L26: 5 | M26: 20 | N26: 22 | P26: -100.0 | Q26: 227 预备费 | R26: 10,000 | W26: 0 | Z26: 14,000 | AA26: 14,000 | AJ26: 14,000 | AK26: 14,000 | AP26: 2,000 | AR26: 14,000 | AT26: 0 | AU26: 0 | AV26: 0 | AW26: 14,000
A27: 10399 其他收入 | B27: 6,565 | C27: 6,565 | E27: 1,919 | F27: 1,893 | G27: 26 | H27: 2,770 | I27: 2,736 | J27: 35 | K27: 10,735 | L27: 942 | M27: 1,040 | N27: 7,868 | O27: 1,270 | P27: -83.9 | Q27: 229 其他支出 | R27: 4,826 | W27: 5,116 | X27: 5,116 | Y27: 0 | Z27: 3,204 | AA27: 0 | AB27: 3,204 | AE27: 0 | AG27: 0 | AI27: 157 | AJ27: 3,003 | AN27: 3,003 | AP27: 5,239 | AQ27: 1,714 | AR27: 3,524 | AS27: 0 | AT27: 0 | AU27: 0 | AV27: =3524-1500 -> 2,024 | AW27: 0 | AY27: =(AR27-AQ27)/AQ27*100 -> 105.6
Q28: 231 债务还本支出 | R28: 0 | W28: 0
A29: 其中：区本级收入 | B29: =C29+D29 -> 222,606 | C29: =C21+C7 -> 222,606 | E29: =F29+G29 -> 226,318 | F29: =F21+F7 -> 226,318 | H29: =I29+J29 -> 240,146 | I29: =I21+I7 -> 240,146 | K29: =K33-K30 -> 228,094 | L29: 242,257 | M29: 300,660 | N29: 300,735 | O29: 310,016 | P29: 3.1 | Q29: 232 债务付息 | R29: 30,590 | W29: 30,705 | X29: 30,705 | Y29: 0 | Z29: =AA29+AB29+AD29+AE29+AG29+AC29+AF29+AH29 -> 35,791 | AA29: 35,791 | AI29: 33,126 | AJ29: 33,276 | AK29: 33,276 | AP29: 33,276 | AQ29: 33,150 | AR29: 32,576 | AW29: 32,576 | AY29: -1.7
A30: 街镇级收入 | B30: =C30+D30 -> 380 | D30: =D21+D7 -> 380 | E30: =F30+G30 -> 389 | G30: =G21+G7 -> 389 | H30: =I30+J30 -> 166 | J30: =J21+J7 -> 166 | K30: 583 | L30: 141 | M30: 141 | N30: 562 | O30: 300 | P30: -46.6 | Q30: 233 债务发行费用 | R30: 0 | W30: 4 | X30: 4 | Y30: 0 | AI30: 6 | AQ30: 12 | AY30: -100.0
Q31: 其中：区本级支出 | R31: 903,528 | S31: =SUM(S7:S30) -> 0 | T31: 0 | W31: =SUM(X31:Y31) -> 718,445 | X31: 718,445 | Z31: =SUM(AA31:AH31) -> 980,559 | AA31: =SUM(AA7:AA30) -> 441,472 | AB31: 276,374 | AC31: 144,451 | AD31: 70,382 | AH31: =SUM(AH7:AH30) -> 47,880 | AI31: 756,281 | AJ31: 885,520 | AK31: 607,952 | AM31: 157,299 | AO31: 120,269 | AP31: 1,014,028 | AQ31: 741,069 | AR31: 909,163 | AS31: =SUM(AS7:AS30) -> 611,613 | AT31: 62,622 | AU31: 160,005 | AV31: 11,808 | AW31: 137,545 | AX31: 18,000 | AY31: 22.7
Q32: 街镇级支出 | R32: 87,850 | U32: =SUM(U7:U30) -> 0 | V32: 0 | W32: =SUM(X32:Y32) -> 94,005 | Y32: 94,005 | Z32: =SUM(AE32:AG32) -> 91,625 | AE32: =SUM(AE7:AE30) -> 75,130 | AF32: 900 | AG32: 15,595 | AI32: =AI33-AI31 -> 103,573 | AJ32: 91,605 | AL32: 68,763 | AN32: 22,842 | AP32: 90,808 | AQ32: 103,968 | AR32: 92,430 | AY32: -11.1
A33: 收 入 合 计 | B33: =B7+B21 -> 222,986 | C33: =C7+C21 -> 222,606 | D33: 380 | E33: =E21+E7 -> 226,707 | F33: =F29+F30 -> 226,318 | G33: =G29+G30 -> 389 | H33: 240,312 | I33: 240,146 | J33: 166 | K33: 228,677 | L33: 242,398 | M33: 300,801 | N33: 301,297 | O33: 310,316 | P33: =(O33-N33)/N33*100 -> 3.0 | Q33: 支 出 合 计 | R33: =SUM(R31:R32) -> 991,379 | S33: 0 | T33: 0 | U33: 0 | V33: 0 | W33: =W31+W32 -> 812,450 | X33: =X31 -> 718,445 | Y33: =Y32 -> 94,005 | Z33: =SUM(Z31:Z32) -> 1,072,184 | AI33: 859,854 | AJ33: =SUM(AJ7:AJ30) -> 977,125 | AP33: =SUM(AP7:AP30) -> 1,104,836 | AQ33: 845,037 | AR33: 1,001,593 | AY33: 18.5
A34: 一、上级补助收入 | B34: =B35+B36+B37 -> 285,753 | C34: 285,753 | D34: 0 | E34: =SUM(E35:E37) -> 575,822 | F34: 575,822 | G34: 0 | H34: 292,023 | I34: 292,023 | J34: 0 | K34: 460,687 | L34: 301,872 | M34: 449,495 | N34: 447,971 | O34: 366,573 | P34: =(O34-N34)/N34*100 -> -18.2 | Q34: 一、上解上级支出 | R34: =R35+R36 -> 57,194 | S34: =SUM(S35:S36) -> 0 | U34: 0 | W34: =W35+W36 -> 52,957 | X34: 52,957 | Y34: 0 | Z34: =Z35+Z36 -> 64,194 | AA34: =SUM(AA35:AA36) -> 64,194 | AE34: =SUM(AE35:AE36) -> 0 | AI34: 71,385 | AJ34: 65,314 | AP34: 69,314 | AQ34: 47,068 | AR34: 55,226 | AY34: 17.3
A35: 返还性收入 | B35: 27,503 | C35: 27,503 | E35: =SUM(F35:G35) -> 27,503 | F35: 27,503 | H35: =I35+J35 -> 27,503 | I35: 27,503 | K35: 27,503 | L35: 27,503 | M35: 27,503 | N35: 27,503 | O35: 27,503 | P35: =(O35-N35)/N35*100 -> 0.0 | Q35: 体制上解 | R35: 7,170 | W35: =X35+Y35 -> 7,170 | X35: 7,170 | Z35: 7,170 | AA35: 7,170 | AI35: 7,170 | AJ35: 7,170 | AP35: 7,170 | AQ35: 7,170 | AR35: 7,170 | AY35: 0.0
A36: 一般性转移支付收入 | B36: 245,498 | C36: 245,498 | E36: 414,643 | F36: =414642.8 -> 414,643 | H36: 250,612 | I36: 250,612 | K36: 318,037 | L36: 252,956 | M36: 366,217 | N36: 365,398 | O36: 292,179 | P36: -20.0 | Q36: 专项上解 | R36: 50,024 | W36: =X36+Y36 -> 45,787 | X36: 45,787 | Z36: =AA36 -> 57,024 | AA36: 57,024 | AI36: =AI34-AI35 -> 64,215 | AJ36: 58,144 | AP36: 62,144 | AQ36: 39,898 | AR36: 48,056 | AY36: 20.4
A37: 专项转移支付收入 | B37: 12,752 | C37: 12,752 | E37: 133,676 | F37: 133,676 | H37: 13,909 | I37: 13,909 | K37: 115,147 | L37: 21,413 | M37: 55,775 | N37: 55,070 | O37: 46,891 | P37: -14.9 | Q37: 二、债务还本支出 | R37: 47,300 | W37: =93280+125.8 -> 93,406 | X37: =93280+125.8 -> 93,406 | Z37: =AA37 -> 88,000 | AA37: 88,000 | AI37: =120424+5876+134 -> 126,434 | AJ37: 207,200 | AP37: 207,200 | AQ37: 207,340 | AR37: 421,700 | AY37: 103.4
A38: 二、债券转贷收入 | B38: =C38+D38 -> 47,300 | C38: =SUM(C39:C40) -> 47,300 | D38: 0 | E38: 117,380 | F38: 117,380 | G38: 0 | H38: 79,200 | I38: =SUM(I39:I40) -> 79,200 | J38: =SUM(J39:J40) -> 0 | K38: =K39+K40 -> 135,424 | L38: 186,480 | M38: 210,580 | N38: 210,580 | O38: 379,530 | P38: 80.2 | Q38: 三、调出资金 | R38: 0 | W38: 0 | X38: 0 | AA38: 0
A39: 一般债券转贷收入 | B39: 47,300 | C39: 47,300 | E39: =SUM(F39:G39) -> 93,280 | F39: 93,280 | H39: 79,200 | I39: 79,200 | K39: 120,424 | L39: 186,480 | M39: 186,480 | N39: 186,480 | O39: 379,530 | P39: 103.5 | Q39: 四、补充预算稳定调节基金 | R39: 0 | W39: =184643-70000+5189-30-125.8-900 -> 118,776 | X39: 118,776 | AA39: 0 | AI39: 18,401 | AQ39: 82,691 | AY39: =(AR39-AQ39)/AQ39*100 -> -100.0
A40: 新增债券收入 | B40: 0 | C40: 0 | E40: 24,100 | F40: 24,100 | I40: 0 | K40: 15,000 | M40: 24,100 | N40: 24,100 | P40: -100.0 | Q40: 五、当年结转结余 | R40: =R41+R42 -> 0 | W40: =W41+W42 -> 295,321 | X40: =SUM(X41:X42) -> 279,726 | Y40: 15,595 | AA40: 0 | AE40: =SUM(AE41:AE42) -> 0 | AI40: 180,141 | AQ40: 173,358 | AY40: -100.0
A41: 三、上年结转结余 | B41: =C41+D41 -> 193,364 | C41: =C42+C43 -> 181,543 | D41: 11,821 | E41: 193,364 | F41: 181,543 | G41: 11,821 | H41: =I41+J41 -> 295,321 | I41: =I42+I43 -> 279,726 | J41: 15,595 | K41: 295,321 | L41: 180,141 | M41: 180,141 | N41: 180,141 | O41: 173,358 | P41: -3.8 | Q41: 其中：区本级 | R41: 0 | W41: =SUM(X41:Y41) -> 279,726 | X41: =196965+82761 -> 279,726 | AA41: 0 | AI41: =AI40-AI42 -> 157,299 | AQ41: 160,048 | AY41: -100.0
A42: 其中：区本级 | B42: =SUM(C42:D42) -> 181,543 | C42: 181,543 | E42: 181,543 | F42: 181,543 | H42: 279,726 | I42: =196965+82761 -> 279,726 | K42: 279,726 | L42: 157,299 | M42: 157,299 | N42: 157,299 | O42: 160,050 | P42: 1.7 | Q42: 街镇级 | R42: 0 | W42: =SUM(X42:Y42) -> 15,595 | Y42: 15,595 | AA42: 0 | AI42: 22,842 | AQ42: 13,310 | AY42: -100.0
A43: 街镇级 | B43: 11,821 | D43: 11,821 | E43: 11,821 | G43: 11,821 | H43: 15,595 | J43: 15,595 | K43: 15,595 | L43: 22,842 | M43: 22,842 | N43: 22,842 | O43: 13,308 | P43: -41.7 | Q43: 六、区域间转移性支出 | AQ43: 1,100 | AY43: -100.0
A44: 四、预算稳定调节基金 | B44: 116,751 | C44: =117136.96-386 -> 116,751 | E44: =117136.96-70000 -> 47,137 | F44: 47,137 | H44: 180,802 | I44: =176802+4000 -> 180,802 | K44: 30,000 | L44: 205,000 | M44: 205,000 | N44: 180,072 | O44: 102,600 | P44: -43.0
A45: 五、调入资金 | B45: 229,720 | C45: =C46+C47 -> 229,720 | D45: 0 | E45: 216,901 | F45: 216,901 | G45: 0 | H45: 136,720 | I45: =I46+I47 -> 136,720 | J45: 0 | K45: 106,106 | L45: 133,748 | M45: 35,333 | N45: 35,333 | O45: 146,142 | P45: 313.6
A46: 政府性基金预算调入 | B46: 198,000 | C46: 198,000 | E46: 198,000 | F46: 198,000 | H46: 105,000 | I46: =110000-5000 -> 105,000 | K46: 105,000 | L46: 105,000 | M46: 16,361 | N46: 16,361 | O46: 111,142 | P46: 579.3
A47: 国有资本经营预算调入 | B47: 31,720 | C47: 31,720 | E47: 18,901 | F47: 18,901 | H47: 31,720 | I47: 31,720 | K47: 1,106 | L47: 28,748 | M47: 18,972 | N47: 18,972 | O47: 35,000 | P47: 84.5
A48: 六、区域间转移性收入 | N48: 1,200 | P48: -100.0
A49: 收 入 总 计 | B49: =B34+B33+B38+B41+B44+B45 -> 1,095,873 | C49: =C34+C33+C38+C41+C44+C45 -> 1,083,673 | D49: =D34+D33+D38+D41+D44+D45 -> 12,201 | E49: =E33+E34+E38+E41+E44+E45 -> 1,377,310 | F49: 1,365,100 | G49: 12,210 | H49: 1,224,378 | I49: =I33+I34+I38+I41+I45+I44 -> 1,208,617 | J49: =J33+J41 -> 15,761 | K49: =K33+K34+K38+K41+K44+K45 -> 1,256,215 | L49: =L33+L34+L38+L41+L44+L45+L48 -> 1,249,639 | M49: 1,381,350 | N49: 1,356,594 | O49: 1,478,519 | P49: 9.0 | Q49: 支 出 总 计 | R49: =R33+R34+R37+R38+R39+R40 -> 1,095,873 | S49: 0 | T49: 0 | U49: 0 | V49: 0 | W49: 1,372,910 | X49: 1,263,310 | Y49: 109,600 | Z49: 1,224,378 | AA49: 152,194 | AE49: =AE33+AE34+AE37+AE38+AE39+AE40 -> 0 | AI49: =AI33+AI34+AI37+AI38+AI39+AI40 -> 1,256,215 | AJ49: =AJ33+AJ34+AJ37+AJ38+AJ39+AJ40+AJ43 -> 1,249,639 | AP49: =AP33+AP34+AP37+AP38+AP39+AP40+AP43 -> 1,381,350 | AQ49: 1,356,594 | AR49: 1,478,519 | AY49: =(AR49-AQ49)/AQ49*100 -> 9.0

Sheet 1-2
A1: 表1-2
A2: 重庆市綦江区2026年政府性基金预算收支草案表（表二）
A3: 制表：綦江区财政局 | AE3: =15902 -> 15902 | AJ3: 单位：万元
A4: 预算收入 | K4: 预算支出
A5: 项目 | B5: 2024年 预算草案 | C5: 2024年预算草案 | E5: 2024执行数 | F5: 2025年 预算草案 | G5: 2025年 调整预算 | H5: 2025执行数 | I5: 2026年 预算草案 | J5: 比上年±% | K5: 项目 | L5: 2024年 预算草案 | M5: 2023年预算草案 | U5: 2024执行数 | V5: 2025年 预算草案 | AB5: 2025年 调整预算 | AC5: 2025执行数 | AD5: 2026年 预算草案 | AJ5: 比上年±%
C6: 区本级 | D6: 街镇级 | M6: 区本级当年 | N6: 区本级专项 | O6: 区本级结转 | P6: 区级定向支出 | Q6: 隐债化解 | R6: 街镇定向支出 | S6: 街镇结算 | T6: 街镇级结转 | W6: 当年部门 | X6: 当年街镇 | Y6: 结转部门 | Z6: 结转街镇 | AA6: 直编 | AE6: 当年部门 | AF6: 当年街镇 | AG6: 结转部门 | AH6: 结转街镇 | AI6: 直编
A7: 1030146 国有土地收益基金 | B7: =C7+D7 -> 19,800 | C7: 19,800 | E7: 19,702 | F7: 15,360 | G7: 15,360 | H7: 10,745 | I7: 13,428 | J7: =(I7-H7)/H7*100 -> 25.0 | K7: 207 文化体育与传媒 | AC7: 0 | AD7: =AE7+AF7+AG7+AH7+AI7 -> 0
A8: 1030147 农业土开发资金 | B8: 1,000 | C8: 1,000 | E8: 323 | F8: 1,000 | G8: 1,000 | H8: 653 | I8: 874 | J8: =(I8-H8)/H8*100 -> 33.8 | K8: 210 卫生健康 | V8: 18,616 | Y8: 18,616 | AB8: 18,616 | AC8: 12,365 | AD8: 6,251 | AG8: 6,251 | AJ8: =(AD8-AC8)/AC8*100 -> -49.4
A9: 1030148 国有土地使用权出让 | B9: 309,200 | C9: 307,700 | D9: 1,500 | E9: 305,399 | F9: 239,640 | G9: 216,957 | H9: 214,529 | I9: 209,498 | J9: -2.3 | K9: 211 节能环保 | V9: 9,240 | Y9: 9,240 | AB9: 29,929 | AC9: 5,038 | AD9: 24,241 | AG9: 24,241 | AJ9: =(AD9-AC9)/AC9*100 -> 381.2
A10: 1030156 城市基础设施配套费收入 | B10: 10,000 | C10: 9,850 | D10: 150 | E10: 3,823 | F10: 3,000 | G10: 14,000 | H10: 14,542 | I10: 14,000 | J10: -3.7 | K10: 212 城乡社区 | L10: =SUM(M10:T10) -> 196,764 | M10: 14,133 | N10: 894 | O10: =2592.78+1121+3264 -> 6,978 | P10: 780 | Q10: =98436+70000 -> 168,436 | R10: 825 | S10: =6284-3264 -> 3,020 | T10: 1,698 | U10: 177,477 | V10: 122,001 | W10: 22,211 | Y10: 14,140 | Z10: 649 | AA10: 85,001 | AB10: 299,942 | AC10: 220,659 | AD10: 229,951 | AE10: =15902 -> 15,902 | AF10: 5,053 | AG10: 17,765 | AH10: 193 | AI10: =2000+7100+500+45086+61438+74914 -> 191,038 | AJ10: 4.2
A11: 1030178 污水处理费收入 | B11: 600 | C11: 600 | E11: 97 | F11: 2,886 | G11: 2,886 | H11: 3,286 | I11: 4,000 | J11: 21.7 | K11: 213 农林水 | L11: 1,210 | N11: 651 | O11: 49 | P11: 0 | R11: 51 | T11: 460 | U11: 891 | V11: 752 | W11: 564 | Y11: 16 | Z11: 173 | AB11: 14,293 | AC11: 5,428 | AD11: 9,138 | AE11: 313 | AG11: 8,820 | AH11: 5 | AJ11: 68.3
A12: 10310 专项债务收益 | B12: 16,836 | C12: 16,836 | E12: 800 | F12: 20,700 | G12: 34,085 | H12: 40,495 | I12: 109,434 | J12: 170.2 | K12: 214 交通运输 | L12: 180 | O12: 0 | P12: 180 | R12: 0 | T12: 0 | AD12: 0
K13: 215 资源勘探 | AB13: 3,675 | AC13: 386 | AD13: 3,289 | AG13: 3,289 | AJ13: =(AD13-AC13)/AC13*100 -> 752.1
K14: 221 住房保障支出 | AB14: 1,305 | AC14: 458 | AD14: 848 | AG14: 848 | AJ14: 85.2
K15: 229 其他支出 | L15: =SUM(M15:T15) -> 5,406 | N15: 2,655 | O15: 2,205 | P15: 317 | R15: 181 | T15: 48 | U15: 141,046 | V15: 31,933 | W15: 2,333 | Y15: 29,333 | Z15: 267 | AB15: 143,209 | AC15: 125,681 | AD15: 19,292 | AE15: 2,264 | AG15: 16,710 | AH15: 318 | AJ15: -84.7
K16: 232 债务付息 | L16: =SUM(M16:T16) -> 44,110 | M16: 44,110 | U16: 35,913 | V16: 56,740 | W16: 56,740 | AB16: 56,740 | AC16: 48,734 | AD16: 62,059 | AI16: 62,059 | AJ16: 27.3
K17: 233 债务发行费用 | U17: 2 | AC17: 2 | AD17: 0 | AJ17: -100.0
A18: 其中：区本级收入 | B18: =C18 -> 355,786 | C18: =SUM(C7:C12) -> 355,786 | E18: =E20-E19 -> 328,664 | F18: 280,470 | G18: 282,172 | H18: 282,134 | I18: 350,734 | J18: =(I18-H18)/H18*100 -> 24.3 | K18: 其中：区本级支出 | L18: =SUM(M18:Q18) -> 241,388 | M18: =SUM(M7:M17) -> 58,243 | N18: 4,200 | O18: 9,232 | P18: 1,278 | Q18: 168,436 | U18: =U20-U19 -> 350,675 | V18: 233,192 | W18: 81,848 | Y18: 71,345 | AA18: 80,000 | AB18: 561,620 | AC18: 408,920 | AD18: 349,500 | AE18: =SUM(AE7:AE17) -> 18,479 | AF18: 5,053 | AG18: 77,924 | AH18: 516 | AI18: 253,097 | AJ18: -14.5
A19: 街镇级收入 | B19: =D19 -> 1,650 | D19: =SUM(D7:D11) -> 1,650 | E19: 1,480 | F19: 2,116 | G19: 2,116 | H19: 2,116 | I19: 500 | J19: -76.4 | K19: 街镇级支出 | L19: =SUM(R19:T19) -> 6,283 | R19: =SUM(R7:R15) -> 1,057 | S19: 3,020 | T19: 2,206 | U19: 4,654 | V19: 6,090 | X19: 0 | Z19: 1,089 | AA19: 5,001 | AB19: 6,090 | AC19: 9,831 | AD19: 5,569 | AJ19: -43.4
A20: 收 入 合 计 | B20: =B18+B19 -> 357,436 | C20: =SUM(C7:C12) -> 355,786 | D20: =SUM(D7:D11) -> 1,650 | E20: =E9+E10+E11+E12+E7+E8 -> 330,144 | F20: 282,586 | G20: 284,288 | H20: 284,250 | I20: 351,234 | J20: 23.6 | K20: 支 出 合 计 | L20: =L18+L19 -> 247,671 | U20: 355,329 | V20: =SUM(V7:V17) -> 239,282 | W20: 81,848 | X20: 0 | Y20: 71,345 | Z20: 1,089 | AA20: 85,001 | AB20: 567,710 | AC20: 418,751 | AD20: 355,069 | AE20: 18,479 | AF20: 5,053 | AG20: 77,924 | AH20: 516 | AI20: 259,794 | AJ20: -15.2
A21: 一、上级补助收入 | B21: =C21 -> 4,200 | C21: 4,200 | E21: 69,410 | F21: 4,062 | G21: 53,349 | H21: 54,852 | I21: 9,818 | J21: -82.1 | K21: 一、上解上级支出 | L21: =M21 -> 17,015 | M21: 17,015 | U21: =(E9+E7+E8)*0.05+493.7472 -> 16,765 | V21: 14,800 | AB21: 14,800 | AC21: 11,870 | AD21: 12,015 | AJ21: 1.2
A22: 二、债券转贷收入 | E22: =110400+501700 -> 612,100 | G22: 198,700 | H22: 198,700 | I22: 280,620 | J22: 41.2 | K22: 二、债券还本支出 | U22: 470,300 | AB22: 9,900 | AC22: 9,900 | AD22: 316,800 | AJ22: 3,100.0
A23: 三、上年结转结余 | B23: =C23+D23 -> 8,174 | C23: =C24+C25 -> 5,968 | D23: =D24+D25 -> 2,206 | E23: 8,174 | F23: 72,434 | G23: 72,434 | H23: 72,434 | I23: 153,354 | J23: 111.7 | K23: 三、调出资金 | L23: =M23 -> 105,000 | M23: =175000-70000 -> 105,000 | U23: 105,000 | V23: 105,000 | AB23: 16,361 | AC23: 16,361 | AD23: 111,142 | AJ23: 579.3
A24: 其中：区本级 | B24: 5,968 | C24: =4846.78+1121.48 -> 5,968 | E24: 5,968 | F24: 71,344 | G24: 71,344 | H24: 71,344 | I24: 152,838 | J24: 114.2 | K24: 四、当年结转结余 | M24: =SUM(M25) -> 0 | R24: =SUM(R26) -> 0 | U24: =71151.616906+1281.06+1 -> 72,434 | AC24: 153,354 | AJ24: -100.0
A25: 街镇级 | B25: 2,206 | D25: 2,206 | E25: 2,206 | F25: 1,090 | G25: 1,090 | H25: 1,090 | I25: 516 | J25: -52.7 | K25: 其中：区本级 | U25: =U24-U26 -> 71,344 | AC25: 152,838 | AJ25: -100.0
A26: 四、调入资金 | K26: 街镇级 | U26: 1,090 | AC26: 516 | AJ26: -100.0
A28: 收 入 总 计 | B28: =B20+B21+B23+B22+B26 -> 369,810 | C28: =C20+C21+C23+C22+C26 -> 365,954 | D28: =D20+D21+D23+D22+D26 -> 3,856 | E28: =E20+E21+E22+E23 -> 1,019,828 | F28: =F20+F21+F22+F23+F26 -> 359,082 | G28: 608,771 | H28: 610,236 | I28: 795,026 | J28: =(I28-H28)/H28*100 -> 30.3 | K28: 支 出 总 计 | L28: =L20+L21+L23+L22+L24 -> 369,686 | M28: =M20+M21+M22+M23+M24 -> 122,015 | R28: =R20+R21+R22+R23+R24 -> 0 | U28: 1,019,828 | V28: 359,082 | AB28: =AB20+AB21+AB22+AB23+AB24 -> 608,771 | AC28: 610,236 | AD28: 795,026 | AJ28: =(AD28-AC28)/AC28*100 -> 30.3

Sheet 1-3
A1: 表1-3
A2: 重庆市綦江区2026年国有资本经营预算收支草案表（表三）
A3: 制表：綦江区财政局 | T3: 单位：万元
A4: 预算收入 | K4: 预算支出
A5: 项目 | B5: 2023年 预算草案 | C5: 2023年 执行数 | D5: 2024年 预算草案 | E5: 2024执行数 | F5: 2025年 预算草案 | G5: 2025年 调整预算 | H5: 2025执行数 | I5: 2026年 预算草案 | J5: 比上年±% | K5: 项目 | L5: 2023年 预算草案 | M5: 2023年 执行数 | N5: 2024年 预算草案 | O5: 2024执行数 | P5: 2025年 预算草案 | Q5: 2025年 调整预算 | R5: 2025执行数 | S5: 2026年 预算草案 | T5: 比上年±%
A6: 1030601 利润收入 | B6: 31,720 | C6: 18,901 | D6: 31,720 | E6: 1,106 | F6: 28,748 | G6: 18,972 | H6: 18,972 | I6: 35,000 | J6: =(I6-H6)/H6*100 -> 84.5 | K6: 208 社会保障和就业
A7: 1030602 股利、股息收入 | K7: 22301 解决历史遗留问题及改革成本 | L7: 130 | M7: 0 | N7: =130+216 -> 346 | O7: 246 | P7: 314 | Q7: 314 | R7: 206 | S7: 321 | T7: =(S7-R7)/R7*100 -> 55.8
A8: 1030603 产权转让收入 | K8: 22302 国有企业资本金注入
A9: 1030604 清算收入 | K9: 22303 国有企业政策性补贴
A10: 1030698 其他国有资本经营预算收入 | K10: 22304 金融国有资本经营预算支出
K11: 22399 其他国有资本经营预算支出
A13: 其中：本级 | B13: 31,720 | C13: =C6 -> 18,901 | D13: 31,720 | E13: 1,106 | F13: 28,748 | G13: 18,972 | H13: 18,972 | I13: 35,000 | J13: =(I13-H13)/H13*100 -> 84.5 | K13: 其中：本级 | L13: 130 | N13: 346 | O13: 246 | P13: 314 | Q13: 314 | R13: 206 | S13: 321 | T13: =(S13-R13)/R13*100 -> 55.8
A14: 街镇 | K14: 街镇
A15: 收 入 合 计 | B15: =SUM(B6:B10) -> 31,720 | C15: 18,901 | D15: 31,720 | E15: =E6 -> 1,106 | F15: =F13 -> 28,748 | G15: 18,972 | H15: 18,972 | I15: 35,000 | J15: =(I15-H15)/H15*100 -> 84.5 | K15: 支 出 合 计 | L15: =SUM(L6:L11) -> 130 | M15: 0 | N15: 346 | O15: 246 | P15: =P7 -> 314 | Q15: 314 | R15: 206 | S15: 321 | T15: 55.8
A16: 一、上级补助收入 | D16: 216 | E16: 216 | F16: 214 | G16: 214 | H16: 214 | I16: 213 | J16: -0.5 | K16: 一、调出资金 | L16: 31,720 | M16: 18,901 | N16: 31,720 | O16: 1,106 | P16: 28,748 | Q16: 18,972 | R16: 18,972 | S16: 35,000 | T16: 84.5
A17: 二、上年结转结余 | B17: 130 | C17: 130 | D17: 130 | E17: 130 | F17: 100 | G17: 100 | H17: 100 | I17: 108 | J17: 8.0 | K17: 二、当年结转结余 | M17: 130 | O17: 100 | R17: 108 | T17: -100.0
A18: 其中：本级 | B18: 130 | C18: 130 | D18: 130 | K18: 其中：本级 | M18: 130 | R18: 108 | T18: -100.0
A19: 街镇 | K19: 街镇
A21: 收 入 总 计 | B21: =B15+B16+B17 -> 31,850 | C21: 19,031 | D21: =SUM(D15:D17) -> 32,066 | E21: 1,452 | F21: 29,062 | G21: 19,286 | H21: 19,286 | I21: 35,321 | J21: =(I21-H21)/H21*100 -> 83.1 | K21: 支 出 总 计 | L21: =L15+L16+L17 -> 31,850 | M21: =M15+M16+M17 -> 19,031 | N21: =SUM(N15:N20) -> 32,066 | O21: =O16+O17+O15 -> 1,452 | P21: 29,062 | Q21: 19,286 | R21: 19,286 | S21: 35,321 | T21: =(S21-R21)/R21*100 -> 83.1
A22: 说明：全区国有资本经营预算收支皆为区本级收支。

Sheet 1-4
A1: 表1-4
A2: 重庆市綦江区2026年区本级一般公共预算收支草案表（表四）
A3: 制表：綦江区财政局 | T3: 单位：万元
A4: 预算收入 | K4: 预算支出
A5: 项目 | B5: 2023年 预算草案 | C5: 2023年 执行数 | D5: 2024年 预算草案 | E5: 2024年 执行数 | F5: 2025年 预算草案 | G5: 2025年 调整预算 | H5: 2025年 执行数 | I5: 2026年 预算草案 | J5: 比上年±% | K5: 项目 | L5: 2023年 预算草案 | M5: 2023年 执行数 | N5: 2024年 预算草案 | O5: 2024年 执行数 | P5: 2025年 预算草案 | Q5: 2025年 调整预算 | R5: 2025年 执行数 | S5: 2026年 预算草案 | T5: 比上年±%
A6: 101 税收收入 | B6: =SUM(B7:B19) -> 120,411 | C6: 120,472 | D6: 126,498 | E6: 121,250 | F6: 128,525 | G6: 133,525 | H6: 133,607 | I6: 141,623 | J6: =(I6-H6)/H6*100 -> 6.0 | K6: 201 一般公共服务 | L6: 57,044 | M6: 39,220 | N6: ='1-1'!AA7+'1-1'!AB7+'1-1'!AC7+'1-1'!AD7+'1-1'!AH7 -> 50,692 | O6: 41,230 | P6: 50,328 | Q6: 57,465 | R6: 43,205 | S6: 44,135 | T6: =(S6-R6)/R6*100 -> 2.2
A7: 10101 增值税 | B7: 34,186 | C7: ='1-1'!F8 -> 35,013 | D7: ='1-1'!I8 -> 35,408 | E7: ='1-1'!K8 -> 37,148 | F7: 37,700 | G7: 37,818 | H7: 37,997 | I7: 36,826 | J7: =(I7-H7)/H7*100 -> -3.1 | K7: 203 国防 | L7: 679 | M7: ='1-1'!X8 -> 594 | N7: ='1-1'!AA8+'1-1'!AB8+'1-1'!AC8+'1-1'!AD8+'1-1'!AH8 -> 632 | O7: 558 | P7: 698 | Q7: 698 | R7: 645 | S7: 647 | T7: =(S7-R7)/R7*100 -> 0.3
A8: 10104 企业所得税 | B8: 7,200 | C8: ='1-1'!F9 -> 13,036 | D8: ='1-1'!I9 -> 10,000 | E8: ='1-1'!K9 -> 10,205 | F8: 7,560 | G8: 17,450 | H8: 17,849 | I8: 16,400 | J8: -8.1 | K8: 204 公共安全 | L8: 39,909 | M8: ='1-1'!X9 -> 31,584 | N8: ='1-1'!AA9+'1-1'!AB9+'1-1'!AC9+'1-1'!AD9+'1-1'!AH9 -> 35,545 | O8: 25,245 | P8: 35,677 | Q8: 43,612 | R8: 29,144 | S8: 29,865 | T8: 2.5
A9: 10106 个人所得税 | B9: 2,400 | C9: ='1-1'!F10 -> 2,571 | D9: ='1-1'!I10 -> 2,640 | E9: ='1-1'!K10 -> 2,613 | F9: 2,400 | G9: 2,365 | H9: 2,460 | I9: 2,304 | J9: -6.3 | K9: 205 教育 | L9: 149,932 | M9: ='1-1'!X10 -> 146,102 | N9: ='1-1'!AA10+'1-1'!AB10+'1-1'!AC10+'1-1'!AD10+'1-1'!AH10 -> 159,886 | O9: 146,279 | P9: 161,178 | Q9: 161,315 | R9: 147,077 | S9: 154,610 | T9: 5.1
A10: 10107 资源税 | B10: 1,500 | C10: ='1-1'!F11 -> 2,298 | D10: ='1-1'!I11 -> 3,500 | E10: ='1-1'!K11 -> 2,446 | F10: 5,200 | G10: 3,733 | H10: 3,498 | I10: 4,300 | J10: 22.9 | K10: 206 科学技术 | L10: 8,860 | M10: ='1-1'!X11 -> 9,014 | N10: ='1-1'!AA11+'1-1'!AB11+'1-1'!AC11+'1-1'!AD11+'1-1'!AH11 -> 9,967 | O10: 9,263 | P10: 9,983 | Q10: 10,083 | R10: 9,302 | S10: 9,855 | T10: 5.9
A11: 10109 城市维护建设税 | B11: 9,000 | C11: ='1-1'!F12 -> 8,669 | D11: ='1-1'!I12 -> 7,200 | E11: ='1-1'!K12 -> 8,243 | F11: 8,550 | G11: 8,426 | H11: 8,401 | I11: 7,950 | J11: -5.4 | K11: 207 文化体育与传媒 | L11: 10,031 | M11: ='1-1'!X12 -> 6,154 | N11: ='1-1'!AA12+'1-1'!AB12+'1-1'!AC12+'1-1'!AD12+'1-1'!AH12 -> 11,193 | O11: 5,988 | P11: 10,802 | Q11: 14,600 | R11: 15,794 | S11: 17,229 | T11: 9.1
A12: 10110 房产税 | B12: 9,100 | C12: ='1-1'!F13 -> 10,813 | D12: ='1-1'!I13 -> 12,500 | E12: ='1-1'!K13 -> 12,373 | F12: 19,600 | G12: 13,768 | H12: 12,875 | I12: 15,400 | J12: 19.6 | K12: 208 社会保障和就业 | L12: 132,905 | M12: ='1-1'!X13 -> 122,138 | N12: ='1-1'!AA13+'1-1'!AB13+'1-1'!AC13+'1-1'!AD13+'1-1'!AH13 -> 131,601 | O12: 133,585 | P12: 132,345 | Q12: 139,024 | R12: 132,070 | S12: 148,441 | T12: 12.4
A13: 10111 印花税 | B13: 2,800 | C13: ='1-1'!F14 -> 5,353 | D13: ='1-1'!I14 -> 5,000 | E13: ='1-1'!K14 -> 3,229 | F13: 5,550 | G13: 3,974 | H13: 4,062 | I13: 4,200 | J13: 3.4 | K13: 210 卫生健康支出 | L13: 87,967 | M13: ='1-1'!X14 -> 95,013 | N13: ='1-1'!AA14+'1-1'!AB14+'1-1'!AC14+'1-1'!AD14+'1-1'!AH14 -> 89,332 | O13: 75,021 | P13: 92,422 | Q13: 97,490 | R13: 77,647 | S13: 85,277 | T13: 9.8
A14: 10112 城镇土地使用税 | B14: 13,500 | C14: ='1-1'!F15 -> 19,043 | D14: ='1-1'!I15 -> 13,500 | E14: ='1-1'!K15 -> 19,127 | F14: 20,400 | G14: 20,909 | H14: 19,417 | I14: 16,200 | J14: -16.6 | K14: 211 节能环保 | L14: 25,782 | M14: ='1-1'!X15 -> 25,554 | N14: ='1-1'!AA15+'1-1'!AB15+'1-1'!AC15+'1-1'!AD15+'1-1'!AH15 -> 32,694 | O14: 25,976 | P14: 31,263 | Q14: 42,263 | R14: 29,181 | S14: 34,963 | T14: 19.8
A15: 10113 土地增值税 | B15: 17,600 | C15: ='1-1'!F16 -> 4,202 | D15: ='1-1'!I16 -> 7,000 | E15: ='1-1'!K16 -> 5,868 | F15: 1,179 | G15: 8,218 | H15: 8,196 | I15: 10,900 | J15: 33.0 | K15: 212 城乡社区 | L15: 94,420 | M15: ='1-1'!X16 -> 26,723 | N15: ='1-1'!AA16+'1-1'!AB16+'1-1'!AC16+'1-1'!AD16+'1-1'!AH16 -> 52,216 | O15: 31,792 | P15: 50,737 | Q15: 109,531 | R15: 32,592 | S15: 67,670 | T15: 107.6
A16: 10118 耕地占用税 | B16: 8,000 | C16: ='1-1'!F17 -> 3,121 | D16: ='1-1'!I17 -> 11,000 | E16: ='1-1'!K17 -> 7,553 | F16: 8,246 | G16: 3,352 | H16: 3,027 | I16: 11,013 | J16: 263.8 | K16: 213 农林水 | L16: 95,521 | M16: ='1-1'!X17 -> 45,408 | N16: ='1-1'!AA17+'1-1'!AB17+'1-1'!AC17+'1-1'!AD17+'1-1'!AH17 -> 196,885 | O16: 153,089 | P16: 110,660 | Q16: 96,513 | R16: 92,090 | S16: 102,969 | T16: 11.8
A17: 10119 契税 | B17: 14,000 | C17: ='1-1'!F18 -> 15,008 | D17: ='1-1'!I18 -> 17,500 | E17: ='1-1'!K18 -> 11,495 | F17: 11,500 | G17: 12,956 | H17: 15,298 | I17: 15,600 | J17: 2.0 | K17: 214 交通运输 | L17: 65,703 | M17: ='1-1'!X18 -> 53,871 | N17: ='1-1'!AA18+'1-1'!AB18+'1-1'!AC18+'1-1'!AD18+'1-1'!AH18 -> 54,799 | O17: 27,430 | P17: 59,511 | Q17: 71,404 | R17: 21,726 | S17: 41,318 | T17: 90.2
A18: 10121 环保税 | B18: 1,125 | C18: ='1-1'!F19 -> 1,343 | D18: ='1-1'!I19 -> 1,250 | E18: ='1-1'!K19 -> 948 | F18: 640 | G18: 517 | H18: 514 | I18: 530 | J18: 3.1 | K18: 215 资源勘探信息等 | L18: 8,745 | M18: ='1-1'!X19 -> 1,733 | N18: ='1-1'!AA19+'1-1'!AB19+'1-1'!AC19+'1-1'!AD19+'1-1'!AH19 -> 2,782 | O18: 2,744 | P18: 4,128 | Q18: 4,168 | R18: 1,979 | S18: 3,100 | T18: 56.6
A19: 10199 其他税收收入 | B19: 0 | C19: ='1-1'!F20 -> 2 | E19: ='1-1'!K20 -> 2 | G19: 39 | H19: 13 | J19: -100.0 | K19: 216 商业服务业等 | L19: 1,437 | M19: ='1-1'!X20 -> 1,054 | N19: ='1-1'!AA20+'1-1'!AB20+'1-1'!AC20+'1-1'!AD20+'1-1'!AH20 -> 1,778 | O19: 1,247 | P19: 1,803 | Q19: 2,033 | R19: 967 | S19: 1,401 | T19: 44.9
A20: 103 非税收入 | B20: =SUM(B21:B26) -> 102,195 | C20: 105,846 | D20: 113,648 | E20: 106,844 | F20: 113,732 | G20: 167,135 | H20: 167,128 | I20: 168,393 | J20: 0.8 | K20: 217 金融支出 | S20: 131
A21: 10302 专项收入 | B21: 9,630 | C21: ='1-1'!F22 -> 7,766 | D21: ='1-1'!I22 -> 9,360 | E21: ='1-1'!K22-50 -> 9,020 | F21: 9,523 | G21: 9,059 | H21: 9,231 | I21: 6,500 | J21: -29.6 | K21: 220 自然资源海洋气象等 | L21: 11,237 | M21: ='1-1'!X22 -> 4,388 | N21: ='1-1'!AA22+'1-1'!AB22+'1-1'!AC22+'1-1'!AD22+'1-1'!AH22 -> 9,449 | O21: 3,985 | P21: 9,451 | Q21: 9,729 | R21: 10,488 | S21: 14,531 | T21: =(S21-R21)/R21*100 -> 38.6
A22: 10304 行政事业性收费 | B22: 2,833 | C22: ='1-1'!F23 -> 11,434 | D22: ='1-1'!I23 -> 26,616 | E22: ='1-1'!K23 -> 12,679 | F22: 21,400 | G22: 5,700 | H22: 24,865 | I22: 7,000 | J22: -71.8 | K22: 221 住房保障 | L22: 56,354 | M22: ='1-1'!X23 -> 54,426 | N22: ='1-1'!AA23+'1-1'!AB23+'1-1'!AC23+'1-1'!AD23+'1-1'!AH23 -> 75,329 | O22: 31,305 | P22: 64,576 | Q22: 101,682 | R22: 57,492 | S22: 94,434 | T22: 64.3
A23: 10305 罚没收入 | B23: 9,770 | C23: ='1-1'!F24 -> 4,972 | D23: ='1-1'!I24 -> 19,981 | E23: ='1-1'!K24 -> 26,931 | F23: 8,832 | G23: 14,405 | H23: 18,237 | I23: 15,620 | J23: -14.3 | K23: 222 粮油物资储备 | L23: 904 | M23: ='1-1'!X24 -> 658 | N23: ='1-1'!AA24+'1-1'!AB24+'1-1'!AC24+'1-1'!AD24+'1-1'!AH24 -> 946 | O23: 242 | P23: 968 | Q23: 968 | R23: 18 | S23: 23 | T23: 29.0
A24: 10307 国有资产有偿使用收入 | B24: 73,347 | C24: ='1-1'!F25 -> 79,755 | D24: ='1-1'!I25 -> 54,946 | E24: ='1-1'!K25-533 -> 47,329 | F24: 73,030 | G24: 136,911 | H24: 107,467 | I24: 138,303 | J24: 28.7 | K24: 224 灾害防治及应急管理支出 | L24: 10,682 | M24: ='1-1'!X25 -> 18,987 | N24: ='1-1'!AA25+'1-1'!AB25+'1-1'!AC25+'1-1'!AD25+'1-1'!AH25 -> 11,838 | O24: 8,169 | P24: 11,713 | Q24: 13,937 | R24: 6,490 | S24: 11,988 | T24: 84.7
A25: 10308 捐赠收入 | B25: 50 | C25: ='1-1'!F26 -> 26 | D25: ='1-1'!I26 -> 10 | E25: ='1-1'!K26 -> 150 | F25: 5 | G25: 20 | H25: 22 | J25: -100.0 | K25: 227 预备费 | L25: 10,000 | M25: ='1-1'!X26 -> 0 | N25: ='1-1'!AA26+'1-1'!AB26+'1-1'!AC26+'1-1'!AD26+'1-1'!AH26 -> 14,000 | P25: 14,000 | Q25: 2,000 | S25: 14,000
A26: 10399 其他收入 | B26: 6,565 | C26: ='1-1'!F27 -> 1,893 | D26: ='1-1'!I27 -> 2,736 | E26: ='1-1'!K27 -> 10,735 | F26: 942 | G26: 1,040 | H26: 7,306 | I26: 970 | J26: -86.7 | K26: 229 其他支出 | L26: 4,826 | M26: ='1-1'!X27 -> 5,116 | N26: ='1-1'!AA27+'1-1'!AB27+'1-1'!AC27+'1-1'!AD27+'1-1'!AH27 -> 3,204 | Q26: 2,236 | S26: 0
K27: 231 债务还本支出 | L27: 0 | M27: ='1-1'!X28 -> 0 | S27: 0
K28: 232 债务付息 | L28: 30,590 | M28: ='1-1'!X29 -> 30,705 | N28: ='1-1'!AA29+'1-1'!AB29+'1-1'!AC29+'1-1'!AD29+'1-1'!AH29 -> 35,791 | O28: 33,126 | P28: 33,276 | Q28: 33,276 | R28: 33,150 | S28: 32,576 | T28: =(S28-R28)/R28*100 -> -1.7
K29: 233 债务发行费用 | L29: 0 | M29: ='1-1'!X30 -> 4 | O29: 6 | R29: 12 | S29: 0 | T29: -100.0
A31: 收 入 合 计 | B31: =B6+B20 -> 222,606 | C31: 226,318 | D31: 240,146 | E31: 228,094 | F31: 242,257 | G31: 300,660 | H31: 300,735 | I31: 310,016 | J31: =(I31-H31)/H31*100 -> 3.1 | K31: 支 出 合 计 | L31: =SUM(L6:L29) -> 903,528 | M31: 718,445 | N31: 980,559 | O31: 756,281 | P31: 885,520 | Q31: 1,014,028 | R31: 741,069 | S31: 909,163 | T31: 22.7
A32: 一、上级补助收入 | B32: =SUM(B33:B35) -> 285,753 | C32: 575,822 | D32: 292,023 | E32: 460,687 | F32: 301,872 | G32: 449,495 | H32: 447,971 | I32: 366,573 | J32: =(I32-H32)/H32*100 -> -18.2 | K32: 一、上解上级支出 | L32: =SUM(L33:L34) -> 57,194 | M32: 52,957 | N32: 64,194 | O32: 71,385 | P32: 65,314 | Q32: 69,314 | R32: 47,068 | S32: 55,226 | T32: 17.3
A33: 返还性收入 | B33: 27,503 | C33: ='1-1'!F35 -> 27,503 | D33: ='1-1'!I35 -> 27,503 | E33: ='1-1'!K35 -> 27,503 | F33: 27,503 | G33: 27,503 | H33: 27,503 | I33: 27,503 | J33: 0.0 | K33: 体制上解 | L33: 7,170 | M33: ='1-1'!X35 -> 7,170 | N33: ='1-1'!AA35 -> 7,170 | O33: ='1-1'!AI35 -> 7,170 | P33: 7,170 | Q33: 7,170 | R33: 7,170 | S33: 7,170 | T33: 0.0
A34: 一般性转移支付收入 | B34: 245,498 | C34: ='1-1'!F36 -> 414,643 | D34: ='1-1'!I36 -> 250,612 | E34: ='1-1'!K36 -> 318,037 | F34: 252,956 | G34: 366,217 | H34: 365,398 | I34: 292,179 | J34: -20.0 | K34: 专项上解 | L34: 50,024 | M34: ='1-1'!X36 -> 45,787 | N34: ='1-1'!AA36 -> 57,024 | O34: ='1-1'!AI36 -> 64,215 | P34: 58,144 | Q34: 62,144 | R34: 39,898 | S34: 48,056 | T34: 20.4
A35: 专项转移支付收入 | B35: 12,752 | C35: ='1-1'!F37 -> 133,676 | D35: ='1-1'!I37 -> 13,909 | E35: ='1-1'!K37 -> 115,147 | F35: 21,413 | G35: 55,775 | H35: 55,070 | I35: 46,891 | J35: -14.9 | K35: 二、补助街镇支出 | L35: 75,650 | M35: 97,391 | N35: =72512+3352 -> 75,864 | O35: 110,237 | P35: 68,623 | Q35: 67,825 | R35: 93,874 | S35: 78,822 | T35: -16.0
A36: 二、街镇上解收入 | K36: 三、债务还本支出 | L36: 47,300 | M36: ='1-1'!X37 -> 93,406 | N36: ='1-1'!AA37 -> 88,000 | O36: ='1-1'!AI37 -> 126,434 | P36: 207,200 | Q36: 207,200 | R36: 207,340 | S36: 421,700 | T36: 103.4
A37: 三、债券转贷收入 | B37: =SUM(B38:B39) -> 47,300 | C37: 117,380 | D37: 79,200 | E37: 135,424 | F37: 186,480 | G37: 210,580 | H37: 210,580 | I37: 379,530 | J37: =(I37-H37)/H37*100 -> 80.2 | K37: 四、补充预算稳定调节基金 | L37: 0 | M37: ='1-1'!X39 -> 118,776 | O37: ='1-1'!AI39 -> 18,401 | R37: 82,691
A38: 一般债券转贷收入 | B38: 47,300 | C38: ='1-1'!F39 -> 93,280 | D38: ='1-1'!I39 -> 79,200 | E38: ='1-1'!K39 -> 120,424 | F38: 186,480 | G38: 186,480 | H38: 186,480 | I38: 379,530 | J38: 103.5 | K38: 五、当年结转结余 | L38: 0 | M38: ='1-1'!X41 -> 279,726 | O38: ='1-1'!AI41 -> 157,299 | R38: 160,048
A39: 新增债券收入 | C39: ='1-1'!F40 -> 24,100 | E39: ='1-1'!K40 -> 15,000 | G39: 24,100 | H39: 24,100 | J39: -100.0 | K39: 六、区域间转移性支出 | R39: 1,100
A40: 四、上年结转结余 | B40: 181,543 | C40: ='1-1'!F42 -> 181,543 | D40: ='1-1'!I42 -> 279,726 | E40: ='1-1'!K42 -> 279,726 | F40: 157,299 | G40: 157,299 | H40: 157,299 | I40: 160,050 | J40: 1.7
A41: 五、预算稳定调节基金 | B41: 116,751 | C41: ='1-1'!F44 -> 47,137 | D41: ='1-1'!I44 -> 180,802 | E41: ='1-1'!K44 -> 30,000 | F41: 205,000 | G41: 205,000 | H41: 180,072 | I41: 102,600 | J41: -43.0
A42: 六、调入资金 | B42: =SUM(B43:B44) -> 229,720 | C42: 216,901 | D42: 136,720 | E42: 106,106 | F42: 133,748 | G42: 35,333 | H42: 35,333 | I42: 146,142 | J42: 313.6
A43: 政府性基金预算调入 | B43: 198,000 | C43: ='1-1'!F46 -> 198,000 | D43: ='1-1'!I46 -> 105,000 | E43: ='1-1'!K46 -> 105,000 | F43: 105,000 | G43: 16,361 | H43: 16,361 | I43: 111,142 | J43: 579.3
A44: 国有资本经营预算调入 | B44: 31,720 | C44: ='1-1'!F47 -> 18,901 | D44: ='1-1'!I47 -> 31,720 | E44: ='1-1'!K47 -> 1,106 | F44: 28,748 | G44: 18,972 | H44: 18,972 | I44: 35,000 | J44: 84.5
A45: 七、区域间转移性收入 | H45: 1,200 | J45: -100.0
A46: 收 入 总 计 | B46: =B31+B32+B36+B37+B40+B41+B42 -> 1,083,673 | C46: =C31+C32+C36+C37+C40+C41+C42 -> 1,365,100 | D46: =D31+D32+D36+D37+D40+D41+D42 -> 1,208,617 | E46: =E31+E32+E36+E37+E40+E41+E42 -> 1,240,037 | F46: =F31+F32+F36+F37+F40+F41+F42+F45 -> 1,226,656 | G46: 1,358,367 | H46: 1,333,190 | I46: 1,464,911 | J46: 9.9 | K46: 支 出 总 计 | L46: =L31+L32+L35+L36+L37+L38 -> 1,083,673 | M46: 1,360,700 | N46: 1,208,617 | O46: 1,240,037 | P46: =P31+P32+P35+P36+P37+P38+P39 -> 1,226,656 | Q46: 1,358,367 | R46: 1,333,190 | S46: 1,464,911 | T46: =(S46-R46)/R46*100 -> 9.9
M47: =C46-M46 -> 4400

Sheet 1-5
A1: 表1-5
A2: 重庆市綦江区2026年区本级政府性基金预算收支草案表（表五）
A3: 制表：綦江区财政局 | P3: 单位：万元
A4: 预算收入 | I4: 预算支出
A5: 项目 | B5: 2024年 预算草案 | C5: 2024年 执行数 | D5: 2025年 预算草案 | E5: 2025年 调整预算 | F5: 2025年 执行数 | G5: 2026年 预算草案 | H5: 比上年±% | I5: 项目 | J5: 2024年 预算草案 | K5: 2024年 执行数 | L5: 2025年 预算草案 | M5: 2025年 调整预算 | N5: 2025年 执行数 | O5: 2026年 预算草案 | P5: 比上年±%
A6: 1030146 国有土地收益基金 | B6: ='1-2'!C7 -> 19,800 | C6: ='1-2'!E7 -> 19,702 | D6: 15,360 | E6: 15,360 | F6: 10,745 | G6: 13,428 | H6: =(G6-F6)/F6*100 -> 25.0 | I6: 207 文化体育与传媒 | O6: 0
A7: 1030147 农业土开发资金 | B7: ='1-2'!C8 -> 1,000 | C7: ='1-2'!E8 -> 323 | D7: 1,000 | E7: 1,000 | F7: 653 | G7: 874 | H7: 33.8 | I7: 208 社会保障和就业
A8: 1030148 国有土地使用权出让 | B8: ='1-2'!C9 -> 307,700 | C8: ='1-2'!E9-1480 -> 303,919 | D8: 237,524 | E8: 214,841 | F8: 212,413 | G8: 209,498 | H8: -1.4 | I8: 210 卫生健康 | L8: 18,616 | M8: 18,616 | N8: 12,365 | O8: 6,251 | P8: =(O8-N8)/N8*100 -> -49.4
A9: 1030156 城市基础设施配套费收入 | B9: ='1-2'!C10 -> 9,850 | C9: ='1-2'!E10 -> 3,823 | D9: 3,000 | E9: 14,000 | F9: 14,542 | G9: 13,500 | H9: -7.2 | I9: 211 节能环保 | L9: 9,240 | M9: 29,929 | N9: 5,038 | O9: 24,242 | P9: 381.2
A10: 1030178 污水处理费收入 | B10: ='1-2'!C11 -> 600 | C10: ='1-2'!E11 -> 97 | D10: 2,886 | E10: 2,886 | F10: 3,286 | G10: 4,000 | H10: 21.7 | I10: 212 城乡社区 | J10: ='1-2'!M10+'1-2'!N10+'1-2'!O10+'1-2'!P10+'1-2'!Q10 -> 191,222 | K10: 173,970 | L10: 116,350 | M10: 294,292 | N10: 216,993 | O10: 224,705 | P10: 3.6
A11: 1050402 专项债务收益 | B11: ='1-2'!C12 -> 16,836 | C11: ='1-2'!E12 -> 800 | D11: 20,700 | E11: 34,085 | F11: 40,495 | G11: 109,434 | H11: 170.2 | I11: 213 农林水 | J11: ='1-2'!M11+'1-2'!N11+'1-2'!O11+'1-2'!P11+'1-2'!Q11 -> 699 | K11: 68 | L11: 580 | M11: 14,121 | N11: 5,301 | O11: 9,133 | P11: 72.3
I12: 214 交通运输 | J12: ='1-2'!M12+'1-2'!N12+'1-2'!O12+'1-2'!P12+'1-2'!Q12 -> 180 | M12: 3,675 | N12: 386 | O12: 2,263 | P12: 485.7
I13: 215 资源勘探信息等 | M13: 1,305 | N13: 458 | O13: 3,289 | P13: 618.9
I14: 221 住房保障 | J14: ='1-2'!M15+'1-2'!N15+'1-2'!O15+'1-2'!P15+'1-2'!Q15 -> 5,177 | K14: 140,722 | L14: 31,666 | M14: 142,942 | N14: 119,642 | O14: 848 | P14: -99.3
I15: 229 其他支出 | J15: 44,110 | K15: ='1-2'!U16 -> 35,913 | L15: 56,740 | M15: 56,740 | N15: 48,734 | O15: 16,710 | P15: -65.7
I16: 232 债务付息 | K16: ='1-2'!U17 -> 2 | M16: 0 | N16: 2 | O16: 62,059
I17: 233 债务发行费用 | O17: 0
A18: 收 入 合 计 | B18: =SUM(B6:B11) -> 355,786 | C18: 328,664 | D18: 280,470 | E18: 282,172 | F18: 282,134 | G18: 350,734 | H18: =(G18-F18)/F18*100 -> 24.3 | I18: 支 出 合 计 | J18: =SUM(J5:J17) -> 241,388 | K18: =SUM(K5:K17) -> 350,675 | L18: =SUM(L6:L16) -> 233,192 | M18: 561,620 | N18: 408,920 | O18: =SUM(O6:O17) -> 349,500 | P18: =(O18-N18)/N18*100 -> -14.5
A19: 一、上级补助收入 | B19: ='1-2'!C21 -> 4,200 | C19: ='1-2'!E21 -> 69,410 | D19: 4,062 | E19: 53,349 | F19: 54,852 | G19: 9,818 | H19: -82.1 | I19: 一、上解上级支出 | J19: ='1-2'!M21 -> 17,015 | K19: ='1-2'!U21 -> 16,765 | L19: 14,800 | M19: 14,800 | N19: 11,870 | O19: 12,015 | P19: =(O19-N19)/N19*100 -> 1.2
A20: 二、街镇上解收入 | I20: 二、补助街镇支出 | J20: =5815-3264 -> 2,551 | K20: 2,058 | L20: 2,884 | M20: 2,884 | N20: 7,141 | O20: 4,553 | P20: -36.2
A21: 三、债券转贷收入 | C21: ='1-2'!E22 -> 612,100 | E21: 198,700 | F21: 198,700 | G21: 280,620 | H21: 41.2 | I21: 三、债务还本支出 | K21: ='1-2'!U22 -> 470,300 | M21: 9,900 | N21: 9,900 | O21: 316,800 | P21: 3,100.0
A22: 四、上年结转结余 | B22: ='1-2'!C24 -> 5,968 | C22: ='1-2'!E24 -> 5,968 | D22: 71,344 | E22: 71,344 | F22: 71,344 | G22: 152,838 | H22: 114.2 | I22: 四、调出资金 | J22: ='1-2'!M23 -> 105,000 | K22: ='1-2'!U23 -> 105,000 | L22: 105,000 | M22: 16,361 | N22: 16,361 | O22: 111,142 | P22: 579.3
A23: 五、调入资金 | I23: 五、当年结转结余 | K23: ='1-2'!U25 -> 71,344 | N23: 152,838 | P23: -100.0
A25: 收 入 总 计 | B25: =B18+B19+B20+B21+B22+B23 -> 365,954 | C25: 1,016,142 | D25: 355,876 | E25: 605,565 | F25: 607,030 | G25: 794,010 | H25: =(G25-F25)/F25*100 -> 30.8 | I25: 支 出 总 计 | J25: =SUM(J18:J23) -> 365,954 | K25: 1,016,142 | L25: 355,876 | M25: 605,565 | N25: 607,030 | O25: 794,010 | P25: =(O25-N25)/N25*100 -> 30.8

Sheet 1-6
A1: 表1-6
A2: 重庆市綦江区2026年国有资本经营预算收支草案表（表三）
A3: 制表：綦江区财政局 | T3: 单位：万元
A4: 预算收入 | K4: 预算支出
A5: 项目 | B5: 2023年 预算草案 | C5: 2023年 执行数 | D5: 2024年 预算草案 | E5: 2024执行数 | F5: 2025年 预算草案 | G5: 2025年 调整预算 | H5: 2025执行数 | I5: 2026年 预算草案 | J5: 比上年±% | K5: 项目 | L5: 2023年 预算草案 | M5: 2023年 执行数 | N5: 2024年 预算草案 | O5: 2024执行数 | P5: 2025年 预算草案 | Q5: 2025年 调整预算 | R5: 2025执行数 | S5: 2026年 预算草案 | T5: 比上年±%
A6: 1030601 利润收入 | B6: 31,720 | C6: 18,901 | D6: 31,720 | E6: 1,106 | F6: 28,748 | G6: 18,972 | H6: 18,972 | I6: 35,000 | J6: =(I6-H6)/H6*100 -> 84.5 | K6: 208 社会保障和就业
A7: 1030602 股利、股息收入 | K7: 22301 解决历史遗留问题及改革成本 | L7: 130 | M7: 0 | N7: =130+216 -> 346 | O7: 246 | P7: 314 | Q7: 314 | R7: 206 | S7: 321 | T7: =(S7-R7)/R7*100 -> 55.8
A8: 1030603 产权转让收入 | K8: 22302 国有企业资本金注入
A9: 1030604 清算收入 | K9: 22303 国有企业政策性补贴
A10: 1030698 其他国有资本经营预算收入 | K10: 22304 金融国有资本经营预算支出
K11: 22399 其他国有资本经营预算支出
A13: 收 入 合 计 | B13: =SUM(B6:B10) -> 31,720 | C13: 18,901 | D13: 31,720 | E13: =E6 -> 1,106 | F13: 28,748 | G13: 18,972 | H13: 18,972 | I13: 35,000 | J13: =(I13-H13)/H13*100 -> 84.5 | K13: 支 出 合 计 | L13: =SUM(L6:L11) -> 130 | M13: 0 | N13: 346 | O13: 246 | P13: =SUM(P6:P12) -> 314 | Q13: 314 | R13: 206 | S13: 321 | T13: =(S13-R13)/R13*100 -> 55.8
A14: 一、上级补助收入 | D14: 216 | E14: 216 | F14: 214 | G14: 214 | H14: 214 | I14: 213 | J14: -0.5 | K14: 一、调出资金 | L14: 31,720 | M14: 18,901 | N14: 31,720 | O14: 1,106 | P14: 28,748 | Q14: 18,972 | R14: 18,972 | S14: 35,000 | T14: 84.5
A15: 二、上年结转结余 | B15: 130 | C15: 130 | D15: 130 | E15: 130 | F15: 100 | G15: 100 | H15: 100 | I15: 108 | J15: 8.0 | K15: 二、当年结转结余 | M15: 130 | O15: 100 | R15: 108 | T15: -100.0
A17: 收 入 总 计 | B17: =B13+B14+B15 -> 31,850 | C17: 19,031 | D17: =SUM(D13:D15) -> 32,066 | E17: 1,452 | F17: 29,062 | G17: 19,286 | H17: 19,286 | I17: 35,321 | J17: =(I17-H17)/H17*100 -> 83.1 | K17: 支 出 总 计 | L17: =L13+L14+L15 -> 31,850 | M17: =M13+M14+M15 -> 19,031 | N17: =SUM(N13:N16) -> 32,066 | O17: =O14+O15+O13 -> 1,452 | P17: 29,062 | Q17: 19,286 | R17: 19,286 | S17: 35,321 | T17: =(S17-R17)/R17*100 -> 83.1
A18: 说明：全区国有资本经营预算收支皆为区本级收支。

Sheet 2
A1: 表2
A2: 重庆市綦江区2026年一般公共预算收入草案表
A3: 制表：綦江区财政局 | L3: 单位：万元
A4: 项 目 | B4: 2024年 决算数 | C4: 2025年预算数 | F4: 2025年调整预算数 | G4: 2025年决算数 | I4: 2026年预算草案 | L4: 备注
C5: 金额 | D5: 增幅 | I5: 分成 | J5: 比上年±额 | K5: 比上年±%
A6: 一般公共预算收入合计 | B6: =B7+B8 -> 228,677 | C6: 242,398 | D6: =(C6/B6-1)*100 -> 6.0 | F6: 0 | G6: 301,297 | I6: =I7+I8 -> 310,316 | J6: =I6-G6 -> 9,019 | K6: =J6/G6*100 -> 3.0
A7: 税收收入 | B7: =B9 -> 121,250 | C7: 128,525 | D7: 6.0 | F7: 0 | G7: 133,607 | I7: =I9 -> 141,623 | J7: 8,016 | K7: 6.0
A8: 非税收入 | B8: =B23 -> 107,427 | C8: 113,873 | D8: 6.0 | F8: 0 | G8: 167,690 | I8: =I23 -> 168,693 | J8: 1,003 | K8: 0.6
A9: 税收收入 | B9: =SUM(B10:B22) -> 121,250 | C9: 128,525 | D9: 6.0 | F9: 0 | G9: 133,607 | I9: =SUM(I10:I22) -> 141,623 | J9: 8,016 | K9: 6.0
A10: 增值税 | B10: 37,148 | C10: 37,700 | D10: 1.5 | G10: 37,997 | I10: 36,826 | J10: -1,171 | K10: -3.1
A11: 企业所得税 | B11: 10,205 | C11: 7,560 | D11: -25.9 | G11: 17,849 | I11: 16,400 | J11: -1,449 | K11: -8.1
A12: 个人所得税 | B12: 2,613 | C12: 2,400 | D12: -8.2 | G12: 2,460 | I12: 2,304 | J12: -156 | K12: -6.3
A13: 资源税 | B13: 2,446 | C13: 5,200 | D13: 112.6 | G13: 3,498 | I13: 4,300 | J13: 802 | K13: 22.9
A14: 城建税 | B14: 8,243 | C14: 8,550 | D14: 3.7 | G14: 8,401 | I14: 7,950 | J14: -451 | K14: -5.4
A15: 房产税 | B15: 12,373 | C15: 19,600 | D15: 58.4 | G15: 12,875 | I15: 15,400 | J15: 2,525 | K15: 19.6
A16: 印花税 | B16: 3,229 | C16: 5,550 | D16: 71.9 | G16: 4,062 | I16: 4,200 | J16: 138 | K16: 3.4
A17: 土地使用税 | B17: 19,127 | C17: 20,400 | D17: 6.7 | G17: 19,417 | I17: 16,200 | J17: -3,217 | K17: -16.6
A18: 土地增值税 | B18: 5,868 | C18: =400+779 -> 1,179 | D18: -79.9 | G18: 8,196 | I18: 10,900 | J18: 2,704 | K18: 33.0
A19: 耕地占用税 | B19: 7,553 | C19: 8,246 | D19: 9.2 | G19: 3,027 | I19: =10900+113 -> 11,013 | J19: 7,986 | K19: 263.8
A20: 契税 | B20: 11,495 | C20: 11,500 | D20: 0.0 | G20: 15,298 | I20: 15,600 | J20: 302 | K20: 2.0
A21: 环保税 | B21: 948 | C21: 640 | D21: -32.5 | G21: 514 | I21: 530 | J21: 16 | K21: 3.1
A22: 其他税收（营改增） | B22: 2 | G22: 13 | J22: -13 | K22: -100.0
A23: 非税收入 | B23: =B24+B27+B33+B37+B38+B39 -> 107,427 | C23: 113,873 | D23: 6.0 | F23: 0 | G23: 167,690 | I23: =I24+I27+I33+I37+I38+I39 -> 168,693 | J23: 1,003 | K23: 0.6
A24: 行政事业性收费 | B24: 12,679 | C24: 21,400 | D24: 68.8 | G24: 24,865 | I24: 7,000 | J24: -17,865 | K24: -71.8
A25: 人防 | B25: 150 | C25: 40 | D25: -73.3 | G25: 400 | I25: 500 | J25: 100 | K25: 25.0
A26: 其他 | B26: 12,529 | C26: 21,360 | D26: 70.5 | G26: =G24-G25 -> 24,465 | I26: 6,500 | J26: -17,965 | K26: -73.4
A27: 专项收入 | B27: 9,070 | C27: 9,564 | D27: 5.4 | G27: 9,231 | I27: 6,500 | J27: -2,731 | K27: -29.6
A28: 教育费附加 | B28: 2,769 | C28: 2,664 | D28: -3.8 | G28: 2,805 | I28: 3,000 | J28: 195 | K28: 7.0
A29: 残疾人保障金 | B29: 3,351 | C29: 2,900 | D29: -13.5 | G29: 3,516 | I29: 3,500 | J29: -16 | K29: -0.5
A30: 教育发展资金 | B30: 1,475 | C30: 2,000 | D30: 35.6 | G30: 1,269 | I30: 2,000 | J30: 731 | K30: 57.6
A31: 农田水利建设资金 | B31: 1,475 | C31: 2,000 | D31: 35.6 | G31: 1,269 | I31: 2,000 | J31: 731 | K31: 57.6
A32: 森林植被恢复费 | G32: 372 | I32: 0 | J32: -372 | K32: -100.0
A33: 国有资产有偿使用收入 | B33: 47,862 | C33: =73022+108 -> 73,130 | D33: 52.8 | G33: 107,467 | I33: =137910+393 -> 138,303 | J33: 30,836 | K33: 28.7
A34: 矿产资源专项收入 | B34: 1,524 | C34: 3,115 | D34: 104.4 | G34: 335 | I34: 700 | J34: 365 | K34: 109.0
A35: 国有资产收入 | B35: 22,386 | C35: =64712+108 -> 64,820 | D35: 189.6 | G35: =G33-G34-G36 -> 105,087 | I35: =125910+392 -> 126,302 | J35: 21,215 | K35: 20.2
A36: 其他各单位 | B36: 23,539 | C36: 5,195 | D36: -77.9 | G36: 2,045 | I36: 2,600 | J36: 555 | K36: 27.1
A37: 罚没收入 | B37: 26,931 | C37: 8,832 | D37: -67.2 | G37: 18,237 | I37: 15,620 | J37: -2,617 | K37: -14.3
A38: 捐赠收入 | B38: 150 | C38: 5 | D38: -96.7 | G38: 22 | J38: -22 | K38: -100.0
A39: 其他收入 | B39: 10,735 | C39: 942 | D39: -91.2 | G39: =7849+19 -> 7,868 | I39: 1,270 | J39: -6,598 | K39: -83.9

Sheet 3
A1: 表3
A2: 重庆市綦江区2026年一般公共预算财力草案表
A3: 制表：綦江区财政局 | I3: 单位：万元
A4: 预算科目 | B4: 2024年 决算数 | C4: 2025年预算数 | E4: 2025年 决算数 | F4: 2026年全口径 | I4: 备注
C5: 全口径 | D5: 纳入预算 | F5: 金额 | G5: 其中纳入预算 | H5: 比上年±额
A6: 一、一般公共预算总财力（分性质） | B6: =B7+B10+B35+B36+B37+B38+B41+B46+B45 -> 1,046,798 | C6: =C7+C10+C35+C36+C37+C38+C41+C45 -> 1,142,361 | D6: 977,125 | E6: 507,744 | F6: 1,151,427 | G6: 1,001,593 | H6: =F6-E6 -> 643,683
A7: （一）一般公共预算收入 | B7: ='2'!B6 -> 228,677 | C7: =C8+C9 -> 242,398 | D7: 242,398 | E7: 0 | F7: 310,316 | G7: 310,316 | H7: 310,316
A8: 1、税收收入 | B8: ='2'!B7 -> 121,250 | C8: ='[24]1'!C7 -> 113,873 | D8: =C8 -> 113,873 | F8: ='[24]1'!I7 -> 168,693 | G8: =F8 -> 168,693 | H8: 168,693
A9: 2、非税收入 | B9: ='2'!B8 -> 107,427 | C9: ='[24]1'!C8 -> 128,525 | D9: =C9 -> 128,525 | F9: ='[24]1'!I8 -> 141,623 | G9: =F9 -> 141,623 | H9: 141,623
A10: （二）上级补助收入 | B10: =B11+B34 -> 460,687 | C10: 467,108 | D10: 301,872 | E10: 447,971 | F10: 516,407 | G10: 366,573 | H10: 68,436
A11: 1、一般性转移支付收入 | B11: =SUM(B12:B22)+B33 -> 345,540 | C11: 351,005 | D11: 280,459 | E11: 388,546 | F11: 408,732 | G11: 319,682 | H11: 20,186
A12: （1）返还性收入 | B12: 27,503 | C12: 27,503 | D12: 27,503 | E12: 27,503 | F12: 27,503 | G12: 27,503 | H12: 0
A13: （2）均衡性转移支付收入 | B13: 73,960 | C13: 70,360 | D13: 50,937 | E13: 100,948 | F13: 105,275 | G13: 75,275 | H13: 4,327
A14: （3）县级基本财力保障机制 | B14: 51,665 | C14: 51,665 | D14: 35,717 | E14: 35,717 | F14: 51,665 | G14: 51,665 | H14: 15,948
A15: （4）结算补助收入 | B15: 6,494 | C15: 6,503 | D15: 5,547 | E15: 10,035 | F15: 8,583 | G15: 7,331 | H15: -1,452
A16: （5）巩固脱贫攻坚成果衔接乡村振兴转移支付收入 | B16: 7,946 | C16: 7,946 | D16: 936 | E16: 1,395 | F16: 6,491 | G16: 4,491 | H16: 5,096
A17: （6）资源枯竭型城市转移支付收入 | B17: 1,259 | C17: 1,259 | D17: 1,259 | E17: 1,259 | F17: 1,259 | G17: 1,259 | H17: 0
A18: （7）体制补助收入 | B18: 13 | C18: 430 | D18: 20 | E18: 20 | F18: 20 | H18: 0
A19: （8）产粮（油）大县转移资金收入 | B19: 80 | C19: 2,711 | D19: 2,531 | E19: 2,732 | F19: 2,731 | G19: 2,531 | H19: -1
A20: （9）固定数额补助收入 | B20: 19,539 | C20: 19,539 | D20: 19,539 | E20: 19,539 | F20: 19,539 | G20: 19,539 | H20: 0
A21: （10）革、民、边、贫地区转移支付收入 | H21: 0
A22: （11）共同事权转移支付收入 | B22: =SUM(B23:B32) -> 156,931 | C22: 162,642 | D22: 136,122 | E22: 189,050 | F22: 185,365 | G22: 129,787 | H22: -3,685
A23: 教育共同事权 | B23: 19,496 | C23: 19,496 | D23: 18,204 | E23: 20,311 | F23: 18,889 | G23: 16,889 | H23: -1,422
A24: 文化旅游共同事权 | B24: 658 | C24: 599 | D24: 582 | E24: 976 | F24: 1,215 | G24: 915 | H24: 239
A25: 社保就业共同事权 | B25: 43,088 | C25: 42,154 | D25: 39,682 | E25: 43,108 | F25: 24,318 | G25: 18,318 | H25: -18,790
A26: 医疗卫生健康共同事权 | B26: 19,305 | C26: 19,473 | D26: 18,661 | E26: 25,545 | F26: 28,703 | G26: 24,703 | H26: 3,158
A27: 节能环保共同事权 | B27: 332 | C27: 332 | D27: 158 | E27: 2,577 | F27: 5,630 | G27: 1,383 | H27: 3,053
A28: 农林水共同事权 | B28: 34,339 | C28: 30,469 | D28: 14,973 | E28: 16,561 | F28: 51,192 | G28: 24,084 | H28: 34,631
A29: 住房保障共同事权 | B29: 19,491 | C29: 30,174 | D29: 25,959 | E29: 50,288 | F29: 20,978 | G29: 23,454 | H29: -29,310
A30: 公共安全共同事权 | B30: 3,937 | C30: 3,937 | D30: 2,834 | E30: 4,100 | F30: 4,131 | G30: 3,181 | H30: 31
A31: 交通共同事权 | B31: 15,629 | C31: 15,629 | D31: 14,790 | E31: 24,799 | F31: 30,095 | G31: 16,646
A32: 其他共同事权 | B32: 657 | C32: 380 | D32: 280 | F32: 214 | G32: 214 | H32: =F32-E32 -> 214
A33: （12）其他一般性转移支付收入 | B33: 150 | E33: 130 | F33: =G33 -> 301 | G33: 301 | H33: 171
A34: 2、专项转移支付收入 | B34: 115,147 | E34: 654 | F34: =G34+48735+12049 -> 107,675 | G34: =34084+12807 -> 46,891 | H34: 107,021
A35: (三)债券转贷收入 | B35: 135,424 | C35: 186,480 | D35: 186,480 | E35: 348 | F35: 379,530 | G35: =(G36*0.9)*-1 -> 379,530 | H35: 379,182
A36: (四)债务还本支出 | B36: -126,434 | C36: -207,200 | D36: -207,200 | E36: 59,425 | F36: -421,700 | G36: -421,700 | H36: -481,125
A37: (五)上年结转 | B37: 295,321 | C37: 180,141 | D37: 180,141 | F37: 173,358 | G37: =173358 -> 173,358 | H37: 173,358
A38: (六)调入资金 | B38: =B39+B40 -> 106,106 | C38: 133,748 | D38: 133,748 | E38: 0 | F38: 146,142 | G38: 146,142 | H38: 146,142
A39: 1、政府性基金预算调入 | B39: 105,000 | C39: 105,000 | D39: 105,000 | F39: 111,142 | G39: 111,142 | H39: 111,142
A40: 2、国有资本经营预算调入 | B40: 1,106 | C40: 28,748 | D40: 28,748 | F40: 35,000 | G40: 35,000 | H40: 35,000
A41: (七)上解支出 | B41: =SUM(B42:B43) -> -71,385 | C41: =SUM(C42:C43) -> -65,314 | D41: =SUM(D42:D43) -> -65,314 | E41: =SUM(E42:E43) -> 0 | F41: -55,226 | G41: =G42+G43 -> -55,226 | H41: -55,226
A42: 1、 体制上解 | B42: -7,170 | C42: -7,170 | D42: -7,170 | F42: -7,170 | G42: -7,170 | H42: -7,170
A43: 2、 专项上解 | B43: -64,215 | C43: -58,144 | D43: -58,144 | F43: -48,056 | G43: -48,056 | H43: -48,056
A44: （八）预算稳定调节基金 | B44: 0 | H44: 0
A45: 1、动用预算稳定调节基金（调出使用） | C45: 205,000 | D45: 205,000 | F45: =G45 -> 102,600 | G45: 102,600 | H45: 102,600
A46: 2、安排预算稳定调节基金（补充进入） | B46: 18,401 | H46: 0
A47: 二、一般公共预算总财力（分级别） | B47: =B6 -> 1,046,798 | C47: 1,142,361 | D47: 977,125 | E47: 507,744 | F47: 1,151,427 | G47: 1,001,593 | H47: 643,683
A48: （一）区本级 | B48: =B47-B49 -> 943,224 | C48: 1,048,781 | D48: 883,545 | E48: 507,744 | F48: 1,057,497 | G48: 907,663 | H48: 549,753
A49: （二）街镇级 | B49: 103,573 | C49: =93580 -> 93,580 | D49: =93580 -> 93,580 | F49: =G49 -> 93,930 | G49: =62622+13308+18000 -> 93,930

Sheet 4
A1: 表4
A2: 重庆市綦江区2026年区本级一般公共预算支出草案表
A3: 制表：綦江区财政局 | T3: 单位：万元
A4: 一般公共预算支出概览 | B4: 2023年决算 | C4: 2024年预算数 | D4: 2024年 预算调整 | E4: 2023年支出预算调整草案 | H4: 2025年全口径支出 | K4: 2025年预算数 | O4: 2025年 决算数 | P4: 2026年纳入预算草案 | T4: 备注
E5: 本级资金 | F5: 上级资金 | G5: 下沉街镇 | H5: 金额 | I5: 本级资金 | J5: 上级资金 | L5: 本级资金 | M5: 上级资金 | N5: 结转专项 | P5: 合计 | Q5: 本级资金 | R5: 上级资金 | S5: 结转专项
A6: 区本级合计 | B6: =B7+B25+B36+B50+B70 ->  | K6: 883,545 | P6: 907,663 | Q6: 543,046 | R6: 168,781 | S6: 195,836
A7: 一、保工资 | B7: =B8+B15 -> 263,603 | C7: 251,619 | D7: 251,619 | E7: 293,626 | F7: 1,598 | G7: 0 | H7: =SUM(I7:J7) -> 279,581 | I7: =I8+I15 -> 279,581 | J7: 0 | K7: =SUM(L7:N7) -> 308,232 | L7: 308,232 | M7: 0 | N7: 0 | P7: =P8+P15 -> 302,277 | Q7: =Q8+Q15 -> 302,277
A8: （一）个人待遇 | B8: =SUM(B9:B14) -> 205,432 | C8: 191,988 | D8: 191,988 | E8: 233,539 | F8: 1,598 | G8: 0 | H8: 205,156 | I8: =SUM(I9:I14) -> 205,156 | J8: 0 | K8: 233,806 | L8: 233,806 | M8: 0 | N8: 0 | P8: =SUM(P9:P14) -> 212,501 | Q8: =SUM(Q9:Q14) -> 212,501
A9: 1.基本工资、基础绩效 | B9: 75,561 | C9: 78,860 | D9: 78,860 | E9: 81,845 | F9: 191 | H9: 91,039 | I9: 91,039 | K9: 91,039 | L9: =78546.6375+8328+4164 -> 91,039 | P9: =Q9+R9+S9 -> 86,384 | Q9: 86,384
A10: 2.津补贴、奖励绩效 | B10: 25,421 | C10: 25,491 | D10: 25,491 | E10: 27,096 | F10: 1,113 | H10: 25,557 | I10: 25,557 | K10: 25,557 | L10: 25,557 | P10: 25,206 | Q10: 25,206
A11: 3.年终一次性奖金 | B11: 917 | C11: 877 | D11: 877 | E11: 822 | F11: 0 | H11: 872 | I11: 872 | K11: 872 | L11: 872 | P11: 981 | Q11: 981
A12: 4.地方补丁政策 | B12: 103,351 | C12: 86,621 | D12: 86,621 | E12: 123,503 | F12: 295 | H12: 87,560 | I12: 87,560 | K12: 116,151 | L12: =87560.1543+19658+8933 -> 116,151 | P12: 99,212 | Q12: =88231.5222+2100+8880 -> 99,212
A13: 5.离休费、离休特需、离退休活动费 | B13: 177 | C13: 130 | D13: 130 | E13: 178 | F13: 0 | H13: 125 | I13: 125 | K13: 129 | L13: 129 | P13: 149 | Q13: 149
A14: 6.其他（独子费等） | B14: 4 | C14: 9 | D14: 9 | E14: 95 | F14: 0 | H14: 2 | I14: 2 | K14: 58 | L14: 58 | P14: 571 | Q14: 571
A15: （二）单位缴费 | B15: =SUM(B16:B24) -> 58,172 | C15: 59,631 | D15: 59,631 | E15: 60,087 | F15: 0 | G15: 0 | H15: 74,426 | I15: =SUM(I16:I24) -> 74,426 | K15: 74,426 | L15: 74,426 | M15: 0 | N15: 0 | P15: =SUM(P16:P24) -> 89,776 | Q15: =SUM(Q16:Q24) -> 89,776
A16: 1.养老保险 | B16: 18,573 | C16: 18,668 | D16: 18,668 | E16: 19,686 | F16: 0 | H16: 26,618 | I16: 26,618 | K16: 26,618 | L16: =24619.778367+1332.48+666.24 -> 26,618 | P16: =Q16+R16+S16 -> 39,103 | Q16: =25602.906915+13500 -> 39,103
A17: 2.生育保险 | B17: 346 | C17: 549 | D17: 549 | E17: 576 | F17: 0 | H17: 612 | I17: 612 | K17: 612 | L17: =549.288922+41.64+20.82 -> 612 | P17: 585 | Q17: 585
A18: 3.医疗保险 | B18: 11,154 | C18: 12,228 | D18: 12,228 | E18: 11,730 | F18: 0 | H18: 13,480 | I18: 13,480 | K18: 13,480 | L18: =12293.572215+791.16+395.58 -> 13,480 | P18: 12,100 | Q18: 12,100
A19: 4.工伤保险 | B19: 355 | C19: 329 | D19: 329 | E19: 345 | F19: 0 | H19: 367 | I19: 367 | K19: 367 | L19: =329.727296+24.984+12.492 -> 367 | P19: 351 | Q19: 351
A20: 5.失业保险 | P20: 762 | Q20: 762
A21: 6.医疗补助 | B21: 3,218 | C21: 3,219 | D21: 3,219 | E21: 3,213 | F21: 0 | H21: =SUM(I21:J21) -> 3,286 | I21: 3,286 | K21: =SUM(L21:N21) -> 3,286 | L21: 3,286 | P21: 3,320 | Q21: 3,320
A22: 7.职业年金 | B22: 10,851 | C22: 9,334 | D22: 9,334 | E22: 9,061 | F22: 0 | H22: 13,314 | I22: 13,314 | K22: 13,314 | L22: =12315.114945+666.24+333.12 -> 13,314 | P22: 17,302 | Q22: =12801.722257+4500 -> 17,302
A23: 8.住房公积金 | B23: 12,161 | C23: 13,653 | D23: 13,653 | E23: 13,794 | F23: 0 | H23: 15,092 | I23: 15,092 | K23: 15,092 | L23: =13592.783316+999.36+499.68 -> 15,092 | P23: 14,612 | Q23: 14,612
A24: 9.残疾人保障金 | B24: 1,513 | C24: 1,651 | D24: 1,651 | E24: 1,681 | F24: 0 | H24: 1,656 | I24: 1,656 | K24: 1,656 | L24: 1,656 | P24: 1,642 | Q24: 1,642
A25: 二、保运转 | B25: =SUM(B26:B35) -> 37,097 | C25: 31,264 | D25: 31,264 | E25: 32,327 | F25: 5,524 | G25: 0 | H25: 36,127 | I25: =SUM(I26:I35) -> 31,030 | J25: 5,097 | K25: 37,464 | L25: 31,773 | M25: 5,561 | N25: 130 | P25: =SUM(P26:P35) -> 30,479 | Q25: 25,078 | R25: 5,401
A26: 1.包干公用经费 | B26: 9,591 | C26: 9,896 | D26: 9,896 | E26: 10,210 | H26: 9,592 | I26: 9,592 | K26: 9,592 | L26: 9,592 | P26: =Q26+R26+S26 -> 9,456 | Q26: =9455.5 -> 9,456
A27: 2.福利费 | B27: 2,470 | C27: 2,467 | D27: 2,467 | E27: 2,203 | H27: 2,568 | I27: 2,568 | K27: 2,942 | L27: =2567.549772+249.84+124.92 -> 2,942 | P27: 2,846 | Q27: 2,846
A28: 3.工会经费 | B28: 1,190 | C28: 1,978 | D28: 1,978 | E28: 1,954 | H28: 1,970 | I28: 1,970 | K28: 2,220 | L28: =1970.224229+166.56+83.28 -> 2,220 | P28: 2,068 | Q28: 2,068
A29: 4.公务交通补贴 | B29: 1,966 | C29: 1,993 | D29: 1,993 | E29: 2,096 | H29: 1,972 | I29: 1,972 | K29: 1,972 | L29: 1,972 | P29: 1,995 | Q29: 1,995
A30: 5.公务用车运行维护费 | B30: 1,429 | C30: 1,557 | D30: 1,557 | E30: 1,548 | H30: 1,310 | I30: 1,310 | K30: 1,310 | L30: 1,310 | P30: 1,457 | Q30: 1,457
A31: 6.培训费 | B31: 1,414 | C31: 1,482 | D31: 1,482 | E31: 1,429 | H31: 1,478 | I31: 1,478 | K31: 1,665 | L31: =1477.674702+124.92+62.46 -> 1,665 | P31: 1,552 | Q31: 1,552
A32: 7.生均公用经费 | B32: 9,719 | C32: 2,911 | D32: 2,911 | E32: 3,236 | F32: 5,524 | H32: 7,954 | I32: 2,857 | J32: 5,097 | K32: 8,547 | L32: 2,857 | M32: 5,561 | N32: 130 | P32: 8,101 | Q32: 2,700 | R32: 5,401
A33: 8.通讯费 | B33: 686 | C33: 698 | D33: 698 | E33: 723 | H33: 693 | I33: 693 | K33: 693 | L33: 693 | P33: 693 | Q33: 693
A34: 9.人数较少单位补丁 | B34: 788 | C34: 220 | D34: 220 | E34: 896 | H34: 260 | I34: 260 | K34: 260 | L34: 260 | P34: 150 | Q34: 150
A35: 10.非在编人员 | B35: 7,844 | C35: 8,062 | D35: 8,062 | E35: 8,031 | H35: 8,332 | I35: =7849.5376+482 -> 8,332 | K35: 8,262 | L35: 8,262 | P35: 2,161 | Q35: =2115.012+45.96 -> 2,161
A36: 三、保民生支出 | B36: =SUM(B37:B49) -> 106,297 | C36: 96,425 | D36: 96,425 | E36: 32,172 | F36: 63,870 | G36: 0 | H36: 108,715 | I36: =SUM(I37:I49) -> 37,596 | J36: 71,119 | K36: 108,715 | L36: 37,596 | M36: 71,119 | N36: 0 | P36: =SUM(P37:P49) -> 110,147 | Q36: 45,338 | R36: 64,808
A37: 1.低保、困难群众补助等 | B37: 24,886 | C37: 24,992 | D37: 24,992 | E37: 9,171 | F37: 18,144 | H37: 29,141 | I37: 9,697 | J37: 19,444 | K37: 29,141 | L37: =I37 -> 9,697 | M37: 19,444 | P37: =Q37+R37 -> 27,587 | Q37: =9297.08+1000-3239.74 -> 7,057 | R37: 20,529 | U37: 9,697 | V37: 19,444
A38: 2.优抚、抚恤等支出 | B38: 16,025 | C38: 16,228 | D38: 16,228 | E38: 6,198 | F38: 9,065 | H38: 18,506 | I38: 7,526 | J38: 10,980 | K38: 18,506 | L38: 7,526 | M38: 10,980 | P38: 15,276 | Q38: =5605.8064+1500-1765 -> 5,341 | R38: 9,935 | U38: 7,526 | V38: 10,980
A39: 3.就业再就业资金 | B39: 9,422 | C39: 8,150 | D39: 8,150 | E39: 751 | F39: 12,626 | H39: 8,306 | I39: 695 | J39: 7,611 | K39: 8,306 | L39: 695 | M39: 7,611 | P39: 7,269 | Q39: 1,353 | R39: 5,916 | U39: 695 | V39: 7,611
A40: 4.基本公卫 | B40: 7,509 | C40: 6,507 | D40: 6,507 | E40: 900 | F40: 6,156 | H40: 7,998 | I40: 1,169 | J40: 6,829 | K40: 7,998 | L40: 1,169 | M40: 6,829 | P40: 7,656 | Q40: 1,134 | R40: 6,522 | U40: 1,169 | V40: 6,829
A41: 5.基本药物零差率 | B41: 1,946 | C41: 2,106 | D41: 2,106 | E41: 1,641 | F41: 709 | H41: 2,082 | I41: 1,410 | J41: 672 | K41: 2,082 | L41: 1,410 | M41: 672 | P41: 2,085 | Q41: 1,410 | R41: 675 | U41: 1,410 | V41: 672
A42: 6.计划生育奖扶 | B42: 7,175 | C42: 6,985 | D42: 6,985 | E42: 2,130 | F42: 4,393 | H42: 8,696 | I42: 3,251 | J42: 5,445 | K42: 8,696 | L42: 3,251 | M42: 5,445 | P42: 9,331 | Q42: 3,662 | R42: 5,669 | U42: 3,251 | V42: 5,445
A43: 7.学生、教师补助等 | B43: 12,440 | C43: 12,671 | D43: 12,671 | E43: 1,058 | F43: 234 | H43: 9,731 | I43: 2,235 | J43: 7,496 | K43: 9,731 | L43: 2,235 | M43: 7,496 | P43: 8,420 | Q43: 3,202 | R43: 5,218 | U43: 2,235 | V43: 7,496
A44: 8.城乡医疗 | B44: 9,239 | C44: 6,821 | D44: 6,821 | E44: 3,963 | F44: 4,468 | H44: 7,338 | I44: 4,738 | J44: 2,600 | K44: 7,338 | L44: 4,738 | M44: 2,600 | P44: 9,117 | Q44: 4,478 | R44: 4,639 | U44: 4,738 | V44: 2,600
A45: 9.职工医保 | B45: 3,187 | C45: 3,405 | D45: 3,405 | E45: 2,262 | F45: 26 | H45: 3,386 | I45: 2,211 | J45: 1,175 | K45: 3,386 | L45: 2,211 | M45: 1,175 | P45: 2,632 | Q45: 2,121 | R45: 511 | U45: 2,211 | V45: 1,175
A46: 10.代发建初、民办教师、军转干等 | B46: 1,374 | C46: 1,188 | D46: 1,188 | E46: 1,314 | F46: 0 | H46: 1,181 | I46: 1,181 | K46: 1,181 | L46: 1,181 | P46: 1,133 | Q46: 1,133 | R46: 0 | U46: 1,181
A47: 11.保障性住房补贴 | B47: 643 | C47: 944 | D47: 944 | E47: 279 | F47: 600 | H47: 1,114 | I47: 64 | J47: 1,050 | K47: 1,114 | L47: 64 | M47: 1,050 | P47: 693 | Q47: 608 | R47: 85 | U47: 64 | V47: 1,050
A48: 12.粮食安全 | B48: 2,710 | C48: 3,336 | D48: 3,336 | E48: 297 | F48: 347 | H48: 746 | I48: 96 | J48: 650 | K48: 746 | L48: 96 | M48: 650 | P48: 97 | Q48: 97 | R48: 0 | U48: 96 | V48: 650
A49: 13.其他到人到户底线民生 | B49: 9,741 | C49: 3,093 | D49: 3,093 | E49: 2,209 | F49: 7,103 | H49: 10,490 | I49: 3,323 | J49: =12284.958236-2123-1945-1050 -> 7,167 | K49: 10,490 | L49: 3,323 | M49: =12284.958236-2123-1945-1050 -> 7,167 | P49: 18,852 | Q49: =201+5000+8542.3104 -> 13,743 | R49: 5,109 | U49: 3,323 | V49: 7,167
A50: 四、部门支出 | B50: =SUM(B51:B69) -> 215,626 | C50: 157,401 | D50: 157,401 | E50: 0 | F50: 0 | G50: 0 | H50: 165,443 | I50: 80,445 | J50: 84,997 | K50: 323,958 | L50: 78,469 | M50: 64,677 | N50: 180,011 | P50: =SUM(P51:P69) -> 346,398 | Q50: 87,776 | R50: 98,572 | S50: 160,050
A51: 1.一般公共服务 | B51: =15098.799257+350 -> 15,449 | C51: =18759.7668+350 -> 19,110 | D51: =18759.7668+350 -> 19,110 | H51: =SUM(I51:J51) -> 15,835 | I51: 15,288 | J51: 547 | K51: =SUM(L51:N51) -> 16,234 | L51: =I51 -> 15,288 | M51: =546.9663+144 -> 691 | N51: 255 | P51: =Q51+R51+S51 -> 18,480 | Q51: =20950.07552-5000+611.8024 -> 16,562 | R51: =573.01+102.64 -> 676 | S51: 1,242 | U51: 15,288 | V51: 691 | W51: =U51+V51 -> 15,979
A52: 2.公共安全 | B52: 10,524 | C52: 7,049 | D52: 7,049 | H52: 11,002 | I52: =8122.591854+45 -> 8,168 | J52: 2,834 | K52: 11,021 | L52: =I52-1976.1 -> 6,191 | M52: 2,834 | N52: 1,996 | P52: 19,637 | Q52: 13,281 | R52: 3,200 | S52: 3,156 | U52: 6,191 | V52: 2,834 | W52: 9,025
A53: 3.教育 | B53: 16,550 | C53: 11,200 | D53: 11,200 | H53: 13,048 | I53: 8,446 | J53: 4,602 | K53: =SUM(L53:N53)+800 -> 22,073 | L53: 8,446 | M53: 4,138 | N53: =8818.391905-130-1048+1048 -> 8,688 | P53: 21,465 | Q53: 8,259 | R53: 6,955 | S53: 6,251 | U53: 8,446 | V53: 4,138 | W53: 12,584
A54: 4.科技 | B54: 7,863 | C54: 4,073 | D54: 4,073 | H54: 1,793 | I54: 1,635 | J54: 158 | K54: 1,893 | L54: 1,635 | M54: 158 | N54: 100 | P54: 5,585 | Q54: =8085.3488-2500 -> 5,585 | R54: 0 | U54: 1,635 | V54: 158 | W54: 1,793
A55: 5.文化体育与传媒 | P55: 3,658 | S55: 3,658 | U55: 1,978 | V55: 2,446 | W55: 4,423
A56: 6.社保就业 | B56: 10,594 | C56: 4,971 | D56: 4,971 | H56: =SUM(I56:J56) -> 4,423 | I56: 1,978 | J56: 2,446 | K56: =SUM(L56:N56) -> 6,685 | L56: =I56 -> 1,978 | M56: 2,446 | N56: =2096.061224-767+767+166 -> 2,262 | P56: 17,875 | Q56: 2,334 | R56: =1193.36+1871 -> 3,064 | S56: 12,477 | U56: 3,906 | V56: 960 | W56: 4,866
A57: 7.卫生健康 | B57: 12,496 | C57: 5,503 | D57: 5,503 | H57: 4,866 | I57: 3,906 | J57: 960 | K57: 15,964 | L57: 3,906 | M57: 960 | N57: 11,098 | P57: 6,177 | Q57: 2,616 | R57: 1,897 | S57: 1,664 | U57: 2,689 | V57: 4,140 | W57: 6,829
A58: 8.节能环保 | B58: 18,711 | C58: 6,299 | D58: 6,299 | H58: 6,829 | I58: 2,689 | J58: 4,140 | K58: 19,222 | L58: 2,689 | M58: 4,140 | N58: 12,393 | P58: 22,369 | Q58: 5,319 | R58: =7077.3561+1600 -> 8,677 | S58: 8,372 | U58: 17,070 | W58: 17,070
A59: 9.城乡社区事务 | B59: 20,045 | C59: 18,964 | D59: 18,964 | H59: 17,070 | I59: 17,070 | K59: 32,366 | L59: 17,070 | N59: 15,297 | P59: 39,314 | Q59: 21,504 | R59: 0 | S59: 17,810 | U59: 9,548 | V59: 13,233 | W59: 22,781
A60: 10.农林水 | B60: 40,536 | C60: 33,245 | D60: 33,245 | H60: 32,781 | I60: 9,548 | J60: =19972.56+2123+1945-650-158 -> 23,233 | K60: 100,905 | L60: 9,548 | M60: =19972.56+2123+1945-650-158-10000 -> 13,233 | N60: 78,124 | P60: 68,865 | Q60: 5,835 | R60: =31835-10000+6182 -> 28,017 | S60: 35,013 | U60: 560 | V60: 10,938 | W60: 11,498
A61: 11.交通运输 | B61: 16,518 | C61: 9,284 | D61: 9,284 | H61: 15,498 | I61: 560 | J61: 14,938 | K61: 30,462 | L61: 560 | M61: =14937.78-4000 -> 10,938 | N61: 18,965 | P61: 31,225 | Q61: 1,650 | R61: =16645.57-8000 -> 8,646 | S61: 20,929 | U61: 1,265 | V61: 2,160 | W61: 3,425
A62: 12.资源勘探信息 | B62: 1,240 | C62: 2,178 | D62: 2,178 | H62: 3,425 | I62: 1,265 | J62: 2,160 | K62: 3,722 | L62: 1,265 | M62: 2,160 | N62: 297 | P62: 2,937 | Q62: 617 | R62: 1,000 | S62: 1,320 | U62: 620 | V62: 580 | W62: 1,200
A63: 13.商贸服务 | B63: 836 | C63: 1,738 | D63: 1,738 | H63: 1,200 | I63: 620 | J63: 580 | K63: 1,705 | L63: 620 | M63: 580 | N63: 504 | P63: 548 | Q63: 37 | R63: 50 | S63: 461 | U63: 284 | V63: 19,959 | W63: 20,242
A64: 14.金融支出 | P64: 84 | S64: 84 | U64: 3,409 | V64: 2,044 | W64: 5,453
A65: 15.自然资源海洋气象 | P65: 1,231 | S65: 1,231 | U65: 5,580 | V65: 397 | W65: 5,977
A66: 16.住房保障 | B66: 28,374 | C66: 22,896 | D66: 22,896 | H66: =SUM(I66:J66) -> 26,242 | I66: 284 | J66: 25,959 | K66: =SUM(L66:N66) -> 43,912 | L66: =I66 -> 284 | M66: =25958.65-6000 -> 19,959 | N66: 23,670 | P66: 79,654 | Q66: 0 | R66: =23369+11207 -> 34,576 | S66: 45,078
A67: 17.粮油物资储备 | P67: 50 | S67: 50
A68: 18.灾害防治及应急管理 | B68: =5202.5803+1316+2609 -> 9,128 | C68: 4,428 | D68: 4,428 | H68: 5,453 | I68: 3,409 | J68: 2,044 | K68: 6,519 | L68: 3,409 | M68: 2,044 | N68: 1,066 | P68: 2,925 | Q68: 917 | R68: 754 | S68: 1,254
A69: 19.其他 | B69: 6,762 | C69: 6,463 | D69: 6,463 | H69: 5,977 | I69: 5,580 | J69: 397 | K69: 11,274 | L69: 5,580 | M69: 397 | N69: =5463.220091-166 -> 5,297 | P69: 4,320 | Q69: 3,259 | R69: 1,061
A70: 八、执行中分配预算 | B70: =B71+B72+#REF!+B76+B77+B78+B81+B82+B83+B91+#REF!+B75 ->  | C70: =C71+C72+#REF!+C76+C77+C78+C81+C82+C83+C91+#REF!+C75 ->  | D70: =D71+D72+#REF!+D76+D77+D78+D81+D82+D83+D91+#REF!+D75 ->  | E70: =E71+E72+#REF!+E76+E77+E78+E81+E82+E83+E91+#REF!+E75 ->  | F70: =F71+F72+#REF!+F76+F77+F78+F81+F82+F83+F91+#REF!+F75 ->  | G70: =G71+G72+#REF!+G76+G77+G78+G81+G82+G83+G91+#REF!+G75 ->  | H70: =H71+H72+#REF!+H76+H77+H78+H81+H82+H83+H91+#REF!+H75 ->  | I70: =I71+I72+#REF!+I76+I77+I78+I81+I82+I83+I91+#REF!+I75 ->  | J70: =J71+J72+#REF!+J76+J77+J78+J81+J82+J83+J91+#REF!+J75 ->  | K70: =K71+K72+K76+K77+K78+K81+K82+K83+K91+K75 -> 105,178 | L70: =L71+L72+L76+L77+L78+L81+L82+L83+L91+#REF!+L75 ->  | M70: =M71+M72+M76+M77+M78+M81+M82+M83+M91+#REF!+M75 ->  | N70: =N71+N72+N76+N77+N78+N81+N82+N83+N91+#REF!+N75 ->  | O70: =O71+O72+O76+O77+O78+O81+O82+O83+O91+#REF!+O75 ->  | P70: =P71+P72+P76+P77+P78+P81+P82+P83+P91+P75+P90 -> 118,362 | Q70: =Q71+Q72+Q76+Q77+Q78+Q81+Q82+Q83+Q91+Q75+Q90 -> 82,576 | R70: =R71+R72+R76+R77+R78+R81+R82+R83+R91+R75 -> 0 | S70: 35,786
A71: （一）增人增资、调资调待 | B71: 32,264 | C71: 20,926 | D71: 20,926 | E71: 7,000 | H71: =SUM(I71:J71) -> 0 | K71: =SUM(L71:N71) -> 12,109 | L71: =5000+5000+2108.9 -> 12,109 | P71: =Q71+R71+S71 -> 24,000 | Q71: =9000+10000+5000 -> 24,000
A72: （二）民生政策调整预留 | B72: =SUM(B73:B74) -> 0 | C72: 6,650 | D72: 6,650 | E72: 4,610 | F72: 0 | G72: 0 | H72: 0 | I72: 0 | J72: 0 | K72: 6,338 | L72: 6,338 | M72: 0 | N72: 0 | O72: 0 | P72: 9,000 | Q72: =SUM(Q73:Q74) -> 9,000 | R72: 0 | S72: 0
A73: 1.城乡居民医保和企业职工养老保险 | C73: 6,000 | D73: 6,000 | E73: 4,000 | H73: 0 | K73: 4,000 | L73: 4,000 | P73: 4,000 | Q73: 4,000
A74: 2.“保民生”增支预留 | C74: 650 | D74: 650 | E74: 610 | H74: 0 | K74: 2,338 | L74: =L8*0.01 -> 2,338 | P74: 5,000 | Q74: 5,000
A75: （三）总预备费 | B75: 2,138 | C75: 14,000 | D75: 14,000 | E75: 5,500 | H75: 14,000 | I75: 14,000 | K75: 14,000 | L75: =I75 -> 14,000 | P75: 14,000 | Q75: 14,000
A76: （四）税费征管业务费 | C76: 500 | D76: 500 | E76: 500 | H76: 500 | I76: 500 | K76: 500 | L76: 500 | P76: 500 | Q76: 500
A77: （五）争上考核奖励经费 | B77: 800 | C77: 800 | D77: 800 | E77: 800 | H77: 800 | I77: 800 | K77: 800 | L77: 800 | P77: 800 | Q77: 800
A78: （七）债务风险化解 | B78: =B79+B80 -> 30,709 | C78: 35,791 | D78: 35,791 | E78: 30,418 | F78: 0 | G78: 0 | H78: 0 | I78: 0 | J78: 0 | K78: 33,276 | L78: 33,276 | M78: 0 | N78: 0 | O78: 0 | P78: 32,576 | Q78: =Q79+Q80 -> 32,576 | R78: 0 | S78: 0
A79: 1.偿还债务本金 | E79: 60 | H79: =SUM(I79:J79) -> 0 | K79: =SUM(L79:N79) -> 0 | P79: 0
A80: 2.政府债券付息 | B80: 30,709 | C80: 35,791 | D80: 35,791 | E80: 30,358 | H80: 0 | K80: 33,276 | L80: =32576.06+3.5/100*20000 -> 33,276 | P80: 32,576 | Q80: =29876+0.035*20000+2000 -> 32,576
A81: （八）政府债券付息 | E81: 30,358 | H81: 0 | K81: 0 | P81: 0
A82: （九）街镇结算 | B82: 4,425 | C82: 5,000 | D82: 5,000 | G82: 1,239 | H82: 5,000 | I82: 5,000 | K82: 5,000 | L82: 5,000 | P82: 1,500 | Q82: 1,500
A83: （十）园城管委会体制结算 | B83: =SUM(B84:B89) -> 0 | C83: 0 | D83: 0 | E83: 1,500 | G83: 0 | H83: 0 | I83: =SUM(I84:I89) -> 0 | J83: 0 | K83: 0 | L83: 0 | M83: 0 | N83: 0 | P83: 0
A84: 1.税收结算 | C84: 0 | D84: 0 | H84: 0 | K84: 0 | P84: 0
A85: 2.非税结算 | C85: 0 | D85: 0 | H85: 0 | K85: 0 | P85: 0
A86: 3.土地出让金及配套费结算 | C86: 0 | D86: 0 | H86: 0 | K86: 0 | P86: 0
A87: 4.国资预算结算 | C87: 0 | D87: 0 | H87: 0 | K87: 0 | P87: 0
A88: 5.其他特殊结算 | C88: 0 | D88: 0 | E88: 1,500 | H88: 0 | K88: 0 | P88: 0
A89: 6.优惠政策兑现 | C89: 0 | D89: 0 | H89: 0 | K89: 0 | P89: 0
A90: （十）换届支出 | B90: =SUM(#REF!) ->  | C90: 0 | D90: 0 | E90: =SUM(#REF!) ->  | G90: =SUM(#REF!) ->  | I90: =SUM(#REF!) ->  | J90: =SUM(#REF!) ->  | L90: =SUM(#REF!) ->  | M90: =SUM(#REF!) ->  | N90: =SUM(#REF!) ->  | P90: 200 | Q90: 200
A91: （十一）盘活存量定向支出 | B91: =39838+1603 -> 41,441 | C91: 10,249 | D91: 10,249 | H91: 0 | K91: =SUM(L91:N91) -> 33,155 | N91: =32587+758-190.5 -> 33,155 | P91: =Q91+R91+S91 -> 35,786 | S91: =35532.1976+300-45.96 -> 35,786
A92: 八、平衡预算情况 | B92: ='3'!B48-B6 ->  | C92: ='3'!D48-C6 ->  | D92: ='3'!E48+'3'!E46-'4'!D6 ->  | H92: ='3'!F48+'3'!F46-H6 ->  | I92: 1 | K92: ='3'!D48-K6 -> -0 | P92: ='3'!G48-P6 -> 0
A93: 九、实际缺口情况 | B93: =SUM(B94:B99) -> 0 | D93: =SUM(E93:G93) ->  | H93: =SUM(I93:J93) ->  | I93: =SUM(I94:I99) ->  | K93: 0
A94: （一）公司税费结算挂账 | E94: 26,200 | F94: =-G74-G75 -> 0 | H94: 58,392 | I94: 58,392 | J94: =J75 -> 0
A95: （二）政府性基金预算调入挂账 | E95: 112,732 | H95: 170,374 | I95: 170,374
A96: （三）国有资本经营预算挂账 | E96: 41,390 | F96: =-#REF! ->  | H96: 0
A97: （四）其他挂账 | H97: 0
A98: （五）用收回的存量消化当年支出 | H98: 0
A99: （六）其他 | E99: =SUM(#REF!) ->  | F99: =SUM(#REF!) ->  | G99: =SUM(#REF!) ->  | I99: =SUM(#REF!) ->  | J99: =SUM(#REF!) -> 

Sheet 5
A1: 表5
A2: 重庆市綦江区2026年政府性基金预算收支草案表
A3: 制表：綦江区财政局
A4: 收入及财力 | P4: 支出 | Z4: 备注
A5: 项目名称 | B5: 2022年决算数 | C5: 2023年预算数 | E5: 2023年预算调整 | F5: 2023年决算数 | G5: 2024年预算数 | I5: 2024年调整预算数 | J5: 2025年预算数 | L5: 2025年决算数 | M5: 2026年预算数 | P5: 项目名称 | Q5: 2025年预算数 | U5: 2025年决算数 | V5: 2026年预算数
C6: 全口径 | D6: 编入年初 | G6: 全口径 | H6: 编入年初 | J6: 全口径 | K6: 编入年初 | M6: 全口径 | N6: 编入年初 | Q6: 全口径 | R6: 本级资金 | S6: 上级资金 | T6: 编入年初 | V6: 全口径 | W6: 本级资金 | X6: 上级资金 | Y6: 编入年初
A7: 一、基金预算收入 | B7: =B8+B14+B15+B16 ->  | J7: 282,586 | K7: 282,586 | L7: 284,250 | M7: 351,234 | N7: 351,234 | P7: 支出合计 | Q7: 312,248 | R7: 164,067 | S7: 148,181 | T7: 239,282 | U7: 573,802 | V7: =V8+V9+V16 -> 400,420 | W7: 271,811 | X7: 128,609 | Y7: 249,509
A8: （一）土地出让收入 | B8: 238,062 | C8: 231,625 | D8: 231,625 | E8: 231,625 | F8: 229,854 | G8: =G9+G10+G11+#REF!+G13+#REF! ->  | H8: =H9+H10+H11+#REF!+H13+#REF! ->  | I8: =I9+I10+I11+#REF!+I13+#REF! ->  | J8: 256,000 | K8: 256,000 | L8: 225,927 | M8: =SUM(M9:M13) -> 223,800 | N8: =SUM(N9:N13) -> 223,800 | P8: 一、街镇级体制结算 | Q8: 6,090 | R8: 5,000 | S8: 1,090 | T8: 6,090 | U8: 9,831 | V8: =W8+X8 -> 500 | W8: 500 | Y8: 500
A9: 高新区管委会 | B9: 34,882 | C9: 32,775 | D9: 32,775 | E9: 32,775 | G9: 25,657 | H9: 25,657 | I9: 25,657 | J9: 107,177 | K9: 107,177 | M9: 13,217 | N9: 13,217 | P9: 二、区级预算支出 | Q9: =Q10+Q15 -> 169,418 | R9: 22,327 | S9: 147,091 | T9: 96,452 | U9: 563,971 | V9: 262,323 | W9: =W10+W15 -> 133,714 | X9: 128,609 | Y9: 221,972
A10: 新城管委会 | B10: 56,393 | C10: 144,731 | D10: 144,731 | E10: 144,731 | G10: 84,160 | H10: 84,160 | I10: 84,160 | J10: 104,595 | K10: 104,595 | M10: 72,240 | N10: 72,240 | P10: （一）年初部门预算项目 | Q10: 95,703 | R10: 21,046 | S10: 74,657 | T10: 22,737 | U10: 231,729 | V10: =V11+V12+V13+V14 -> 63,883 | W10: 13,714 | X10: 50,169 | Y10: 23,532
A11: 农文旅 | B11: 10,721 | C11: 11,088 | D11: 11,088 | E11: 11,088 | G11: 16,115 | H11: 16,115 | I11: 16,115 | J11: 11,401 | K11: 11,401 | M11: 3,848 | N11: 3,848 | P11: 1.建设项目 | Q11: 60,452 | R11: 10,636 | S11: 49,816 | T11: 13,673 | U11: 225,187 | V11: 54,890 | W11: 5,665 | X11: =3142.2+40351+5732 -> 49,225 | Y11: =8806.7+5732 -> 14,539
A12: 街镇 | P12: 2.专项业务 | Q12: 35,173 | R12: 10,410 | S12: 24,763 | T12: 9,064 | U12: 6,507 | V12: 8,843 | W12: 8,049 | X12: 794 | Y12: 8,843
A13: 其他（批而未供） | B13: 1,797 | C13: 2,011 | D13: 2,011 | E13: 2,011 | G13: 1,551 | H13: 1,551 | I13: 1,551 | J13: 9,379 | K13: 9,379 | M13: 134,495 | N13: 134,495 | P13: 3.事务活动 | Q13: 78 | R13: 0 | S13: 78 | U13: 35 | V13: 150 | W13: 0 | X13: 150 | Y13: 150
A14: （三）污水处理费收入 | B14: 441 | C14: 300 | D14: 300 | E14: 300 | F14: 1,257 | G14: 600 | H14: 600 | I14: 600 | J14: 2,886 | K14: 2,886 | L14: 3,286 | M14: 4,000 | N14: 4,000 | P14: 4.其他 | V14: 0 | Y14: 0
A15: （四）城市建设配套费 | B15: =SUM(#REF!) ->  | C15: =SUM(#REF!) ->  | D15: =SUM(#REF!) ->  | E15: =SUM(#REF!) ->  | F15: =SUM(#REF!) ->  | G15: =SUM(#REF!) ->  | H15: 10,000 | I15: 10,000 | J15: 3,000 | K15: 3,000 | L15: 14,542 | M15: 14,000 | N15: 14,000 | P15: （二）上年结转定向支出 | Q15: 73,715 | R15: 1,281 | S15: 72,434 | T15: 73,715 | U15: 37,030 | V15: 198,440 | W15: 120,000 | X15: 78,440 | Y15: =V15 -> 198,440
A16: （五）专项债收益 | G16: 16,836 | H16: 16,836 | I16: 16,836 | J16: 20,700 | K16: 20,700 | L16: 40,495 | M16: 109,434 | N16: 109,434 | P16: 三、执行中分配预算 | Q16: =Q17+Q20+Q21+Q24 -> 136,740 | R16: 136,740 | S16: 0 | T16: 136,740 | U16: 140,161 | V16: =V17+V20+V21+V24 -> 137,597 | W16: 137,597 | X16: 0 | Y16: 137,597
A17: 二、上级补助 | B17: 8,289 | C17: 7,000 | D17: 4,301 | E17: 7,000 | F17: 9,424 | G17: 7,000 | H17: 4,200 | I17: 4,200 | J17: 77,028 | K17: 4,062 | L17: 54,853 | M17: =4086+40351+5732 -> 50,169 | N17: =4086+5732 -> 9,818 | P17: （一）债务还本付息支出 | Q17: 56,740 | R17: 56,740 | S17: 0 | T17: 56,740 | U17: 48,736 | V17: =W17+X17 -> 67,059 | W17: =W18+W19 -> 67,059 | X17: =X18+X19 -> 0 | Y17: 67,059
A18: 三、债券转贷收入 | B18: 297,600 | E18: 166,600 | F18: 166,600 | L18: 198,700 | M18: 280,620 | N18: =-1*(N19*0.9) -> 280,620 | P18: 1.还本支出 | Q18: 0 | V18: 5,000 | W18: 5,000 | Y18: 5,000
A19: 四、债务还本 | B19: -97,600 | E19: -16,600 | F19: -16,600 | L19: -9,900 | M19: -311,800 | N19: -311,800 | P19: 2.付息支出 | Q19: 56,740 | R19: 56,740 | S19: 0 | T19: 56,740 | U19: 48,736 | V19: 62,059 | W19: =52259+280000*0.035 -> 62,059 | Y19: 62,059
A20: 五、上年结余 | B20: 36,295 | C20: 11,499 | D20: 11,499 | E20: 11,499 | F20: 11,499 | G20: 8,174 | H20: 8,174 | I20: 8,174 | J20: 72,434 | K20: 72,434 | L20: 72,434 | M20: =N20 -> 153,354 | N20: =74914+78440 -> 153,354 | P20: （二）化解隐性债务支出 | Q20: 80,000 | R20: 80,000 | T20: 80,000 | U20: 77,525 | V20: 2,000 | W20: 2,000 | Y20: 2,000
A21: 六、上解支出 | B21: -12,215 | C21: -11,581 | D21: -11,581 | E21: -11,581 | F21: -11,668 | G21: -17,015 | H21: -17,015 | I21: -17,015 | J21: =(J8*0.05+1000)*-1-1000 -> -14,800 | K21: =J21 -> -14,800 | L21: -10,174 | M21: -12,015 | N21: -12,015 | P21: （三）审计整改支出 | Q21: 0 | R21: 0 | S21: 0 | T21: 0 | U21: 13,900 | V21: 18,538 | W21: =W22+W23 -> 18,538 | X21: =X22+X23 -> 0 | Y21: =7100+Y23 -> 18,538
A22: 七、调出资金 | B22: -195,515 | C22: -198,000 | D22: -198,000 | E22: -198,000 | F22: -198,000 | G22: =-198000+3000+10000+10000+70000 -> -105,000 | H22: =-175000+70000 -> -105,000 | I22: =-175000+70000 -> -105,000 | J22: -105,000 | K22: -105,000 | L22: -16,361 | M22: -111,142 | N22: =M22 -> -111,142 | P22: 1.清偿拖欠账款支出 | Q22: 0 | V22: 7,100 | W22: 7,100 | Y22: 7,100
A23: 八、政府性基金财力 | B23: =B7+B17+B18+B19+B20+B21+B22 ->  | C23: 60,843 | D23: 58,144 | J23: 312,248 | K23: 239,282 | L23: 573,802 | M23: =M7+M17+M18+M19+M20+M21+M22 -> 400,420 | N23: =N7+N17+N18+N19+N20+N21+N22 -> 360,069 | P23: 2.其他 | Q23: 0 | V23: 11,438 | W23: 11,438 | Y23: 11,438
A24: （一）区本级财力 | B24: =B23-B25 ->  | C24: 54,498 | D24: 51,799 | J24: 306,158 | K24: 233,192 | L24: 563,971 | M24: =M23-M25 -> 399,920 | N24: =N23-N25 -> 359,569 | P24: （四）结算土地成本支出 | Q24: 0 | U24: 155,051 | V24: 50,000 | W24: =106524+76611-120000-1697-11438 -> 50,000 | Y24: =106524+76611-120000-1697-11438 -> 50,000
A25: （二）街镇级财力 | B25: 7,855 | C25: 6,345 | D25: 6,345 | E25: 6,345 | F25: 7,401 | G25: =5206+1200 -> 6,406 | H25: 6,406 | I25: 6,406 | J25: =1090+5000 -> 6,090 | K25: =1090+5000 -> 6,090 | L25: 9,831 | M25: 500 | N25: 500 | P25: 三、本级预算平衡 | Q25: =J24-Q9-Q16 -> -0 | T25: 0 | U25: 0 | V25: =M24-V9-V16 -> 0 | Y25: =N24-Y9-Y16 -> 0

Sheet 6
A1: 表6
A2: 重庆市綦江区2026年国有资本经营预算收支草案表
A3: 制表：綦江区财政局 | Q3: 单位：万元 | V3: 单位：万元
A4: 收入及财力 | L4: 支出 | V4: 备注
A5: 项目名称 | B5: 2022年决算数 | C5: 2023年预算数 | D5: 2023年预算调整数 | E5: 2023年执行数 | F5: 2024年预算草案 | G5: 2024年预算调整数 | H5: 2025年预算草案 | I5: 2025年 决算数 | J5: 2026年预算草案 | L5: 项目名称 | M5: 2022年决算数 | N5: 2023年预算数 | O5: 2023年预算调整数 | P5: 2023年执行数 | Q5: 2024年预算草案 | R5: 2024年预算调整数 | S5: 2025年预算草案 | T5: 2025年 决算数 | U5: 2026年预算草案
A7: 一、国有资本经营预算收入 | B7: =B8+B17 -> 31,720 | C7: 31,720 | D7: 31,720 | E7: 18,901 | F7: 31,720 | G7: 31,720 | H7: 28,748 | I7: 18,972 | J7: 35,000 | L7: 一、国有资本经营预算支出 | M7: =SUM(M8:M11) -> 0 | N7: 130 | O7: 130 | P7: 0 | Q7: 346 | R7: 346 | S7: =S8+S9+S10+S11 -> 314 | T7: 206 | U7: 321
A8: （一）国有独资企业利润 | B8: =SUM(B9:B16) -> 31,720 | C8: 31,720 | D8: 31,720 | E8: 18,901 | F8: 31,720 | G8: 31,720 | H8: 28,748 | I8: 18,972 | J8: 35,000 | L8: （一）公益性投资支出
A9: 1、园区运营集团 | B9: 12,909 | C9: 12,909 | D9: 12,909 | E9: 146 | F9: 13,105 | G9: =9208+2894 -> 12,102 | H9: 9,208 | I9: 12,947 | J9: 16,000 | L9: （二）国有企业资本金注入
A10: 2、城市发展集团 | B10: 9,859 | C10: 9,859 | D10: 9,859 | E10: 15,486 | F10: 14,833 | G10: 16,177 | H10: 16,176 | I10: 2,098 | J10: 15,000 | L10: （三）其他国有资本经营预算支出
A11: 3、南州文旅集团 | B11: 8,121 | C11: 8,121 | D11: 8,121 | E11: 3,211 | F11: 3,782 | G11: =76+3029 -> 3,105 | H11: 3,028 | I11: 3,927 | J11: 4,000 | L11: （四）解决历史遗留问题及改革成本支出 | N11: 130 | O11: 130 | Q11: =216+130 -> 346 | R11: =216+130 -> 346 | S11: 314 | T11: 206 | U11: 321
A12: 4、建工公司 | B12: 312 | C12: 312 | D12: 312 | E12: 58 | G12: 278 | H12: 278 | L12: 其中：区本级 | N12: 130 | O12: 130 | Q12: 346 | R12: 346 | S12: 314 | T12: 206 | U12: 321
A13: 5、乐隐养老 | G13: 18 | H13: 18 | L13: 街镇级
A14: 6、广大农业 | G14: 40 | H14: 40 | L14: 二、结转下年使用 | M14: =B19-M4 -> 130 | N14: 130 | O14: 130 | P14: 130 | Q14: 130 | R14: 130 | S14: 0 | T14: 108
A15: 7、南向物流
A16: 8、其他国有企业 | B16: 519 | C16: 519 | D16: 519
A17: （二）资产及股权处置 | C17: =SUM(C18) -> 0 | D17: 0 | E17: 0 | F17: 0
A18: 1、国有资产处置及股权处置
A19: 二、上年结转 | B19: 130 | C19: 130 | D19: 130 | E19: 130 | F19: 130 | G19: 130 | H19: 100 | I19: 100 | J19: 108
A20: 三、上级补助收入 | F20: 216 | G20: 216 | H20: 214 | I20: 214 | J20: 213
A21: 四、调出资金 | B21: -31,720 | C21: =-C7 -> -31,720 | D21: =C21 -> -31,720 | E21: -18,901 | F21: =-F8 -> -31,720 | G21: =-G8 -> -31,720 | H21: -28,748 | I21: =-18972 -> -18,972 | J21: -35,000
A22: 五、国有资本经营预算财力 | B22: =B7+B20+B21+B19 -> 130 | C22: 130 | D22: 130 | E22: 130 | F22: 346 | G22: 346 | H22: 314 | I22: 314 | J22: 321

Sheet 7
A1: 表7
A2: 重庆市綦江区2025年全区财政预算收入执行表
A3: 制表：重庆市綦江区财政局 | B3: 单位：万元
A4: 收 入 | B4: 执行数
A5: 一、一般公共预算收入 | B5: =B6+B20 -> 301,297
A6: 101 税收收入 | B6: =SUM(B7:B19) -> 133,607
A7: 10101 增值税 | B7: 37,997
A8: 10104 企业所得税 | B8: 17,849
A9: 10106 个人所得税 | B9: 2,460
A10: 10107 资源税 | B10: 3,498
A11: 10109 城市维护建设税 | B11: 8,401
A12: 10110 房产税 | B12: 12,875
A13: 10111 印花税 | B13: 4,062
A14: 10112 城镇土地使用税 | B14: 19,417
A15: 10113 土地增值税 | B15: 8,196
A16: 10118 耕地占用税 | B16: 3,027
A17: 10119 契税 | B17: 15,298
A18: 10121 环保税 | B18: 514
A19: 10199 其他税收收入 | B19: 13
A20: 非税收入 | B20: =167671+19 -> 167,690
A21: 二、政府性基金预算收入 | B21: 284,250
A22: 其中：国有土地使用权出让收入 | B22: 225,927
A23: 三、国有资本经营预算收入 | B23: 18,972
A24: 四、社会保险基金预算收入
A25: 注：由于四舍五入因素，部分分项加和与总数可能略有差异，下同。

Sheet 8
A1: 表8
A2: 重庆市綦江区2025年全区财政预算支出执行表
A3: 制表：綦江区财政局 | B3: 单位：万元
A4: 支出 | B4: 执行数
A5: 一、一般公共预算支出 | B5: =SUM(B6:B29) -> 845,037
A6: 201 一般公共服务 | B6: 66,431
A7: 203 国防 | B7: 645
A8: 204 公共安全 | B8: 29,410
A9: 205 教育 | B9: 147,077
A10: 206 科学技术 | B10: 9,302
A11: 207 文化体育与传媒 | B11: 18,470
A12: 208 社会保障和就业 | B12: 145,725
A13: 210 卫生健康支出 | B13: 79,607
A14: 211 节能环保 | B14: 33,608
A15: 212 城乡社区 | B15: 37,799
A16: 213 农林水 | B16: 121,316
A17: 214 交通运输 | B17: 29,046
A18: 215 资源勘探信息等 | B18: 1,979
A19: 216 商业服务业等 | B19: 967
A20: 217 金融支出
A21: 220 自然资源海洋气象等 | B21: 11,406
A22: 221 住房保障 | B22: 70,260
A23: 222 粮油物资储备 | B23: 18
A24: 224 灾害防治及应急管理支出 | B24: 7,095
A25: 227 预备费
A26: 229 其他支出 | B26: 1,714
A27: 231 债务还本支出
A28: 232 债务付息 | B28: 33,150
A29: 233 债务发行费用 | B29: 12
A30: 二、政府性基金预算支出 | B30: 418,751
A31: 三、国有资本经营预算支出 | B31: 206
A32: 四、社会保险基金预算支出

Sheet 9
A1: 表9
A2: 重庆市綦江区2025年区本级一般公共预算收支执行表
A3: 制表：綦江区财政局
A4: 预算收入 | D4: 预算支出
A5: 项目 | B5: 2025年执行数 | C5: 比上年±% | D5: 项目 | E5: 2025年执行数 | F5: 比上年±%
A6: 101 税收收入 | B6: =SUM(B7:B19) -> 133,607 | C6: 10.2 | D6: 201 一般公共服务 | E6: 43,205 | F6: 4.8
A7: 10101 增值税 | B7: 37,997 | C7: 2.3 | D7: 203 国防 | E7: 645 | F7: 15.6
A8: 10104 企业所得税 | B8: 17,849 | C8: 74.9 | D8: 204 公共安全 | E8: 29,144 | F8: 15.4
A9: 10106 个人所得税 | B9: 2,460 | C9: -5.9 | D9: 205 教育 | E9: 147,077 | F9: 0.5
A10: 10107 资源税 | B10: 3,498 | C10: 43.0 | D10: 206 科学技术 | E10: 9,302 | F10: 0.4
A11: 10109 城市维护建设税 | B11: 8,401 | C11: 1.9 | D11: 207 文化体育与传媒 | E11: 15,794 | F11: 163.8
A12: 10110 房产税 | B12: 12,875 | C12: 4.1 | D12: 208 社会保障和就业 | E12: 132,070 | F12: -1.1
A13: 10111 印花税 | B13: 4,062 | C13: 25.8 | D13: 210 卫生健康支出 | E13: 77,647 | F13: 3.5
A14: 10112 城镇土地使用税 | B14: 19,417 | C14: 1.5 | D14: 211 节能环保 | E14: 29,181 | F14: 12.3
A15: 10113 土地增值税 | B15: 8,196 | C15: 39.7 | D15: 212 城乡社区 | E15: 32,592 | F15: 2.5
A16: 10118 耕地占用税 | B16: 3,027 | C16: -59.9 | D16: 213 农林水 | E16: 92,090 | F16: -39.8
A17: 10119 契税 | B17: 15,298 | C17: 33.1 | D17: 214 交通运输 | E17: 21,726 | F17: -20.8
A18: 10121 环境保护税 | B18: 514 | C18: -45.8 | D18: 215 资源勘探信息等 | E18: 1,979 | F18: -27.9
A19: 10199 其他税收收入 | B19: 13 | C19: 550.0 | D19: 216 商业服务业等 | E19: 967 | F19: -22.4
A20: 103 非税收入 | B20: =SUM(B21:B26) -> 167,128 | C20: 56.4 | D20: 217 金融支出
A21: 10302 专项收入 | B21: 9,231 | C21: 2.3 | D21: 220 自然资源海洋气象等 | E21: 10,488 | F21: 163.2
A22: 10304 行政事业性收费 | B22: 24,865 | C22: 96.1 | D22: 221 住房保障 | E22: 57,492 | F22: 83.6
A23: 10305 罚没收入 | B23: 18,237 | C23: -32.3 | D23: 222 粮油物资储备 | E23: 18 | F23: -92.6
A24: 10307 国有资产有偿使用收入 | B24: 107,467 | C24: 127.1 | D24: 224 灾害防治及应急管理支出 | E24: 6,490 | F24: -20.6
A25: 10308 捐赠收入 | B25: 22 | C25: -85.3 | D25: 227 预备费
A26: 10399 其他收入 | B26: =7849+19-562 -> 7,306 | C26: -31.9 | D26: 229 其他支出
D27: 231 债务还本支出
D28: 232 债务付息 | E28: 33,150 | F28: 0.1
D29: 233 债务发行费用 | E29: 12 | F29: 99.1
A30: 收 入 合 计 | B30: =B6+B20 -> 300,735 | C30: 31.8 | D30: 支 出 合 计 | E30: =SUM(E6:E29) -> 741,069 | F30: -2.0
A31: 一、上级补助收入 | B31: =B32+B33+B34 -> 447,971 | C31: -2.8 | D31: 一、上解上级支出 | E31: 47,068 | F31: -34.1
A32: 返还性收入 | B32: 27,503 | C32: 0.0 | D32: 体制上解 | E32: 7,170 | F32: 0.0
A33: 一般性转移支付收入 | B33: 365,398 | C33: 14.9 | D33: 专项上解 | E33: 39,898 | F33: -37.9
A34: 专项转移支付收入 | B34: 55,070 | C34: -52.2 | D34: 二、补助街镇支出 | E34: 93,874 | F34: -14.8
A35: 二、街镇上解收入 | D35: 三、债务还本支出 | E35: 207,340 | F35: 64.0
A36: 三、债券转贷收入 | B36: =B37+B38 -> 210,580 | C36: 55.5 | D36: 四、补充预算稳定调节基金 | E36: =82672+19 -> 82,691 | F36: 349.4
A37: 一般债券转贷收入 | B37: 186,480 | C37: 54.9 | D37: 五、当年结转结余 | E37: 160,048 | F37: 1.7
A38: 新增债券收入 | B38: 24,100 | C38: 60.7 | D38: 六、区域间转移性收入 | E38: 1,100
A39: 四、上年结转结余 | B39: 157,299 | C39: -43.8
A40: 五、预算稳定调节基金 | B40: 180,072 | C40: 500.2
A41: 六、调入资金 | B41: =B42+B43 -> 35,333 | C41: -66.7
A42: 政府性基金预算调入 | B42: 16,361 | C42: -84.4
A43: 国有资本经营预算调入 | B43: 18,972 | C43: 1,615.4
A44: 七、区域间转移性收入 | B44: 1,200
A45: 收 入 总 计 | B45: =B30+B31+B35+B36+B39+B40+B41+B44 -> 1,333,190 | C45: 7.5 | D45: 支 出 总 计 | E45: =E30+E31+E34+E35+E36+E37+E38 -> 1,333,190 | F45: 7.5

Sheet 10
A1: 表10
A2: 重庆市綦江区2025年区本级政府性基金预算收支执行表
A3: 制表：綦江区财政局
A4: 预算收入 | D4: 预算支出
A5: 项目 | B5: 2025年执行数 | C5: 比上年±% | D5: 项目 | E5: 2025年执行数 | F5: 比上年±%
A6: 1030146 国有土地收益基金 | B6: 10,745 | C6: -45.5 | D6: 210 卫生健康 | E6: 12,365
A7: 1030147 农业土开发资金 | B7: 653 | C7: 102.2 | D7: 211 节能环保 | E7: 5,038
A8: 1030148 国有土地使用权出让 | B8: 212,413 | C8: -30.1 | D8: 212 城乡社区 | E8: 216,993 | F8: 24.7
A9: 1030156 城市基础设施配套费收入 | B9: 14,542 | C9: 280.4 | D9: 213 农林水 | E9: 5,301 | F9: 7,695.4
A10: 1030178 污水处理费收入 | B10: 3,286 | C10: 3,287.6 | D10: 215 资源勘探信息等 | E10: 386
A11: 1050402 专项债务收益 | B11: 40,495 | C11: 4,961.9 | D11: 221 住房保障 | E11: 458
D12: 229 其他支出 | E12: 119,642 | F12: -15.0
D13: 232 债务付息 | E13: 48,734 | F13: 35.7
D14: 233 债务发行费用 | E14: 2 | F14: 21.8
A15: 收 入 合 计 | B15: =SUM(B6:B11) -> 282,134 | C15: -14.2 | D15: 支 出 合 计 | E15: =SUM(E6:E14) -> 408,920 | F15: 16.6
A16: 一、上级补助收入 | B16: 54,852 | C16: -21.0 | D16: 一、上解上级支出 | E16: 11,870 | F16: -29.2
A17: 二、街镇上解收入 | D17: 二、补助街镇支出 | E17: 7,141 | F17: 247.0
A18: 三、债券转贷收入 | B18: 198,700 | C18: -67.5 | D18: 三、债务还本支出 | E18: 9,900 | F18: -97.9
A19: 四、上年结转结余 | B19: 71,344 | C19: 1,095.4 | D19: 四、调出资金 | E19: 16,361 | F19: -84.4
A20: 五、调入资金 | D20: 五、当年结转结余 | E20: 152,838 | F20: 114.2
A23: 收 入 总 计 | B23: =B15+B16+B18+B19 -> 607,030 | C23: -40.3 | D23: 支 出 总 计 | E23: =E15+E16+E17+E18+E19+E20 -> 607,030 | F23: -40.3
A24: 备注：收支总计较上年下降40.3%主要原因是上年置换隐债债务到位的置换债券垫高基数

Sheet 11
A1: 表11
A2: 重庆市綦江区2025年区本级国有资本经营预算收支执行表
A3: 制表：綦江区财政局
A4: 预算收入 | D4: 预算支出
A5: 项目 | B5: 2025年执行数 | C5: 比上年±% | D5: 项目 | E5: 2025年执行数 | F5: 比上年±%
A6: 1030601 利润收入 | B6: 18,972 | C6: 1,615.4 | D6: 208 社会保障和就业
A7: 1030602 股利、股息收入 | D7: 22301 解决历史遗留问题及改革成本 | E7: 206 | F7: -16.3
A8: 1030603 产权转让收入 | D8: 22302 国有企业资本金注入
A9: 1030604 清算收入 | D9: 22303 国有企业政策性补贴
A10: 1030698 其他国有资本经营预算收入 | B10: 0 | D10: 22304 金融国有资本经营预算支出
D11: 22399 其他国有资本经营预算支出
A13: 收 入 合 计 | B13: =SUM(B6:B10) -> 18,972 | C13: 1,615.4 | D13: 支 出 合 计 | E13: 206 | F13: -16.3
A14: 一、上级补助收入 | B14: 214 | D14: 一、调出资金 | E14: 18,972
A15: 二、上年结转结余 | B15: 100 | D15: 二、当年结转结余 | E15: 108
D16: 三、补助街镇支出
A18: 收 入 总 计 | B18: =B13+B14+B15 -> 19,286 | C18: 1,228.2 | D18: 支 出 总 计 | E18: 19,286 | F18: 1,228.4
A19: 说明：全区国有资本经营预算收支皆为区本级收支。

Sheet 12
A1: 表12
A2: 重庆市綦江区2025年区本级一般公共预算支出功能科目执行表
A3: （按功能分类科目到项级）
A4: 制表：綦江区财政局 | C4: 单位：万元
A5: 科目编码 | B5: 科目名称 | C5: 执行数
A6: 全区合计 | C6: =C7+C120+C125+C146+C168+C182+C210+C293+C341+C368+C381+C444+C460+C470+C477+C489+C500+C503+C519+C524 -> 741,069
A7: 201 | C7: 43,205
A8: 20101 | C8: 2,182
A9: 2010101 | B9: 行政运行 | C9: 1,512
A10: 2010102 | B10: 一般行政管理事务 | C10: 16
A11: 2010104 | B11: 人大会议 | C11: 195
A12: 2010106 | B12: 人大监督 | C12: 104
A13: 2010108 | B13: 代表工作 | C13: 224
A14: 2010150 | B14: 事业运行 | C14: 131
A15: 20102 | C15: 1,669
A16: 2010201 | B16: 行政运行 | C16: 1,246
A17: 2010202 | B17: 一般行政管理事务 | C17: 154
A18: 2010204 | B18: 政协会议 | C18: 148
A19: 2010205 | B19: 委员视察 | C19: 23
A20: 2010206 | B20: 参政议政 | C20: 30
A21: 2010250 | B21: 事业运行 | C21: 68
A22: 20103 | C22: 12,495
A23: 2010301 | B23: 行政运行 | C23: 1,935
A24: 2010302 | B24: 一般行政管理事务 | C24: 4,830
A25: 2010303 | B25: 机关服务 | C25: 1,454
A26: 2010350 | B26: 事业运行 | C26: 3,388
A27: 2010399 | B27: 其他政府办公厅（室）及相关机构事务支出 | C27: 889
A28: 20104 | C28: 2,299
A29: 2010401 | B29: 行政运行 | C29: 564
A30: 2010402 | B30: 一般行政管理事务 | C30: 688
A31: 2010406 | B31: 社会事业发展规划 | C31: 35
A32: 2010408 | B32: 物价管理 | C32: 30
A33: 2010450 | B33: 事业运行 | C33: 801
A34: 2010499 | B34: 其他发展与改革事务支出 | C34: 180
A35: 20105 | C35: 652
A36: 2010501 | B36: 行政运行 | C36: 461
A37: 2010502 | B37: 一般行政管理事务 | C37: 4
A38: 2010505 | B38: 专项统计业务 | C38: 11
A39: 2010506 | B39: 统计管理 | C39: 12
A40: 2010507 | B40: 专项普查活动 | C40: 23
A41: 2010508 | B41: 统计抽样调查 | C41: 142
A42: 20106 | C42: 2,951
A43: 2010601 | B43: 行政运行 | C43: 1,570
A44: 2010602 | B44: 一般行政管理事务 | C44: 494
A45: 2010605 | B45: 财政国库业务 | C45: 45
A46: 2010650 | B46: 事业运行 | C46: 377
A47: 2010699 | B47: 其他财政事务支出 | C47: 465
A48: 20107 | C48: 2,436
A49: 2010701 | B49: 行政运行 | C49: 1,943
A50: 2010702 | B50: 一般行政管理事务 | C50: 492
A51: 20108 | C51: 92
A52: 2010804 | B52: 审计业务 | C52: 92
A53: 20111 | C53: 4,830
A54: 2011101 | B54: 行政运行 | C54: 3,308
A55: 2011102 | B55: 一般行政管理事务 | C55: 1,244
A56: 2011150 | B56: 事业运行 | C56: 279
A57: 20113 | C57: 1,152
A58: 2011301 | B58: 行政运行 | C58: 341
A59: 2011302 | B59: 一般行政管理事务 | C59: 175
A60: 2011307 | B60: 国内贸易管理 | C60: 217
A61: 2011308 | B61: 招商引资 | C61: 30
A62: 2011350 | B62: 事业运行 | C62: 390
A63: 20123 | C63: 5
A64: 2012304 | B64: 民族工作专项 | C64: 5
A65: 20125 | C65: 138
A66: 2012501 | B66: 行政运行 | C66: 129
A67: 2012502 | B67: 一般行政管理事务 | C67: 9
A68: 20126 | C68: 544
A69: 2012601 | B69: 行政运行 | C69: 413
A70: 2012602 | B70: 一般行政管理事务 | C70: 3
A71: 2012604 | B71: 档案馆 | C71: 128
A72: 20128 | C72: 366
A73: 2012801 | B73: 行政运行 | C73: 292
A74: 2012802 | B74: 一般行政管理事务 | C74: 55
A75: 2012899 | B75: 其他民主党派及工商联事务支出 | C75: 19
A76: 20129 | C76: 1,995
A77: 2012901 | B77: 行政运行 | C77: 847
A78: 2012902 | B78: 一般行政管理事务 | C78: 148
A79: 2012950 | B79: 事业运行 | C79: 409
A80: 2012999 | B80: 其他群众团体事务支出 | C80: 590
A81: 20131 | C81: 4,910
A82: 2013101 | B82: 行政运行 | C82: 1,826
A83: 2013102 | B83: 一般行政管理事务 | C83: 397
A84: 2013105 | B84: 专项业务 | C84: 2,110
A85: 2013150 | B85: 事业运行 | C85: 346
A86: 2013199 | B86: 其他党委办公厅（室）及相关机构事务支出 | C86: 231
A87: 20132 | C87: 1,093
A88: 2013201 | B88: 行政运行 | C88: 537
A89: 2013202 | B89: 一般行政管理事务 | C89: 475
A90: 2013250 | B90: 事业运行 | C90: 75
A91: 2013299 | B91: 其他组织事务支出 | C91: 7
A92: 20133 | C92: 921
A93: 2013301 | B93: 行政运行 | C93: 277
A94: 2013302 | B94: 一般行政管理事务 | C94: 537
A95: 2013350 | B95: 事业运行 | C95: 107
A96: 20134 | C96: 645
A97: 2013401 | B97: 行政运行 | C97: 226
A98: 2013402 | B98: 一般行政管理事务 | C98: 66
A99: 2013404 | B99: 宗教事务 | C99: 79
A100: 2013405 | B100: 华侨事务 | C100: 21
A101: 2013450 | B101: 事业运行 | C101: 206
A102: 2013499 | B102: 其他统战事务支出 | C102: 45
A103: 20137 | C103: 534
A104: 2013701 | B104: 行政运行 | C104: 133
A105: 2013702 | B105: 一般行政管理事务 | C105: 166
A106: 2013750 | B106: 事业运行 | C106: 235
A107: 20138 | C107: 145
A108: 2013804 | B108: 经营主体管理 | C108: 7
A109: 2013816 | B109: 食品安全监管 | C109: 132
A110: 2013899 | B110: 其他市场监督管理事务 | C110: 6
A111: 20139 | C111: 518
A112: 2013901 | B112: 行政运行 | C112: 185
A113: 2013902 | B113: 一般行政管理事务 | C113: 155
A114: 2013904 | B114: 专项业务 | C114: 74
A115: 2013950 | B115: 事业运行 | C115: 103
A116: 20140 | C116: 632
A117: 2014001 | B117: 行政运行 | C117: 211
A118: 2014004 | B118: 信访业务 | C118: 170
A119: 2014050 | B119: 事业运行 | C119: 252
A120: 203 | C120: 645
A121: 20306 | C121: 645
A122: 2030601 | B122: 兵役征集 | C122: 60
A123: 2030607 | B123: 民兵 | C123: 585
A124: 2030699 | B124: 其他国防动员支出 | C124: 1
A125: 204 | C125: 29,144
A126: 20401 | C126: 30
A127: 2040199 | B127: 其他武装警察部队支出 | C127: 30
A128: 20402 | C128: 26,065
A129: 2040201 | B129: 行政运行 | C129: 19,569
A130: 2040202 | B130: 一般行政管理事务 | C130: 1,653
A131: 2040220 | B131: 执法办案 | C131: 4,843
A132: 20406 | C132: 2,601
A133: 2040601 | B133: 行政运行 | C133: 1,520
A134: 2040602 | B134: 一般行政管理事务 | C134: 55
A135: 2040604 | B135: 基层司法业务 | C135: 41
A136: 2040605 | B136: 普法宣传 | C136: 115
A137: 2040607 | B137: 公共法律服务 | C137: 188
A138: 2040610 | B138: 社区矫正 | C138: 209
A139: 2040612 | B139: 法治建设 | C139: 135
A140: 2040650 | B140: 事业运行 | C140: 175
A141: 2040699 | B141: 其他司法支出 | C141: 163
A142: 20409 | C142: 424
A143: 2040905 | B143: 保密管理 | C143: 424
A144: 20499 | C144: 24
A145: 2049999 | B145: 其他公共安全支出 | C145: 24
A146: 205 | C146: 147,077
A147: 20501 | C147: 2,240
A148: 2050101 | B148: 行政运行 | C148: 384
A149: 2050102 | B149: 一般行政管理事务 | C149: 90
A150: 2050199 | B150: 其他教育管理事务支出 | C150: 1,766
A151: 20502 | C151: 134,448
A152: 2050201 | B152: 学前教育 | C152: 4,583
A153: 2050202 | B153: 小学教育 | C153: 66,171
A154: 2050203 | B154: 初中教育 | C154: 41,251
A155: 2050204 | B155: 高中教育 | C155: 22,409
A156: 2050299 | B156: 其他普通教育支出 | C156: 34
A157: 20503 | C157: 8,277
A158: 2050302 | B158: 中等职业教育 | C158: 8,277
A159: 20507 | C159: 708
A160: 2050701 | B160: 特殊学校教育 | C160: 705
A161: 2050799 | B161: 其他特殊教育支出 | C161: 4
A162: 20508 | C162: 1,386
A163: 2050801 | B163: 教师进修 | C163: 692
A164: 2050802 | B164: 干部教育 | C164: 690
A165: 2050803 | B165: 培训支出 | C165: 4
A166: 20509 | C166: 18
A167: 2050999 | B167: 其他教育费附加安排的支出 | C167: 18
A168: 206 | C168: 9,302
A169: 20601 | C169: 416
A170: 2060101 | B170: 行政运行 | C170: 303
A171: 2060102 | B171: 一般行政管理事务 | C171: 6
A172: 2060199 | B172: 其他科学技术管理事务支出 | C172: 108
A173: 20604 | C173: 6,626
A174: 2060404 | B174: 科技成果转化与扩散 | C174: 6,281
A175: 2060499 | B175: 其他技术研究与开发支出 | C175: 345
A176: 20605 | C176: 345
A177: 2060502 | B177: 技术创新服务体系 | C177: 345
A178: 20607 | C178: 1,914
A179: 2060702 | B179: 科普活动 | C179: 297
A180: 2060703 | B180: 青少年科技活动 | C180: 1,600
A181: 2060799 | B181: 其他科学技术普及支出 | C181: 18
A182: 207 | C182: 15,794
A183: 20701 | C183: 12,270
A184: 2070101 | B184: 行政运行 | C184: 756
A185: 2070102 | B185: 一般行政管理事务 | C185: 146
A186: 2070104 | B186: 图书馆 | C186: 151
A187: 2070108 | B187: 文化活动 | C187: 9,613
A188: 2070109 | B188: 群众文化 | C188: 270
A189: 2070111 | B189: 文化创作与保护 | C189: 159
A190: 2070112 | B190: 文化和旅游市场管理 | C190: 10
A191: 2070113 | B191: 旅游宣传 | C191: 10
A192: 2070199 | B192: 其他文化和旅游支出 | C192: 1,154
A193: 20702 | C193: 643
A194: 2070204 | B194: 文物保护 | C194: 401
A195: 2070205 | B195: 博物馆 | C195: 242
A196: 20703 | C196: 984
A197: 2070306 | B197: 体育训练 | C197: 40
A198: 2070307 | B198: 体育场馆 | C198: 110
A199: 2070308 | B199: 群众体育 | C199: 518
A200: 2070399 | B200: 其他体育支出 | C200: 316
... 326 more rows

Sheet 13
A1: 表13
A2: 重庆市綦江区2025年区本级政府性基金预算支出功能科目执行表
A3: （按功能分类科目到项级）
A4: 制表：綦江区财政局 | C4: 单位：万元
A5: 科目编码 | B5: 科目名称 | C5: 执行数
A6: 区本级支出合计 | C6: =C7+C10+C15+C30+C40+C43+C46+C58+C64 -> 408,920
A7: 210 | C7: 12,365
A8: 21098 | C8: 12,365
A9: 2109801 | B9: 公立医院 | C9: 12,365
A10: 211 | C10: 5,038
A11: 21198 | C11: 5,038
A12: 2119801 | B12: 水污染综合治理 | C12: 4,269
A13: 2119802 | B13: 应对气候变化 | C13: 435
A14: 2119899 | B14: 其他节能环保支出 | C14: 334
A15: 212 | C15: =C16+C20+C21+C24+C26+C28 -> 216,993
A16: 21208 | C16: =SUM(C17:C19) -> 130,853
A17: 2120803 | B17: 城市建设支出 | C17: 190
A18: 2120804 | B18: 农村基础设施建设支出 | C18: 77,422
A19: 2120899 | B19: 其他国有土地使用权出让收入安排的支出 | C19: 53,241
A20: 21211 | B20: 业土地开发资金安排的支出 | C20: 100
A21: 21213 | C21: =SUM(C22:C23) -> 1,300
A22: 2121301 | B22: 城市公共设施 | C22: 1,300
A23: 2121399 | B23: 其他城市基础设施配套费安排的支出 | C23: 0
A24: 21214 | C24: 79
A25: 2121401 | B25: 污水处理设施建设和运营 | C25: 79
A26: 21215 | C26: 78,100
A27: 2121599 | B27: 其他土地储备专项债券收入安排的支出 | C27: 78,100
A28: 21298 | C28: 6,560
A29: 2129801 | B29: 城乡社区公共设施 | C29: 6,560
A30: 213 | C30: =C31+C33+C36+C38 -> 5,301
A31: 21367 | C31: 4
A32: 2136799 | B32: 其他三峡水库库区基金支出 | C32: 4
A33: 21372 | C33: =SUM(C34:C35) -> 397
A34: 2137201 | B34: 移民补助 | C34: 177
A35: 2137202 | B35: 基础设施建设和经济发展 | C35: 221
A36: 21373 | C36: =C37 -> 204
A37: 2137302 | B37: 基础设施建设和经济发展 | C37: 204
A38: 21398 | C38: 4,696
A39: 2139801 | B39: 农业农村支出 | C39: 4,696
A40: 215 | C40: 386
A41: 21598 | C41: 386
A42: 2159802 | B42: 制造业 | C42: 386
A43: 221 | C43: 458
A44: 22198 | C44: 458
A45: 2219899 | B45: 其他住房保障支出 | C45: 458
A46: 229 | C46: =C47+C50+C56 -> 119,642
A47: 22904 | C47: =SUM(C48:C49) -> 109,156
A48: 2290402 | B48: 其他地方自行试点项目收益专项债券收入安排的支出 | C48: 78,300
A49: 2290403 | B49: 其他政府性基金债务收入安排的支出 | C49: 30,856
A50: 22960 | C50: =SUM(C51:C55) -> 2,288
A51: 2296002 | B51: 用于社会福利的彩票公益金支出 | C51: 675
A52: 2296003 | B52: 用于体育事业的彩票公益金支出 | C52: 1,201
A53: 2296004 | B53: 用于教育事业的彩票公益金支出 | C53: 203
A54: 2296006 | B54: 用于残疾人事业的彩票公益金支出 | C54: 173
A55: 2296099 | B55: 用于其他社会公益事业的彩票公益金支出 | C55: 36
A56: 22998 | C56: 8,199
A57: 2299899 | B57: 其他支出 | C57: 8,199
A58: 232 | C58: 48,734
A59: 23204 | C59: 48,734
A60: 2320411 | B60: 国有土地使用权出让金债务付息支出 | C60: 15,954
A61: 2320433 | B61: 棚户区改造专项债券付息支出 | C61: 338
A62: 2320498 | B62: 其他地方自行试点项目收益专项债券付息支出 | C62: 22,031
A63: 2320499 | B63: 其他政府性基金债务付息支出 | C63: 10,411
A64: 233 | C64: 2
A65: 23304 | C65: 2
A66: 2330411 | B66: 国有土地使用权出让金债务发行费用支出 | C66: 1
A67: 2330433 | B67: 棚户区改造专项债券发行费用支出 | C67: 0
A68: 2330498 | B68: 其他地方自行试点项目收益专项债券发行费用支出 | C68: 1
A69: 2330499 | B69: 其他政府性基金债务发行费用支出 | C69: 1

Sheet 14
A1: 表14
A2: 重庆市綦江区2025年区级一般公共预算转移性收支执行表
A3: 制表：綦江区财政局 | D3: 单位：万元
A4: 收入 | B4: 执行数 | C4: 支出 | D4: 执行数
A5: 转移性收入合计 | B5: =B6+B55+B56+B64+B61 -> 695,084 | C5: 转移性支出合计 | D5: =D6+D9+D56+D63+D59 -> 349,382
A6: 一、上级补助收入 | B6: 447,971 | C6: 一、上解支出 | D6: =SUM(D7:D8) -> 47,068
A7: （一）返还性收入 | B7: 27,503 | C7: 体制上解支出 | D7: 7,170
A8: 所得税基数返还收入 | B8: 1,657 | C8: 专项上解支出 | D8: 39,898
A9: 成品油税费改革税收返还收入 | C9: 二、补助街镇支出 | D9: 93,874
A10: 增值税税收返还收入 | B10: 12,160 | C10: （一）一般性转移支付收入 | D10: =SUM(D11:D30) -> 68,384
A11: 消费税税收返还收入 | B11: 1,018 | C11: 体制补助收入 | D11: 67,125
A12: 增值税五五分享税收返还收入 | B12: 12,668 | C12: 均衡性转移支付收入
A13: （二）一般性转移支付收入 | B13: 365,399 | C13: 县级基本财力保障机制奖补资金收入
A14: 体制补助收入 | B14: 20 | C14: 结算补助收入
A15: 均衡性转移支付收入 | B15: 100,948 | C15: 资源枯竭型城市转移支付补助收入
A16: 县级基本财力保障机制奖补资金收入 | B16: 35,717 | C16: 企业事业单位划转补助收入
A17: 结算补助收入 | B17: 10,035 | C17: 成品油税费改革转移支付补助收入
A18: 资源枯竭型城市转移支付补助收入 | B18: 1,259 | C18: 基层公检法司转移支付收入
A19: 产粮（油）大县奖励资金收入 | B19: 2,732 | C19: 城乡义务教育转移支付收入
A20: 固定数额补助收入 | B20: 19,539 | C20: 基本养老金转移支付收入
A21: 巩固脱贫攻坚成果衔接乡村振兴转移支付收入 | B21: 5,751 | C21: 城乡居民医疗保险转移支付收入
A22: 公共安全共同财政事权转移支付收入 | B22: 4,100 | C22: 农村综合改革转移支付收入
A23: 教育共同财政事权转移支付收入 | B23: 20,311 | C23: 产粮（油）大县奖励资金收入
A24: 科学技术共同财政事权转移支付收入 | C24: 重点生态功能区转移支付收入
A25: 文化旅游体育与传媒共同财政事权转移支付收入 | B25: 976 | C25: 固定数额补助收入
A26: 社会保障和就业共同财政事权转移支付收入 | B26: 43,108 | C26: 革命老区转移支付收入
A27: 医疗卫生共同财政事权转移支付收入 | B27: 25,545 | C27: 民族地区转移支付收入
A28: 节能环保共同财政事权转移支付收入 | B28: 2,577 | C28: 边疆地区转移支付收入
A29: 城乡社区共同财政事权转移支付收入 | B29: 130 | C29: 贫困地区转移支付收入
A30: 农林水共同财政事权转移支付收入 | B30: 16,561 | C30: 其他一般性转移支付收入 | D30: 1,259
A31: 交通运输共同财政事权转移支付收入 | B31: 24,799 | C31: （二）专项转移支付收入 | D31: =SUM(D32:D52) -> 25,490
A32: 住房保障共同财政事权转移支付收入 | B32: 50,288 | C32: 一般公共服务 | D32: 3,662
A33: 灾害防治及应急管理共同财政事权转移支付支出 | B33: 654 | C33: 外交
A34: 省拨付补助支出 | C34: 国防
A35: 其他一般性转移支付收入 | B35: 348 | C35: 公共安全 | D35: 252
A36: （三）专项转移支付收入 | B36: 55,070 | C36: 教育
A37: 一般公共服务 | B37: 40 | C37: 科学技术
A38: 公共安全 | B38: 24 | C38: 文化体育与传媒 | D38: 754
A39: 科学技术 | C39: 社会保障和就业 | D39: 242
A40: 文化旅游体育与传媒 | B40: 2,404 | C40: 卫生健康支出 | D40: 26
A41: 社会保障和就业 | B41: 3,456 | C41: 节能环保 | D41: 1,249
A42: 卫生健康 | B42: 157 | C42: 城乡社区 | D42: 4,174
A43: 节能环保 | B43: 9,119 | C43: 农林水 | D43: 6,656
A44: 城乡社区 | C44: 交通运输 | D44: 1,203
A45: 农林水 | B45: 21,945 | C45: 资源勘探信息等
A46: 交通运输 | B46: 919 | C46: 商业服务业等
A47: 资源勘探工业信息等 | B47: 450 | C47: 金融
A48: 商业服务业等 | B48: 649 | C48: 自然资源海洋气象等 | D48: 88
A49: 金融 | B49: 84 | C49: 住房保障 | D49: 6,268
A50: 自然资源海洋气象等 | B50: 198 | C50: 粮油物资储备
A51: 住房保障 | B51: 11,205 | C51: 灾害防治及应急管理 | D51: 611
A52: 粮油物资储备 | C52: 其他收入 | D52: 305
A53: 灾害防治及应急管理 | B53: 2,184
A54: 其他收入 | B54: 2,236
A55: 二、街镇上解收入 | B55: 0
A56: 三、调入资金 | B56: =SUM(B57:B60) -> 35,333 | C56: 三、区域间转移性支出 | D56: 1,100
A57: 调入预算稳定调节基金 | C57: 生态保护补偿转移性支出 | D57: 1,100
A58: 从政府性基金预算调入 | B58: 16,361
A59: 从国有资本经营预算调入 | B59: 18,972 | C59: 四、债券还本支出 | D59: =SUM(D60:D61) -> 207,340
A60: 从其他资金调入 | C60: 地方政府一般债务还本支出 | D60: 207,200
A61: 四、区域间转移性收入 | B61: 1,200 | C61: 地方政府向国际组织借款还本支出 | D61: 140
A62: 生态保护补偿转移性收入 | B62: 1,200
A64: 五、地方政府债券收入 | B64: =SUM(B65:B66) -> 210,580
A65: 地方政府一般债务收入
A66: 地方政府一般债务转贷收入 | B66: 210,580
A67: 注：1.本表详细反映2025年一般公共预算转移性收入和转移性支出情况，其中中央补助和补助区县细化到项级科目。补助街镇支出主要为对街镇城乡低保、农村公共服务、基础设施建设等补助支出。 2.按转移支付资金管理办法规定，部分街镇使用的转移支付资金需在区级部门列支。

Sheet 15
A1: 表15
A2: 重庆市綦江区2025年区级一般公共预算转移支付对镇街支出执行表
A3: （分地区）
A4: 制表：綦江区财政局 | D4: 单位：万元
A5: 支 出 | B5: 执行数
B6: 小计 | C6: 一般性转移支付 | D6: 专项转移支付
A7: 合计 | B7: =C7+D7 -> 93,874 | C7: =SUM(C8:C28) -> 68,384 | D7: =SUM(D8:D28) -> 25,490
A8: 古南街道 | B8: 7,947 | C8: 5,551 | D8: 2,396
A9: 文龙街道 | B9: 7,598 | C9: 5,762 | D9: 1,836
A10: 三江街道 | B10: 5,049 | C10: 3,822 | D10: 1,227
A11: 新盛街道 | B11: 2,814 | C11: 2,031 | D11: 783
A12: 通惠街道 | B12: 5,714 | C12: 4,475 | D12: 1,239
A13: 石角镇 | B13: 5,184 | C13: 4,051 | D13: 1,133
A14: 东溪镇 | B14: 5,915 | C14: 4,509 | D14: 1,406
A15: 赶水镇 | B15: 6,163 | C15: 4,354 | D15: 1,809
A16: 打通镇 | B16: 4,626 | C16: 3,435 | D16: 1,191
A17: 石壕镇 | B17: 4,120 | C17: 2,957 | D17: 1,163
A18: 永新镇 | B18: 5,746 | C18: 4,277 | D18: 1,469
A19: 三角镇 | B19: 4,579 | C19: 3,321 | D19: 1,258
A20: 隆盛镇 | B20: 4,146 | C20: 2,815 | D20: 1,331
A21: 郭扶镇 | B21: 4,399 | C21: 3,380 | D21: 1,019
A22: 篆塘镇 | B22: 3,708 | C22: 2,265 | D22: 1,443
A23: 丁山镇 | B23: 1,685 | C23: 1,218 | D23: 467
A24: 安稳镇 | B24: 3,692 | C24: 2,722 | D24: 970
A25: 扶欢镇 | B25: 3,043 | C25: 2,233 | D25: 810
A26: 永城镇 | B26: 2,708 | C26: 1,825 | D26: 883
A27: 中峰镇 | B27: 2,139 | C27: 1,656 | D27: 483
A28: 横山镇 | B28: 2,899 | C28: 1,725 | D28: 1,174

Sheet 16
A1: 表16
A2: 重庆市綦江区2025年区级政府性基金预算转移性收支执行表
A3: 制表：綦江区财政局 | C3: 单位：万元
A4: 收 入 | B4: 执行数 | C4: 支 出 | D4: 执行数
A5: 上级补助收入 | B5: 54,852 | C5: 补助街镇支出 | D5: =D6+D21+D30 -> 7,141
A6: 节能环保 | B6: 20,040 | C6: 城乡社区支出 | D6: =D7+D15+D16 -> 978
A7: 超长期特别国债安排的支出 | B7: 20,040 | C7: 国有土地使用权出让收入安排的支出 | D7: =SUM(D8:D14) -> 822
A8: 城乡社区 | B8: 12,819 | C8: 征地和拆迁补偿支出
A9: 国有土地使用权收入 | B9: 1,896 | C9: 土地开发支出
A10: 农村基础设施建设 | B10: 325 | C10: 城市建设支出
A11: 农业生产发展 | B11: 406 | C11: 农村基础设施建设支出 | D11: 199
A12: 其他国有土地使用权出让收入 | B12: 1,165 | C12: 农业生产发展支出
A13: 城市基础设施配套费安排的支出 | B13: 1,903 | C13: 农业农村生态环境支出
A14: 其他城市基础设施配套费安排的支出 | B14: 1,903 | C14: 其他国有土地使用权出让收入安排的支出 | D14: 623
A15: 超长期特别国债安排的支出 | B15: 9,020 | C15: 农业土地开发资金安排的支出
A16: 农林水 | B16: 14,105 | C16: 城市基础设施配套费安排的支出 | D16: =SUM(D17:D19) -> 156
A17: 三峡水库库区基金支出 | B17: 81 | C17: 城市公共设施
A18: 基础设施建设和经济发展 | B18: 81 | C18: 城市环境卫生
A19: 大中型水库移民后期扶持基金支出 | B19: 187 | C19: 其他城市基础设施配套费安排的支出 | D19: 156
A20: 移民补助 | B20: 187
A21: 小型水库移民扶助基金安排的支出 | B21: 537 | C21: 农林水支出 | D21: =D22+D24+D27 -> 126
A22: 基础设施建设和经济发展 | B22: 537 | C22: 大中型水库库区基金安排的支出 | D22: =D23 -> 0
A23: 超长期特别国债安排的支出 | B23: 13,300 | C23: 基础设施建设和经济发展
A24: 资源勘探工业信息 | B24: 3,675 | C24: 大中型水库移民后期扶持安排的支出 | D24: =D25+D26 -> 34
A25: 超长期特别国债安排的支出 | B25: 3,675 | C25: 移民补助 | D25: 4
A26: 住房保障 | B26: 1,305 | C26: 基础设施建设和经济发展 | D26: 30
A27: 超长期特别国债安排的支出 | B27: 1,305 | C27: 小型水库移民后期扶持安排的支出 | D27: =D28 -> 92
A28: 其他收入 | B28: 2,908 | C28: 基础设施建设和经济发展 | D28: 92
A29: 彩票公益金 | B29: 2,908
A30: 彩票公益金 | B30: 2,206 | C30: 其他支出 | D30: =D31+D33 -> 6,037
A31: 用于社会福利的彩票公益金 | B31: 9 | C31: 债务收入安排的支出 | D31: =D32 -> 5,944
A32: 用于体育事业的彩票公益金 | B32: 403 | C32: 其他政府性基金债务收入安排的支出 | D32: 5,944
A33: 用于教育事业的彩票公益金 | B33: 120 | C33: 彩票公益金安排的支出 | D33: =SUM(D34:D37) -> 93
A34: 用于残疾人事业的彩票公益金 | B34: 170 | C34: 用于社会福利的彩票公益金支出
A35: 用于城乡医疗救助的彩票公益金 | B35: 0 | C35: 用于体育事业的彩票公益金支出 | D35: 92
A36: 用于其他社会公益事业的彩票公益金 | C36: 用于扶贫的彩票公益金支出 | D36: 0
A37: 超长期特别国债安排的支出 | C37: 用于其他社会公益事业的彩票公益金支出 | D37: 1

Sheet 17
A1: 表17
A2: 重庆市綦江区2025年政府债务限额及余额情况表
K3: 单位：亿元
A4: 单位 | B4: 2025年政府债务限额 | E4: 2025年政府债务余额
B5: 小计 | C5: 一般债务 | D5: 专项债务 | E5: 小计 | G5: 一般债务 | I5: 专项债务 | K5: 主权外债
F6: 其中：2025年到期债券 | H6: 其中：2025年到期债券 | J6: 其中：2025年到期债券 | L6: 其中：2025年到期债券
A7: 全区合计 | B7: 294.45 | C7: 107.24 | D7: 187.21 | E7: 294.45 | F7: 20.74 | G7: 107.07 | H7: 20.72 | I7: 187.21 | K7: 0.17 | L7: 0.02
A8: 注：经市政府批准，市财政局核定我区2025年政府债务限额为294.45亿元，其中：一般债务限额107.24亿元，专项债务限额187.21亿元。截至2025年末，我区政府债务余额为294.45亿元，符合市财政局核定的限额。

Sheet 18
A1: 表18
A2: 重庆市綦江区2025年政府债券额度分配情况表
J3: 单位：亿元
A4: 单位 | B4: 合 计 | E4: 2025年置换债券额度 | H4: 2025年新增债券额度
C5: 一般债券 | D5: 专项债券 | E5: 小计 | F5: 一般债券 | G5: 专项债券 | H5: 小计 | I5: 一般债券 | J5: 专项债券
A6: 全区合计 | B6: 40.93 | C6: 21.06 | D6: 19.87 | E6: 18.65 | F6: 18.65 | G6: 0.00 | H6: 22.28 | I6: 2.41 | J6: 19.87
A7: 注：2025年，由市代我区发行的政府债券40.93亿元，其中：置换债券18.65亿元，用于置换存量政府债务；新增债券22.28亿元，用于我区2025年政府投资计划中的项目等。

Sheet 19
A1: 表19
A2: 重庆市綦江区2025年新增一般债券用途项目表
G3: 单位：万元
A4: 序号 | B4: 债券类型 | C4: 债券发行年度 | D4: 额度分配明细 | G4: 备注
D5: 预算单位 | E5: 项目名称 | F5: 债券金额
A6: 1 | B6: 一般债券 | C6: 2025 | D6: 232001-重庆市綦江区新城建设管理委员会（本级） | E6: 綦江区北部新城气田村片区城中村改造项目安置房配套道路一期 | F6: 4,000
A7: 2 | B7: 一般债券 | C7: 2025 | D7: 232001-重庆市綦江区新城建设管理委员会（本级） | E7: 綦江区永城镇老旧小区改造基础设施改造提升项目 | F7: 2,000
A8: 3 | B8: 一般债券 | C8: 2025 | D8: 204011-重庆市綦江区中小学基本建设管理服务中心 | E8: 綦江区中小学控温系统安全排危改造工程 | F8: 900
A9: 4 | B9: 一般债券 | C9: 2025 | D9: 215004-重庆市綦江区市政管理所 | E9: 綦江区龙脊山片区老旧小区人行通道改造工程 | F9: 1,300
A10: 5 | B10: 一般债券 | C10: 2025 | D10: 207001-重庆市綦江区民政局（本级） | E10: 重庆市綦江区老年养护中心 | F10: 2,600
A11: 6 | B11: 一般债券 | C11: 2025 | D11: 227001-重庆市綦江区林业局（本级） | E11: 綦江区重点区域森林草原防火道路建设项目 | F11: 500
A12: 7 | B12: 一般债券 | C12: 2025 | D12: 227001-重庆市綦江区林业局（本级） | E12: 綦江区重点区域森林草原生物防火隔离带建设项目 | F12: 200
A13: 8 | B13: 一般债券 | C13: 2025 | D13: 217005-重庆市綦江区水利水电工程运行服务站 | E13: 綦江2025年供水及配套基础设施改造项目 | F13: 400
A14: 9 | B14: 一般债券 | C14: 2025 | D14: 215004-重庆市綦江区市政管理所 | E14: 綦江区老船厂片区老旧小区人行通道高空防坠排危工程 | F14: 500
A15: 10 | B15: 一般债券 | C15: 2025 | D15: 606001-重庆市綦江区规划和自然资源局（本级） | E15: 2025年綦江区地灾综合整治项目 | F15: 500
A16: 11 | B16: 一般债券 | C16: 2025 | D16: 223001-重庆市綦江区应急管理局（本级） | E16: 綦江区应急救援能力提升工程 | F16: 200
A17: 12 | B17: 一般债券 | C17: 2025 | D17: 227001-重庆市綦江区林业局（本级） | E17: 綦江区森林防火救灾能力提升工程 | F17: 200
A18: 13 | B18: 一般债券 | C18: 2025 | D18: 217003-重庆市綦江区水利水电工程建设服务站 | E18: 綦江区应急抗旱能力提升工程（一期） | F18: 500
A19: 14 | B19: 一般债券 | C19: 2025 | D19: 208001-重庆市綦江区公安局（本级） | E19: 綦江区公安局永城派出所迁建工程 | F19: 900
A20: 15 | B20: 一般债券 | C20: 2025 | D20: 208001-重庆市綦江区公安局（本级） | E20: 綦江区公安局三角派出所迁建工程 | F20: 900
A21: 16 | B21: 一般债券 | C21: 2025 | D21: 217014-重庆市綦江区水务建设运营管理中心 | E21: 东溪镇福林河、丁山河、綦河（东溪-赶水段）河道 综合治理工程 | F21: 4,300
A22: 17 | B22: 一般债券 | C22: 2025 | D22: 207001-重庆市綦江区民政局（本级） | E22: 重庆市綦江区老年养护中心 | F22: 1,200
A23: 18 | B23: 一般债券 | C23: 2025 | D23: 420001-重庆市綦江区横山镇人民政府（本级） | E23: 綦江区横山场镇周边村社环境治理及生态修复项目 | F23: 200
A24: 19 | B24: 一般债券 | C24: 2025 | D24: 232001-重庆市綦江区新城建设管理委员会（本级） | E24: 綦江区共同片区城中村配套连接道路改造工程项目 | F24: 2,800

Sheet 20
A1: 表20
A2: 2025年预备费动支情况表
A3: 制表：区财政局 | F3: 单位：万元
A4: 序号 | B4: 单位 | C4: 项目名称 | D4: 安排金额 | E4: 追加文号 | F4: 备注
B5: 预备费 | D5: =D6 -> 184
A6: 1 | B6: 区卫健委、区农委 | C6: 基孔肯亚热和登革热疫情防控 | D6: =85+99 -> 184 | E6: 綦江财发〔2025〕2号 | F6: 疫情防控，动支预备费列支

Sheet 21
A1: 表21
A2: 重庆市綦江区2026年区本级一般公共预算收支草案表
A3: 制表：綦江区财政局 | F3: 单位：万元
A4: 预算收入 | D4: 预算支出
A5: 项目 | B5: 2026年预算数 | C5: 比上年 同口径±% | D5: 项目 | E5: 2026年预算数 | F5: 比上年 同口径±%
A6: 101 税收收入 | B6: 141,623 | C6: 10.2 | D6: 201 一般公共服务 | E6: 44,135 | F6: -12.3
A7: 10101 增值税 | B7: 36,826 | C7: -2.3 | D7: 203 国防 | E7: 647 | F7: -7.3
A8: 10104 企业所得税 | B8: 16,400 | C8: 116.9 | D8: 204 公共安全 | E8: 29,865 | F8: -16.3
A9: 10106 个人所得税 | B9: 2,304 | C9: -4.0 | D9: 205 教育 | E9: 154,610 | F9: -4.1
A10: 10107 资源税 | B10: 4,300 | C10: -17.3 | D10: 206 科学技术 | E10: 9,855 | F10: -1.3
A11: 10109 城市维护建设税 | B11: 7,950 | C11: -7.0 | D11: 207 文化体育与传媒 | E11: 17,229 | F11: 59.5
A12: 10110 房产税 | B12: 15,400 | C12: -21.4 | D12: 208 社会保障和就业 | E12: 148,441 | F12: 12.2
A13: 10111 印花税 | B13: 4,200 | C13: -24.3 | D13: 210 卫生健康支出 | E13: 85,277 | F13: -7.7
A14: 10112 城镇土地使用税 | B14: 16,200 | C14: -20.6 | D14: 211 节能环保 | E14: 34,963 | F14: 11.8
A15: 10113 土地增值税 | B15: 10,900 | C15: 824.5 | D15: 212 城乡社区 | E15: 67,670 | F15: 33.4
A16: 10118 耕地占用税 | B16: 11,013 | C16: 33.6 | D16: 213 农林水 | E16: 102,969 | F16: -6.9
A17: 10119 契税 | B17: 15,600 | C17: 35.7 | D17: 214 交通运输 | E17: 41,318 | F17: -30.6
A18: 10121 环保税 | B18: 530 | C18: -17.2 | D18: 215 资源勘探信息等 | E18: 3,100 | F18: -24.9
A19: 10199 其他税收收入 | D19: 216 商业服务业等 | E19: 1,401 | F19: -22.3
A20: 103 非税收入 | B20: 168,393 | C20: 48.1 | D20: 217 金融支出 | E20: 131
A21: 10302 专项收入 | B21: 6,500 | C21: -31.7 | D21: 220 自然资源海洋气象等 | E21: 14,531 | F21: 53.8
A22: 10304 行政事业性收费 | B22: 7,000 | C22: -67.3 | D22: 221 住房保障 | E22: 94,434 | F22: 46.2
A23: 10305 罚没收入 | B23: 15,620 | C23: 76.9 | D23: 222 粮油物资储备 | E23: 23 | F23: -97.6
A24: 10307 国有资产有偿使用收入 | B24: 138,303 | C24: 89.4 | D24: 224 灾害防治及应急管理支出 | E24: 11,988 | F24: 2.3
A25: 10308 捐赠收入 | C25: -100.0 | D25: 227 预备费 | E25: 14,000 | F25: 0.0
A26: 10399 其他收入 | B26: 970 | C26: 3.0 | D26: 229 其他支出
D27: 231 债务还本支出
D28: 232 债务付息 | E28: 32,576 | F28: -2.1
D29: 233 债务发行费用
A31: 收 入 合 计 | B31: =B6+B20 -> 310,016 | C31: 28.0 | D31: 支 出 合 计 | E31: =SUM(E6:E30) -> 909,163 | F31: 2.7
A32: 一、上级补助收入 | B32: 366,573 | C32: 21.4 | D32: 一、上解上级支出 | E32: 55,226 | F32: -15.4
A33: 返还性收入 | B33: 27,503 | C33: 0.0 | D33: 体制上解 | E33: 7,170 | F33: 0.0
A34: 一般性转移支付收入 | B34: 292,179 | C34: 15.5 | D34: 专项上解 | E34: 48,056 | F34: -17.4
A35: 专项转移支付收入 | B35: 46,891 | C35: 119.0 | D35: 二、补助街镇支出 | E35: 78,822 | F35: 14.9
A36: 二、街镇上解收入 | D36: 三、债务还本支出 | E36: 421,700 | F36: 103.5
A37: 三、债券转贷收入 | B37: 379,530 | C37: 103.5 | D37: 四、补充预算稳定调节基金
A38: 一般债券转贷收入 | B38: 379,530 | C38: 103.5 | D38: 五、当年结转结余
A39: 新增债券收入
A40: 四、上年结转结余 | B40: 160,050 | C40: 1.7
A41: 五、调入预算稳定调节基金 | B41: 102,600 | C41: -50.0
A42: 六、调入资金 | B42: 146,142 | C42: 9.3
A43: 政府性基金预算调入 | B43: 111,142 | C43: 5.8
A44: 国有资本经营预算调入 | B44: 35,000 | C44: 21.7
A45: 收 入 总 计 | B45: =B31+B32+B37+B40+B41+B42 -> 1,464,911 | C45: 19.4 | D45: 支 出 总 计 | E45: =E31+E32+E35+E36 -> 1,464,911 | F45: 19.4
A46: 注：本表直观反映2026年区级一般公共预算收入与支出的平衡关系。收入总计（本级收入合计+转移性收入合计）=支出总计（本级支出合计+转移性支出合计）。

Sheet 22
A1: 表22
A2: 重庆市綦江区2026年区本级政府性基金预算收支草案表
A3: 制表：綦江区财政局 | F3: 单位：万元
A4: 预算收入 | D4: 预算支出
A5: 项目 | B5: 2026年预算数 | C5: 比上年±% | D5: 项目 | E5: 2026年预算数 | F5: 比上年±%
A6: 1030146 国有土地收益基金 | B6: 13,428 | C6: -12.6 | D6: 207 文化体育与传媒 | E6: 0
A7: 1030147 农业土开发资金 | B7: 874 | C7: -12.6 | D7: 208 社会保障和就业
A8: 1030148 国有土地使用权出让 | B8: 209,498 | C8: -11.8 | D8: 210 卫生健康 | E8: 6,251 | F8: -66.4
A9: 1030156 城市基础设施配套费收入 | B9: 13,500 | C9: 350.0 | D9: 211 节能环保 | E9: 24,242 | F9: 162.4
A10: 1030178 污水处理费收入 | B10: 4,000 | C10: 38.6 | D10: 212 城乡社区 | E10: 224,705 | F10: 93.1
A11: 1050402 专项债务收益 | B11: 109,434 | C11: 428.7 | D11: 213 农林水 | E11: 9,133 | F11: 1,475.7
D12: 214 交通运输 | E12: 2,263
D13: 215 资源勘探信息等 | E13: 3,289
D14: 221 住房保障 | E14: 848
D15: 229 其他支出 | E15: 16,710 | F15: -47.2
D16: 232 债务付息 | E16: 62,059 | F16: 9.4
D17: 233 债务发行费用 | E17: 0
A18: 收 入 合 计 | B18: =SUM(B6:B11) -> 350,734 | C18: 25.1 | D18: 支 出 合 计 | E18: =SUM(E6:E17) -> 349,500 | F18: 49.9
A19: 一、上级补助收入 | B19: 9,818 | C19: 141.7 | D19: 一、上解上级支出 | E19: 12,015 | F19: -18.8
A20: 二、街镇上解收入 | D20: 二、补助街镇支出 | E20: 4,553 | F20: 57.9
A21: 三、债券转贷收入 | B21: 280,620 | D21: 三、债务还本支出 | E21: 316,800
A22: 四、上年结转结余 | B22: 152,838 | C22: 114.2 | D22: 四、调出资金 | E22: 111,142 | F22: 5.8
A23: 五、调入资金 | D23: 五、当年结转结余
A25: 收 入 总 计 | B25: =B18+B19+B21+B22 -> 794,010 | C25: 123.1 | D25: 支 出 总 计 | E25: =E18+E19+E20+E21+E22+E23 -> 794,010 | F25: 123.1
A26: 注：本表直观反映2026年区级政府性基金预算收入与支出的平衡关系。收入总计（本级收入合计+转移性收入合计）=支出总计（本级支出合计+转移性支出合计）。

Sheet 23
A1: 表23
A2: 重庆市綦江区2026年区本级国有资本经营预算收支草案表
A3: 制表：綦江区财政局 | F3: 单位：万元
A4: 预算收入 | D4: 预算支出
A5: 项目 | B5: 2026年 预算草案 | C5: 比上年±% | D5: 项目 | E5: 2026年 预算草案 | F5: 比上年±%
A6: 1030601 利润收入 | B6: 35,000 | C6: 21.7 | D6: 208 社会保障和就业
A7: 1030602 股利、股息收入 | D7: 22301 解决历史遗留问题及改革成本 | E7: 321 | F7: 2.3
A8: 1030603 产权转让收入 | D8: 22302 国有企业资本金注入
A9: 1030604 清算收入 | D9: 22303 国有企业政策性补贴
A10: 1030698 其他国有资本经营预算收入 | D10: 22304 金融国有资本经营预算支出
D11: 22399 其他国有资本经营预算支出
A15: 收 入 合 计 | B15: =B6 -> 35,000 | C15: 21.7 | D15: 支 出 合 计 | E15: =E7 -> 321 | F15: 2.3
A16: 一、上级补助收入 | B16: 213 | D16: 一、调出资金 | E16: 35,000
A17: 二、上年结转结余 | B17: 108 | D17: 二、当年结转结余
D18: 三、补助街镇支出
A22: 收 入 总 计 | B22: =B15+B16+B17 -> 35,321 | C22: 21.5 | D22: 支 出 总 计 | E22: =E15+E16 -> 35,321 | F22: 21.5
A23: 说明：全区国有资本经营预算收支皆为区本级收支。

Sheet 24
A1: 表24
A2: 重庆市綦江区2026年区本级一般公共预算支出功能科目预算表
A3: （按功能分类科目到项级）
A4: 制表：綦江区财政局 | C4: 单位：万元
A5: 科目编码 | B5: 科目名称 | C5: 预算数
A6: 区本级支出合计 | C6: =C7+C114+C118+C139+C158+C169+C194+C276+C323+C351+C364+C426+C439+C448+C455+C458+C466+C477+C482+C497+C498+2 -> 909,163
A7: 201 | C7: 44,135
A8: 20101 | C8: 4,848
A9: 2010101 | B9: 行政运行 | C9: 1,983
A10: 2010102 | B10: 一般行政管理事务 | C10: 2,005
A11: 2010104 | B11: 人大会议 | C11: 299
A12: 2010106 | B12: 人大监督 | C12: 53
A13: 2010107 | B13: 人大代表履职能力提升 | C13: 25
A14: 2010108 | B14: 代表工作 | C14: 352
A15: 2010150 | B15: 事业运行 | C15: 131
A16: 20102 | C16: 5,454
A17: 2010201 | B17: 行政运行 | C17: 1,215
A18: 2010202 | B18: 一般行政管理事务 | C18: 2,082
A19: 2010203 | B19: 机关服务 | C19: 1,600
A20: 2010204 | B20: 政协会议 | C20: 151
A21: 2010205 | B21: 委员视察 | C21: 52
A22: 2010206 | B22: 参政议政 | C22: 288
A23: 2010250 | B23: 事业运行 | C23: 66
A24: 20103 | C24: 5,141
A25: 2010301 | B25: 行政运行 | C25: 1,647
A26: 2010302 | B26: 一般行政管理事务 | C26: 1,589
A27: 2010350 | B27: 事业运行 | C27: 1,197
A28: 2010399 | B28: 其他政府办公厅（室）及相关机构事务支出 | C28: 707
A29: 20104 | C29: 2,115
A30: 2010401 | B30: 行政运行 | C30: 445
A31: 2010402 | B31: 一般行政管理事务 | C31: 458
A32: 2010406 | B32: 社会事业发展规划 | C32: 232
A33: 2010408 | B33: 物价管理 | C33: 35
A34: 2010450 | B34: 事业运行 | C34: 760
A35: 2010499 | B35: 其他发展与改革事务支出 | C35: 185
A36: 20105 | C36: 943
A37: 2010501 | B37: 行政运行 | C37: 457
A38: 2010506 | B38: 统计管理 | C38: 10
A39: 2010507 | B39: 专项普查活动 | C39: 300
A40: 2010508 | B40: 统计抽样调查 | C40: 176
A41: 20106 | C41: 3,315
A42: 2010601 | B42: 行政运行 | C42: 1,927
A43: 2010602 | B43: 一般行政管理事务 | C43: 541
A44: 2010650 | B44: 事业运行 | C44: 387
A45: 2010699 | B45: 其他财政事务支出 | C45: 460
A46: 20107 | C46: 500
A47: 2010702 | B47: 一般行政管理事务 | C47: 500
A48: 20108 | C48: 148
A49: 2010804 | B49: 审计业务 | C49: 148
A50: 20111 | C50: 4,823
A51: 2011101 | B51: 行政运行 | C51: 2,225
A52: 2011102 | B52: 一般行政管理事务 | C52: 2,281
A53: 2011150 | B53: 事业运行 | C53: 318
A54: 20113 | C54: 1,405
A55: 2011301 | B55: 行政运行 | C55: 363
A56: 2011302 | B56: 一般行政管理事务 | C56: 280
A57: 2011307 | B57: 国内贸易管理 | C57: 405
A58: 2011350 | B58: 事业运行 | C58: 356
A59: 20123 | C59: 20
A60: 2012304 | B60: 民族工作专项 | C60: 20
A61: 20125 | C61: 135
A62: 2012501 | B62: 行政运行 | C62: 129
A63: 2012502 | B63: 一般行政管理事务 | C63: 6
A64: 20126 | C64: 624
A65: 2012601 | B65: 行政运行 | C65: 442
A66: 2012604 | B66: 档案馆 | C66: 182
A67: 20128 | C67: 365
A68: 2012801 | B68: 行政运行 | C68: 305
A69: 2012802 | B69: 一般行政管理事务 | C69: 61
A70: 20129 | C70: 1,825
A71: 2012901 | B71: 行政运行 | C71: 831
A72: 2012902 | B72: 一般行政管理事务 | C72: 163
A73: 2012950 | B73: 事业运行 | C73: 405
A74: 2012999 | B74: 其他群众团体事务支出 | C74: 427
A75: 20131 | C75: 4,602
A76: 2013101 | B76: 行政运行 | C76: 1,739
A77: 2013102 | B77: 一般行政管理事务 | C77: 1,230
A78: 2013105 | B78: 专项业务 | C78: 934
A79: 2013150 | B79: 事业运行 | C79: 353
A80: 2013199 | B80: 其他党委办公厅（室）及相关机构事务支出 | C80: 346
A81: 20132 | C81: 1,874
A82: 2013201 | B82: 行政运行 | C82: 531
A83: 2013202 | B83: 一般行政管理事务 | C83: 1,252
A84: 2013250 | B84: 事业运行 | C84: 71
A85: 2013299 | B85: 其他组织事务支出 | C85: 20
A86: 20133 | C86: 901
A87: 2013301 | B87: 行政运行 | C87: 261
A88: 2013302 | B88: 一般行政管理事务 | C88: 533
A89: 2013350 | B89: 事业运行 | C89: 108
A90: 20134 | C90: 606
A91: 2013401 | B91: 行政运行 | C91: 213
A92: 2013402 | B92: 一般行政管理事务 | C92: 156
A93: 2013404 | B93: 宗教事务 | C93: 27
A94: 2013405 | B94: 华侨事务 | C94: 15
A95: 2013450 | B95: 事业运行 | C95: 194
A96: 20137 | C96: 417
A97: 2013701 | B97: 行政运行 | C97: 120
A98: 2013702 | B98: 一般行政管理事务 | C98: 67
A99: 2013750 | B99: 事业运行 | C99: 231
A100: 20138 | C100: 364
A101: 2013804 | B101: 经营主体管理 | C101: 15
A102: 2013805 | B102: 市场秩序执法 | C102: 10
A103: 2013810 | B103: 质量基础 | C103: 10
A104: 2013899 | B104: 其他市场监督管理事务 | C104: 329
A105: 20139 | C105: 3,216
A106: 2013901 | B106: 行政运行 | C106: 185
A107: 2013902 | B107: 一般行政管理事务 | C107: 2,856
A108: 2013904 | B108: 专项业务 | C108: 68
A109: 2013950 | B109: 事业运行 | C109: 107
A110: 20140 | C110: 494
A111: 2014001 | B111: 行政运行 | C111: 200
A112: 2014004 | B112: 信访业务 | C112: 60
A113: 2014050 | B113: 事业运行 | C113: 234
A114: 203 | C114: 647
A115: 20306 | C115: 647
A116: 2030601 | B116: 兵役征集 | C116: 90
A117: 2030607 | B117: 民兵 | C117: 558
A118: 204 | C118: 29,865
A119: 20401 | C119: 30
A120: 2040199 | B120: 其他武装警察部队支出 | C120: 30
A121: 20402 | C121: 27,323
A122: 2040201 | B122: 行政运行 | C122: 8,561
A123: 2040202 | B123: 一般行政管理事务 | C123: 14,111
A124: 2040220 | B124: 执法办案 | C124: 4,651
A125: 20406 | C125: 2,455
A126: 2040601 | B126: 行政运行 | C126: 1,497
A127: 2040602 | B127: 一般行政管理事务 | C127: 92
A128: 2040604 | B128: 基层司法业务 | C128: 40
A129: 2040605 | B129: 普法宣传 | C129: 72
A130: 2040607 | B130: 公共法律服务 | C130: 281
A131: 2040610 | B131: 社区矫正 | C131: 182
A132: 2040612 | B132: 法治建设 | C132: 20
A133: 2040650 | B133: 事业运行 | C133: 170
A134: 2040699 | B134: 其他司法支出 | C134: 102
A135: 20409 | C135: 37
A136: 2040905 | B136: 保密管理 | C136: 37
A137: 20499 | C137: 19
A138: 2049999 | B138: 其他公共安全支出 | C138: 19
A139: 205 | C139: 154,610
A140: 20501 | C140: 13,381
A141: 2050101 | B141: 行政运行 | C141: 370
A142: 2050102 | B142: 一般行政管理事务 | C142: 2,596
A143: 2050199 | B143: 其他教育管理事务支出 | C143: 10,415
A144: 20502 | C144: 127,774
A145: 2050201 | B145: 学前教育 | C145: 7,144
A146: 2050202 | B146: 小学教育 | C146: 56,283
A147: 2050203 | B147: 初中教育 | C147: 37,949
A148: 2050204 | B148: 高中教育 | C148: 25,499
A149: 2050299 | B149: 其他普通教育支出 | C149: 900
A150: 20503 | C150: 10,736
A151: 2050302 | B151: 中等职业教育 | C151: 10,736
A152: 20507 | C152: 900
A153: 2050701 | B153: 特殊学校教育 | C153: 890
A154: 2050799 | B154: 其他特殊教育支出 | C154: 10
A155: 20508 | C155: 1,819
A156: 2050801 | B156: 教师进修 | C156: 977
A157: 2050802 | B157: 干部教育 | C157: 842
A158: 206 | C158: 9,855
A159: 20601 | C159: 5,741
A160: 2060101 | B160: 行政运行 | C160: 1,116
A161: 2060199 | B161: 其他科学技术管理事务支出 | C161: 4,624
A162: 20604 | C162: 2,820
A163: 2060404 | B163: 科技成果转化与扩散 | C163: 2,820
A164: 20605 | C164: 1,249
A165: 2060502 | B165: 技术创新服务体系 | C165: 1,249
A166: 20607 | C166: 45
A167: 2060702 | B167: 科普活动 | C167: 27
A168: 2060799 | B168: 其他科学技术普及支出 | C168: 18
A169: 207 | C169: 17,229
A170: 20701 | C170: 7,312
A171: 2070101 | B171: 行政运行 | C171: 2,828
A172: 2070102 | B172: 一般行政管理事务 | C172: 64
A173: 2070104 | B173: 图书馆 | C173: 125
A174: 2070108 | B174: 文化活动 | C174: 2
A175: 2070109 | B175: 群众文化 | C175: 362
A176: 2070111 | B176: 文化创作与保护 | C176: 2,704
A177: 2070112 | B177: 文化和旅游市场管理 | C177: 10
A178: 2070199 | B178: 其他文化和旅游支出 | C178: 1,217
A179: 20702 | C179: 773
A180: 2070204 | B180: 文物保护 | C180: 429
A181: 2070205 | B181: 博物馆 | C181: 344
A182: 20703 | C182: 5,648
A183: 2070305 | B183: 体育竞赛 | C183: 75
A184: 2070307 | B184: 体育场馆 | C184: 2,278
A185: 2070308 | B185: 群众体育 | C185: 3,024
A186: 2070399 | B186: 其他体育支出 | C186: 271
A187: 20706 | C187: 3,410
A188: 2070604 | B188: 新闻通讯 | C188: 3,410
A189: 20708 | C189: 64
A190: 2070806 | B190: 监测监管 | C190: 45
A191: 2070807 | B191: 传输发射 | C191: 19
A192: 20799 | C192: 21
A193: 2079903 | B193: 文化产业发展专项支出 | C193: 21
A194: 208 | C194: 148,441
A195: 20801 | C195: 18,925
A196: 2080101 | B196: 行政运行 | C196: 8,079
A197: 2080102 | B197: 一般行政管理事务 | C197: 7,363
A198: 2080105 | B198: 劳动保障监察 | C198: 10
A199: 2080106 | B199: 就业管理事务 | C199: 20
A200: 2080108 | B200: 信息化建设 | C200: 120
... 300 more rows

Sheet 25
A1: 表25
A2: 重庆市綦江区2026年区本级一般公共预算基本支出和项目支出功能科目预算表
A3: （按功能分类科目分基本支出和项目支出）
A4: 制表：綦江区财政局 | E4: 单位：万元
A5: 科目编码 | B5: 科目名称 | C5: 预算数
C6: 小计 | D6: 基本支出 | E6: 项目支出
A7: 区本级支出合计 | C7: =SUM(C8:C28) -> 909,163 | D7: =SUM(D8:D28) -> 304,049 | E7: =SUM(E8:E28) -> 605,114
A8: 201 | B8: 一般公共服务支出 | C8: =D8+E8 -> 130,632 | D8: 22,183 | E8: 108,450
A9: 203 | B9: 国防支出 | C9: 611 | D9: 287 | E9: 324
A10: 204 | B10: 公共安全支出 | C10: 36,177 | D10: 16,541 | E10: 19,637
A11: 205 | B11: 教育支出 | C11: 161,159 | D11: 130,362 | E11: 30,797
A12: 206 | B12: 科学技术支出 | C12: 9,318 | D12: 433 | E12: 8,885
A13: 207 | B13: 文化旅游体育与传媒支出 | C13: 8,679 | D13: 3,021 | E13: 5,658
A14: 208 | B14: 社会保障和就业支出 | C14: 139,941 | D14: 65,739 | E14: 74,202
A15: 210 | B15: 卫生健康支出 | C15: 70,192 | D15: 27,508 | E15: 42,683
A16: 211 | B16: 节能环保支出 | C16: 23,981 | D16: 1,612 | E16: 22,369
A17: 212 | B17: 城乡社区支出 | C17: 45,289 | D17: 5,422 | E17: 39,866
A18: 213 | B18: 农林水支出 | C18: 85,158 | D18: 7,326 | E18: 77,831
A19: 214 | B19: 交通运输支出 | C19: 44,877 | D19: 5,653 | E19: 39,225
A20: 215 | B20: 资源勘探工业信息等支出 | C20: 4,015 | D20: 1,059 | E20: 2,956
A21: 216 | B21: 商业服务业等支出 | C21: 874 | D21: 325 | E21: 548
A22: 217 | B22: 金融支出 | C22: 84 | E22: 84
A23: 220 | B23: 自然资源海洋气象等支出 | C23: 3,706 | D23: 514 | E23: 3,192
A24: 221 | B24: 住房保障支出 | C24: 93,351 | D24: 14,612 | E24: 78,739
A25: 222 | B25: 粮油物资储备支出 | C25: 168 | E25: 168
A26: 224 | B26: 灾害防治及应急管理支出 | C26: 4,377 | D26: 1,452 | E26: 2,925
A27: 227 | B27: 预备费 | C27: 14,000 | E27: 14,000
A28: 232 | B28: 债务付息 | C28: 32,576 | E28: 32,576
A29: 注：在功能分类的基础上，将每类支出分为基本支出和项目支出。基本支出，是指部门、单位为保障其机构正常运转、完成日常工作任务所发生的支出，包括人员经费和公用经费；项目支出，是指部门、单位为完成特定的工作任务和事业发展目标，在基本支出之外所发生的支出。

Sheet 26
A1: 表26
A2: 重庆市綦江区2026年区本级一般公共预算政府经济分类科目预算表
A3: （按经济分类科目到款）
A4: 制表：綦江区财政局 | C4: 单位：万元
A5: 科目编码 | B5: 科目名称 | C5: 预算数
A6: 区本级支出合计 | C6: =C7+C12+C23+C30+C34+C37+C40+C43+C45+C51+C53+C55 -> 909,163
A7: 501 | C7: 84,418
A8: 50101 | B8: 工资奖金津补贴 | C8: 59,310
A9: 50102 | B9: 社会保障缴费 | C9: 15,262
A10: 50103 | B10: 住房公积金 | C10: 4,492
A11: 50199 | B11: 其他工资福利支出 | C11: 354
A12: 502 | C12: 189,595
A13: 50201 | B13: 办公经费 | C13: 110,756
A14: 50202 | B14: 会议费 | C14: 396
A15: 50203 | B15: 培训费 | C15: 1,065
A16: 50204 | B16: 专用材料购置费 | C16: 3,422
A17: 50205 | B17: 委托业务费 | C17: 60,452
A18: 50206 | B18: 公务接待费 | C18: 211
A19: 50207 | B19: 因公出国（境）费用 | C19: 35
A20: 50208 | B20: 公务用车运行维护费 | C20: 1,023
A21: 50209 | B21: 维修（护）费 | C21: 8,982
A22: 50299 | B22: 其他商品和服务支出 | C22: 3,253
A23: 503 | C23: 79,767
A24: 50301 | B24: 房屋建筑物购建 | C24: 1,628
A25: 50302 | B25: 基础设施建设 | C25: 54,869
A26: 50303 | B26: 公务用车购置 | C26: 1
A27: 50306 | B27: 设备购置 | C27: 3,266
A28: 50307 | B28: 大型修缮 | C28: 17,826
A29: 50399 | B29: 其他资本性支出 | C29: 2,178
A30: 504 | C30: 74,016
A31: 50401 | B31: 房屋建筑物购建 | C31: 5,124
A32: 50402 | B32: 基础设施建设 | C32: 68,892
A33: 50404 | B33: 设备购置 | C33: 0
A34: 505 | C34: 231,724
A35: 50501 | B35: 工资福利支出 | C35: 193,622
A36: 50502 | B36: 商品和服务支出 | C36: 38,101
A37: 506 | C37: 58,443
A38: 50601 | B38: 资本性支出 | C38: 36,328
A39: 50602 | B39: 资本性支出（基本建设） | C39: 22,115
A40: 507 | C40: 6,411
A41: 50701 | B41: 费用补贴 | C41: 5,879
A42: 50799 | B42: 其他对企业补助 | C42: 532
A43: 508 | C43: 1,600
A44: 50804 | B44: 资本金注入(基本建设） | C44: 1,600
A45: 509 | C45: 132,159
A46: 50901 | B46: 社会福利和救助 | C46: 99,564
A47: 50902 | B47: 助学金 | C47: 4,848
A48: 50903 | B48: 个人农业生产补贴 | C48: 12,298
A49: 50905 | B49: 离退休费 | C49: 459
A50: 50999 | B50: 其他对个人和家庭的补助 | C50: 14,991
A51: 510 | C51: 4,453
A52: 51002 | B52: 对社会保险基金补助 | C52: 4,453
A53: 511 | C53: 32,576
A54: 51101 | B54: 国内债务付息 | C54: 32,576
A55: 514 | B55: 预备费 | C55: 14,000

Sheet 27
A1: 表27
A2: 重庆市綦江区2026年区本级政府性基金预算支出功能科目预算表
A3: （按功能分类科目到项级）
A4: 制表：綦江区财政局 | C4: 单位：万元
A5: 功能科目 | B5: 科目名称 | C5: 预算数
A6: 区本级支出合计 | C6: =C7+C10+C15+C31+C41+C44+C47+C56 -> 349,500
A7: 210 | B7: 卫生健康支出 | C7: 6251
A8: 21098 | B8: 超长期特别国债安排的支出 | C8: 6251
A9: 2109801 | B9: 公立医院 | C9: 6251
A10: 211 | B10: 节能环保支出 | C10: 24242
A11: 21198 | B11: 超长期特别国债安排的支出 | C11: 24242
A12: 2119801 | B12: 水污染综合治理 | C12: 19731
A13: 2119802 | B13: 应对气候变化 | C13: 765
A14: 2119899 | B14: 其他节能环保支出 | C14: 3746
A15: 212 | B15: 城乡社区支出 | C15: 224705
A16: 21208 | B16: 国有土地使用权出让收入安排的支出 | C16: 206267
A17: 2120802 | B17: 土地开发支出 | C17: 109024
A18: 2120803 | B18: 城市建设支出 | C18: 25415
A19: 2120804 | B19: 农村基础设施建设支出 | C19: 25038
A20: 2120814 | B20: 农业生产发展支出 | C20: 406
A21: 2120899 | B21: 其他国有土地使用权出让收入安排的支出 | C21: 46384
A22: 21211 | B22: 农业土地开发资金安排的支出 | C22: 100
A23: 21213 | B23: 城市基础设施配套费安排的支出 | C23: 4553
A24: 2121301 | B24: 城市公共设施 | C24: 2650
A25: 2121399 | B25: 其他城市基础设施配套费安排的支出 | C25: 1903
A26: 21214 | B26: 污水处理费安排的支出 | C26: 43
A27: 2121401 | B27: 污水处理设施建设和运营 | C27: 43
A28: 21298 | B28: 超长期特别国债安排的支出 | C28: 13743
A29: 2129801 | B29: 城乡社区公共设施 | C29: 11123
A30: 2129899 | B30: 其他城乡社区支出 | C30: 2620
A31: 213 | B31: 农林水支出 | C31: 9133
A32: 21367 | B32: 三峡水库库区基金支出 | C32: 81
A33: 2136701 | B33: 基础设施建设和经济发展 | C33: 81
A34: 21372 | B34: 大中型水库移民后期扶持基金支出 | C34: 281
A35: 2137201 | B35: 移民补助 | C35: 159
A36: 2137202 | B36: 基础设施建设和经济发展 | C36: 122
A37: 21373 | B37: 小型水库移民扶助基金安排的支出 | C37: 166
A38: 2137302 | B38: 基础设施建设和经济发展 | C38: 166
A39: 21398 | B39: 超长期特别国债安排的支出 | C39: 8604
A40: 2139801 | B40: 农业农村支出 | C40: 8604
A41: 215 | B41: 资源勘探工业信息等支出 | C41: 3289
A42: 21598 | B42: 超长期特别国债安排的支出 | C42: 3289
A43: 2159802 | B43: 制造业 | C43: 3289
A44: 221 | B44: 住房保障支出 | C44: 848
A45: 22198 | B45: 超长期特别国债安排的支出 | C45: 848
A46: 2219899 | B46: 其他住房保障支出 | C46: 848
A47: 229 | B47: 其他支出 | C47: 18973
A48: 22960 | B48: 彩票公益金安排的支出 | C48: 3971
A49: 2296002 | B49: 用于社会福利的彩票公益金支出 | C49: 1294
A50: 2296003 | B50: 用于体育事业的彩票公益金支出 | C50: 2098
A51: 2296004 | B51: 用于教育事业的彩票公益金支出 | C51: 438
A52: 2296006 | B52: 用于残疾人事业的彩票公益金支出 | C52: 136
A53: 2296099 | B53: 用于其他社会公益事业的彩票公益金支出 | C53: 6
A54: 22998 | B54: 超长期特别国债安排的支出 | C54: 15,002
A55: 2299899 | B55: 其他支出 | C55: 15,002
A56: 232 | B56: 债务付息支出 | C56: 62,059
A57: 23204 | B57: 地方政府专项债务付息支出 | C57: 62,059
A58: 2320498 | B58: 其他地方自行试点项目收益专项债券付息支出 | C58: 62,059

Sheet 28
A1: 表28
A2: 重庆市綦江区2026年一般公共预算转移性收支预算表
A3: 制表：綦江区财政局 | D3: 单位：万元
A4: 收入 | C4: 支出
A5: 项目 | B5: 预算数 | C5: 项目 | D5: 预算数
A6: 转移性收入 | B6: =B7+B49+B50+B57+B54+B55+B56 -> 1,168,203 | C6: 转移性支出 | D6: =D7+D10 -> 147,656 | F6: （二）上级补助收入 | G6: 301872.25
A7: 一、上级补助收入 | B7: =B8+B15+B38 -> 366,573 | C7: 一、上解支出 | D7: =D8+D9 -> 55,226 | F7: 1、一般性转移支付收入 | G7: 280459.25 | H7: =G7-G8 -> 252956.25
A8: （一）返还性收入 | B8: =SUM(B9:B14) -> 27,503 | C8: 体制上解支出 | D8: 7,170 | F8: （1）返还性收入 | G8: 27503
A9: 所得税基数返还收入 | B9: 1,657 | C9: 专项上解支出 | D9: 48,056 | F9: （2）均衡性转移支付收入 | G9: 50937
A10: 成品油税费改革税收返还收入 | C10: 二、补助街镇支出 | D10: =D11+D29 -> 92,430 | F10: （3）县级基本财力保障机制 | G10: 35717
A11: 增值税税收返还收入 | B11: 12,160 | C11: （一）一般性转移支付支出 | D11: =SUM(D12:D28) -> 62,622 | F11: （4）结算补助收入 | G11: 5547
A12: 消费税税收返还收入 | B12: 1,018 | C12: 增值税和消费税税收返还 | F12: （5）巩固脱贫攻坚成果衔接乡村振兴转移支付收入 | G12: 936
A13: 增值税“五五分享”税收返还收入 | B13: 12,668 | C13: 所得税基数返还 | F13: （6）资源枯竭型城市转移支付收入 | G13: 1259
A14: 其他返还性收入 | C14: 体制补助 | D14: 62,622 | F14: （7）体制补助收入 | G14: 20
A15: （二）一般性转移支付收入 | B15: =SUM(B16:B37) -> 292,179 | C15: 均衡性转移支付 | F15: （8）产粮（油）大县转移资金收入 | G15: 2531
A16: 均衡性转移支付收入 | B16: 75,275 | C16: 民族地区转移支付 | F16: （9）固定数额补助收入 | G16: 19539
A17: 县级基本财力保障机制 | B17: 51,665 | C17: 革命老区转移支付 | F17: （10）革、民、边、贫地区转移支付收入
A18: 结算补助收入 | B18: 7,331 | C18: 财政扶贫资金 | F18: （11）共同事权转移支付收入 | G18: 136122.25
A19: 基层公检法司转移支付收入 | C19: 街镇基本财力保障机制奖补资金 | F19: 教育共同事权 | G19: 18204
A20: 城乡义务教育等转移支付收入 | C20: 结算补助 | F20: 文化旅游共同事权 | G20: 582
A21: 资源枯竭型城市转移支付收入 | B21: 1,259 | C21: 资源枯竭型城市转移支付补助 | F21: 社保就业共同事权 | G21: 39681.82
A22: 城乡居民医疗保险转移支付收入 | C22: 农村综合改革转移支付 | F22: 医疗卫生健康共同事权 | G22: 18661
A23: 体制补助收入 | C23: 产粮（油）大县奖励资金 | F23: 节能环保共同事权 | G23: 158
A24: 大县转移资金收入 | B24: 2,531 | C24: 重点生态功能区转移支付 | F24: 农林水共同事权 | G24: 14973
A25: 固定数额补助收入 | B25: 19,539 | C25: 固定数额补助 | F25: 住房保障共同事权 | G25: 25958.65
A26: 巩固脱贫攻坚成果衔接乡村振兴转移支付 | B26: 4,491 | C26: 公共安全 | F26: 公共安全共同事权 | G26: 2834
A27: 公共安全共同财政事权转移支付 | B27: 3,181 | C27: 医疗卫生与计划生育 | F27: 交通共同事权 | G27: 14789.78
A28: 教育共同财政事权转移支付 | B28: 16,889 | C28: 其他一般性转移支付 | F28: 其他共同事权 | G28: 280
A29: 文化旅游体育与传媒共同财政事权转移支付 | B29: 915 | C29: （二）专项转移支付支出 | D29: =SUM(D30:D44) -> 29,808 | F29: （12）其他一般性转移支付收入 | G29: 348
A30: 社会保障和就业共同财政事权转移支付 | B30: 18,318 | C30: 一般公共服务 | D30: 351 | F30: 3、专项转移支付收入 | G30: 21413
A31: 医疗卫生共同财政事权转移支付 | B31: 24,703 | C31: 国防
A32: 节能环保共同财政事权转移支付 | B32: 1,383 | C32: 公共安全 | D32: 108
A33: 农林水共同财政事权转移支付 | B33: 24,084 | C33: 科技
A34: 交通运输共同财政事权转移支付 | B34: 16,646 | C34: 文化体育与传媒 | D34: 291
A35: 住房保障共同财政事权转移支付 | B35: 23,454 | C35: 社会保障和就业 | D35: 86
A36: 灾害防治及应急管理共同财政事权转移支付 | B36: 214 | C36: 医疗卫生与计划生育
A37: 其他一般性转移支付收入 | B37: 301 | C37: 节能环保 | D37: 759
A38: （三）专项转移支付收入 | B38: =SUM(B39:B48) -> 46,891 | C38: 城乡社区 | D38: 9
A39: 公共安全 | B39: 19 | C39: 农林水 | D39: =21884 -> 21,884 | G39: 201 | H39: 一般公共服务支出 | I39: 40
A40: 教育 | B40: 685 | C40: 交通运输 | G40: 204 | H40: 公共安全支出 | I40: 24
A41: 社会保障和就业 | B41: 20,711 | C41: 自然资源利用 | G41: 211 | H41: 节能环保支出 | I41: 4123.56
A42: 节能环保 | B42: 5,158 | C42: 住房保障 | D42: 4,134 | G42: 213 | H42: 农林水支出 | I42: 12303
A43: 农林水 | B43: 6,911 | C43: 灾害防治及应急管理支出 | D43: 162 | G43: 214 | H43: 交通运输支出 | I43: 148
A44: 住房保障 | B44: 11,207 | C44: 其他支出 | D44: 2,024 | G44: 215 | H44: 资源勘探工业信息等支出 | I44: 2160
A45: 资源勘探信息等 | B45: 1,000 | G45: 216 | H45: 商业服务业等支出 | I45: 580
A46: 商业服务业等 | B46: 50 | G46: 224 | H46: 灾害防治及应急管理支出 | I46: 2034.28
A47: 灾害防治及应急管理 | B47: 540 | G47: 总计 | I47: 21412.84
A48: 卫生健康 | B48: 610
A49: 二、上年结余收入 | B49: 173,358 | F49: (三)债券转贷收入 | G49: 186480
A50: 三、调入资金 | B50: =B51+B52 -> 146,142 | F50: (四)债务还本支出 | G50: -207200
A51: 从政府性基金预算调入 | B51: 111,142 | F51: (五)上年结转 | G51: 180141.18
A52: 从国有资本经营预算调入 | B52: 35,000 | F52: (六)调入资金 | G52: 133748
A53: 从其他资金调入 | F53: 1、政府性基金预算调入 | G53: 105000
A54: 四、地方政府一般债务收入 | F54: 2、国有资本经营预算调入 | G54: 28748
A55: 五、地方政府一般债务转贷收入 | B55: 379,530 | F55: (七)上解支出 | G55: -65314
A56: 六、接受其他地区援助收入 | F56: 1、 体制上解 | G56: -7170
A57: 七、动用预算稳定调节基金 | B57: 102,600 | F57: 2、 专项上解 | G57: -58144
F58: （八）预算稳定调节基金
F59: 1、动用预算稳定调节基金（调出使用） | G59: 205000
F60: 2、安排预算稳定调节基金（补充进入）

Sheet 29
A1: 表29
A2: 重庆市綦江区2026年区级一般公共预算转移支付对镇街支出预算表
A3: （分地区）
A4: 制表：綦江区财政局 | B4: 单位：万元
A5: 支 出 | B5: 一般性转移支付
A6: 合计 | B6: =SUM(B7:B27) -> 92,430
A7: 古南街道 | B7: 6,912
A8: 文龙街道 | B8: 6,838
A9: 三江街道 | B9: 6,013
A10: 新盛街道 | B10: 2,934
A11: 通惠街道 | B11: 4,500
A12: 石角镇 | B12: 4,652
A13: 东溪镇 | B13: 5,077
A14: 赶水镇 | B14: 5,952
A15: 打通镇 | B15: 4,531
A16: 石壕镇 | B16: 4,048
A17: 永新镇 | B17: 4,745
A18: 三角镇 | B18: 4,828
A19: 隆盛镇 | B19: 3,434
A20: 郭扶镇 | B20: 5,027
A21: 篆塘镇 | B21: 3,587
A22: 丁山镇 | B22: 2,190
A23: 安稳镇 | B23: 5,385
A24: 扶欢镇 | B24: 3,185
A25: 永城镇 | B25: 2,873
A26: 中峰镇 | B26: 2,343
A27: 横山镇 | B27: 3,378

Sheet 30
A1: 表30
A2: 重庆市綦江区2026年区级政府性基金预算转移性收支预算表
A3: 制表：綦江区财政局 | D3: 单位：万元
A4: 收 入 | B4: 预算数 | C4: 支 出 | D4: 预算数
A5: 上级补助收入 | B5: =SUM(B6:B11) -> 9,818 | C5: 补助街镇支出 | D5: =SUM(D6:D11) -> 5,569
A6: 一、文化体育与传媒 | B6: 271 | C6: 一、社会保障和就业
A7: 三、社会保障 | C7: 二、城乡社区 | D7: 5,246
A8: 二、城乡社区 | B8: 1,509 | C8: 三、农林水 | D8: 5
A9: 三、农林水 | B9: 313 | C9: 四、交通运输
A10: 四、超长期特别国债转移支付 | B10: 5,732 | C10: 五、资源勘探信息等
A11: 四、其他（彩票公益金） | B11: 1,993 | C11: 六、其他（彩票公益金） | D11: 318

Sheet 31
A1: 表31
A2: 重庆市綦江区2026年全区“三公”经费预算表
A3: 制表：綦江区财政局 | F3: 单位：万元
A4: 主管部门 | B4: 公务接待费 | C4: 公务用车运行维护费 | D4: 公务用车购置 | E4: 因公出国 费用 | F4: 总计
A5: 合计 | B5: =SUM(B6:B90) -> 359.91 | C5: 1,909.30 | D5: 400.00 | E5: 35.00 | F5: 2,704.21
A6: 101-中共重庆市綦江区委办公室 | B6: 5.00 | C6: 24.50 | E6: 0.00 | F6: =SUM(B6:E6) -> 29.50
A7: 102-重庆市綦江区人民代表大会常务委员会办公室 | B7: 5.00 | C7: 21.00 | E7: 0.00 | F7: 26.00
A8: 103-重庆市綦江区人民政府办公室 | B8: 16.00 | C8: 24.50 | E8: 35.00 | F8: 75.50
A9: 104-中国人民政治协商会议重庆市綦江区委员会办公室 | B9: 5.00 | C9: 17.50 | E9: 0.00 | F9: 22.50
A10: 110-中国共产党重庆市綦江区纪律检查委员会（重庆市綦江区监察委员会） | B10: 5.00 | C10: 31.50 | E10: 0.00 | F10: 36.50
A11: 111-中共重庆市綦江区委组织部 | B11: 5.00 | C11: 3.50 | E11: 0.00 | F11: 8.50
A12: 112-中共重庆市綦江区委宣传部 | B12: 5.00 | C12: 7.00 | E12: 0.00 | F12: 12.00
A13: 113-中共重庆市綦江区委统一战线工作部 | B13: 5.00 | C13: 7.00 | E13: 0.00 | F13: 12.00
A14: 114-中共重庆市綦江区委政法委员会 | B14: 5.00 | C14: 7.00 | E14: 0.00 | F14: 12.00
A15: 115-中共重庆市綦江区委网络安全和信息化委员会办公室 | B15: 1.00 | C15: 3.50 | E15: 0.00 | F15: 4.50
A16: 116-中共重庆市綦江区委机构编制委员会办公室 | B16: 1.00 | C16: 3.50 | E16: 0.00 | F16: 4.50
A17: 117-中共重庆市綦江区委直属机关工作委员会 | B17: 1.00 | C17: 3.50 | E17: 0.00 | F17: 4.50
A18: 118-中共重庆市綦江区委老干部局 | B18: 2.00 | C18: 14.00 | E18: 0.00 | F18: 16.00
A19: 120-中共重庆市綦江区委机要保密局 | B19: 1.00 | C19: 3.50 | E19: 0.00 | F19: 4.50
A20: 121-中国共产党重庆市綦江区委党校 | B20: 0.60 | C20: 3.50 | E20: 0.00 | F20: 4.10
A21: 122-重庆市綦江区融媒体中心 | B21: 3.00 | C21: 8.50 | E21: 0.00 | F21: 11.50
A22: 123-重庆市綦江区档案馆 | B22: 1.00 | C22: 3.50 | E22: 0.00 | F22: 4.50
A23: 124-中国人民解放军重庆市綦江区人民武装部 | B23: 5.00 | C23: 7.00 | E23: 0.00 | F23: 12.00
A24: 125-中共重庆市綦江区委社会工作部 | B24: 1.00 | C24: 3.50 | E24: 0.00 | F24: 4.50
A25: 200-重庆市綦江区信访办公室 | B25: 1.00 | C25: 5.00 | E25: 0.00 | F25: 6.00
A26: 201-重庆市綦江区政务服务管理办公室 | B26: 1.00 | C26: 3.50 | E26: 0.00 | F26: 4.50
A27: 202-重庆市綦江区机关事务管理中心 | B27: 20.00 | C27: 39.00 | E27: 0.00 | F27: 59.00
A28: 203-重庆市綦江区发展和改革委员会 | B28: 5.00 | C28: 17.50 | E28: 0.00 | F28: 22.50
A29: 204-重庆市綦江区教育委员会 | B29: 10.00 | C29: 31.50 | E29: 0.00 | F29: 41.50
A30: 205-重庆市綦江区科学技术局 | B30: 1.00 | C30: 1.50 | E30: 0.00 | F30: 2.50
A31: 206-重庆市綦江区经济和信息化委员会 | B31: 10.00 | C31: 8.50 | E31: 0.00 | F31: 18.50
A32: 207-重庆市綦江区民政局 | B32: 8.00 | C32: 10.50 | E32: 0.00 | F32: 18.50
A33: 208-重庆市綦江区公安局 | B33: 10.00 | C33: 540.00 | E33: 0.00 | F33: 550.00
A34: 209-重庆市綦江区司法局 | B34: 1.00 | C34: 17.50 | E34: 0.00 | F34: 18.50
A35: 210-重庆市綦江区财政局 | B35: 1.00 | C35: 14.00 | E35: 0.00 | F35: 15.00
A36: 211-重庆市医科学校 | B36: 2.80 | C36: 3.50 | E36: 0.00 | F36: 6.30
A37: 212-重庆市綦江区人力资源和社会保障局 | B37: 6.80 | C37: 17.50 | E37: 0.00 | F37: 24.30
A38: 213-重庆市綦江区生态环境局 | B38: 5.90 | C38: 38.50 | E38: 0.00 | F38: 44.40
A39: 214-重庆市綦江区住房和城乡建设委员会 | B39: 5.00 | C39: 20.50 | E39: 0.00 | F39: 25.50
A40: 215-重庆市綦江区城市管理局 | B40: 5.00 | C40: 100.50 | E40: 0.00 | F40: 105.50
A41: 216-重庆市綦江区交通运输委员会 | B41: 5.00 | C41: 85.00 | E41: 0.00 | F41: 90.00
A42: 217-重庆市綦江区水利局 | B42: 15.00 | C42: 28.50 | E42: 0.00 | F42: 43.50
A43: 218-重庆市綦江区农业农村委员会 | B43: 14.40 | C43: 60.50 | E43: 0.00 | F43: 74.90
A44: 219-重庆市綦江区商务委员会 | B44: 11.00 | C44: 5.00 | E44: 0.00 | F44: 16.00
A45: 220-重庆市綦江区文化和旅游发展委员会 | B45: 5.40 | C45: 16.30 | E45: 0.00 | F45: 21.70
A46: 221-重庆市綦江区卫生健康委员会 | B46: 3.20 | C46: 50.50 | E46: 0.00 | F46: 53.70
A47: 222-重庆市綦江区退役军人事务局 | B47: 3.00 | C47: 21.00 | E47: 0.00 | F47: 24.00
A48: 223-重庆市綦江区应急管理局 | B48: 4.00 | C48: 73.50 | E48: 0.00 | F48: 77.50
A49: 224-重庆市綦江区统计局 | B49: 1.00 | C49: 3.50 | E49: 0.00 | F49: 4.50
A50: 225-重庆市綦江区医疗保障局 | B50: 3.00 | C50: 3.50 | E50: 0.00 | F50: 6.50
A51: 226-重庆市綦江区国有资产监督管理委员会 | B51: 6.50 | C51: 5.00 | E51: 0.00 | F51: 11.50
A52: 227-重庆市綦江区林业局 | B52: 5.00 | C52: 24.50 | E52: 0.00 | F52: 29.50
A53: 228-重庆市綦江区大数据应用发展管理局 | B53: 1.00 | C53: 3.50 | E53: 0.00 | F53: 4.50
A54: 230-重庆綦江高新技术产业开发区管理委员会 | B54: 9.00 | C54: 14.00 | E54: 0.00 | F54: 23.00
A55: 232-重庆市綦江区新城建设管理委员会 | B55: 5.00 | C55: 3.50 | E55: 0.00 | F55: 8.50
A56: 234-重庆市綦江区供销合作社联合社 | B56: 1.50 | C56: 3.50 | E56: 0.00 | F56: 5.00
A57: 235-重庆市綦江区自然灾害预警预防办公室 | B57: 1.00 | C57: 3.00 | E57: 0.00 | F57: 4.00
A58: 236-重庆市綦江区土地房屋拆迁征收中心 | B58: 1.00 | C58: 3.50 | E58: 0.00 | F58: 4.50
A59: 400-重庆市綦江区人民政府古南街道办事处 | B59: 2.00 | C59: 19.00 | E59: 0.00 | F59: 21.00
A60: 401-重庆市綦江区人民政府文龙街道办事处 | B60: 2.00 | C60: 22.50 | E60: 0.00 | F60: 24.50
A61: 402-重庆市綦江区人民政府三江街道办事处 | B61: 2.00 | C61: 19.00 | E61: 0.00 | F61: 21.00
A62: 403-重庆市綦江区人民政府新盛街道办事处 | B62: 3.00 | C62: 17.50 | E62: 0.00 | F62: 20.50
A63: 404-重庆市綦江区人民政府通惠街道办事处 | B63: 2.00 | C63: 21.00 | E63: 0.00 | F63: 23.00
A64: 405-重庆市綦江区石角镇人民政府 | B64: 2.00 | C64: 21.00 | E64: 0.00 | F64: 23.00
A65: 406-重庆市綦江区东溪镇人民政府 | B65: 10.00 | C65: 28.00 | E65: 0.00 | F65: 38.00
A66: 407-重庆市綦江区赶水镇人民政府 | B66: 8.50 | C66: 19.00 | E66: 0.00 | F66: 27.50
A67: 408-重庆市綦江区打通镇人民政府 | B67: 3.00 | C67: 21.00 | E67: 0.00 | F67: 24.00
A68: 409-重庆市綦江区石壕镇人民政府 | B68: 4.90 | C68: 14.00 | E68: 0.00 | F68: 18.90
A69: 410-重庆市綦江区永新镇人民政府 | B69: 10.00 | C69: 8.50 | E69: 0.00 | F69: 18.50
A70: 411-重庆市綦江区三角镇人民政府 | B70: 6.40 | C70: 17.50 | E70: 0.00 | F70: =SUM(B70:E70) -> 23.90
A71: 412-重庆市綦江区隆盛镇人民政府 | B71: 2.01 | C71: 17.50 | E71: 0.00 | F71: 19.51
A72: 413-重庆市綦江区郭扶镇人民政府 | B72: 6.50 | C72: 21.00 | E72: 0.00 | F72: 27.50
A73: 414-重庆市綦江区篆塘镇人民政府 | B73: 3.67 | C73: 22.50 | E73: 0.00 | F73: 26.17
A74: 415-重庆市綦江区丁山镇人民政府 | B74: 9.10 | C74: 15.50 | E74: 0.00 | F74: 24.60
A75: 416-重庆市綦江区安稳镇人民政府 | B75: 3.88 | C75: 22.50 | E75: 0.00 | F75: 26.38
A76: 417-重庆市綦江区扶欢镇人民政府 | B76: 6.00 | C76: 21.00 | E76: 0.00 | F76: 27.00
A77: 418-重庆市綦江区永城镇人民政府 | B77: 2.30 | C77: 22.50 | E77: 0.00 | F77: 24.80
A78: 419-重庆市綦江区中峰镇人民政府 | B78: 2.00 | C78: 21.00 | E78: 0.00 | F78: 23.00
A79: 420-重庆市綦江区横山镇人民政府 | B79: 2.00 | C79: 19.00 | E79: 0.00 | F79: 21.00
A80: 500-中国国民党革命委员会重庆市綦江区委员会 | B80: 0.10 | C80: 0.00 | E80: 0.00 | F80: 0.10
A81: 504-重庆市綦江区总工会 | B81: 0.80 | C81: 3.50 | E81: 0.00 | F81: 4.30
A82: 505-中国共产主义青年团重庆市綦江区委员会 | B82: 0.80 | C82: 0.00 | E82: 0.00 | F82: 0.80
A83: 506-重庆市綦江区妇女联合会 | B83: 0.30 | C83: 3.50 | E83: 0.00 | F83: 3.80
A84: 507-重庆市綦江区科学技术协会 | B84: 0.40 | C84: 7.00 | E84: 0.00 | F84: 7.40
A85: 508-重庆市綦江区工商业联合会 | B85: 1.00 | C85: 0.00 | E85: 0.00 | F85: 1.00
A86: 509-重庆市綦江区归侨侨眷联合会 | B86: 0.00 | C86: 3.50 | E86: 0.00 | F86: 3.50
A87: 510-重庆市綦江区残疾人联合会 | B87: 1.50 | C87: 7.00 | E87: 0.00 | F87: 8.50
A88: 511-重庆市綦江区文学艺术界联合会 | B88: 0.50 | C88: 0.00 | E88: 0.00 | F88: 0.50
A89: 512-重庆市綦江区社会科学界联合会 | B89: 0.15 | C89: 0.00 | E89: 0.00 | F89: 0.15
A90: 财政直编预算 | C90: 0.00 | D90: 400.00 | E90: 0.00 | F90: 400.00

Sheet 32
A1: 表32
A2: 重庆市綦江区2026年区级部门预算支出明细表
G3: 单位：万元
A4: 一级预算单位名称 | B4: 二级预算单位名称 | C4: 项目类别 | D4: 预算项目名称 | E4: 公共预算 | F4: 基金预算 | G4: 总计
A5: 全区合计 | E5: 494,097.03 | F5: 13,713.70 | G5: 507,810.73
A6: 101-中共重庆市綦江区委办公室合计 | E6: 1,514.76 | F6: 0.00 | G6: 1,514.76
A7: 101-中共重庆市綦江区委办公室 | B7: 101001-中共重庆市綦江区委办公室（本级）小计 | E7: 1,176.76 | F7: 0.00 | G7: 1,176.76
A8: 101-中共重庆市綦江区委办公室 | B8: 101001-中共重庆市綦江区委办公室（本级） | C8: 部门项目小计 | E8: 516.81 | F8: 0.00 | G8: 516.81
A9: 101-中共重庆市綦江区委办公室 | B9: 101001-中共重庆市綦江区委办公室（本级） | C9: 部门项目 | D9: 50011025T000004605489-新綦江办刊费 | E9: 9.25 | F9: 0.00 | G9: 9.25
A10: 101-中共重庆市綦江区委办公室 | B10: 101001-中共重庆市綦江区委办公室（本级） | C10: 部门项目 | D10: 50011025T000004948014-国安委指挥中心建设 | E10: 400.00 | F10: 0.00 | G10: 400.00
A11: 101-中共重庆市綦江区委办公室 | B11: 101001-中共重庆市綦江区委办公室（本级） | C11: 部门项目 | D11: *涉密项目* | E11: 10.00 | F11: 0.00 | G11: 10.00
A12: 101-中共重庆市綦江区委办公室 | B12: 101001-中共重庆市綦江区委办公室（本级） | C12: 部门项目 | D12: 50011026T000005573730-督查工作专项 | E12: 4.00 | F12: 0.00 | G12: 4.00
A13: 101-中共重庆市綦江区委办公室 | B13: 101001-中共重庆市綦江区委办公室（本级） | C13: 部门项目 | D13: 50011026T000005573734-区级重大会议专项 | E13: 45.00 | F13: 0.00 | G13: 45.00
A14: 101-中共重庆市綦江区委办公室 | B14: 101001-中共重庆市綦江区委办公室（本级） | C14: 部门项目 | D14: 50011026T000005574295-区调研信息专项经费 | E14: 13.20 | F14: 0.00 | G14: 13.20
A15: 101-中共重庆市綦江区委办公室 | B15: 101001-中共重庆市綦江区委办公室（本级） | C15: 部门项目 | D15: 50011026T000005574301-规范性文件备案审查工作专项 | E15: 2.00 | F15: 0.00 | G15: 2.00
A16: 101-中共重庆市綦江区委办公室 | B16: 101001-中共重庆市綦江区委办公室（本级） | C16: 部门项目 | D16: 50011026T000005574304-全业务通信运维 | E16: 23.36 | F16: 0.00 | G16: 23.36
A17: 101-中共重庆市綦江区委办公室 | B17: 101001-中共重庆市綦江区委办公室（本级） | C17: 部门项目 | D17: 50011026T000005574307-退休干部活动专项 | E17: 10.00 | F17: 0.00 | G17: 10.00
A18: 101-中共重庆市綦江区委办公室 | B18: 101001-中共重庆市綦江区委办公室（本级） | C18: 公用经费小计 | E18: 121.30 | F18: 0.00 | G18: 121.30
A19: 101-中共重庆市綦江区委办公室 | B19: 101001-中共重庆市綦江区委办公室（本级） | C19: 公用经费 | D19: 50011021Y000000027925-公用经费综合定额(行政) | E19: 56.10 | F19: 0.00 | G19: 56.10
A20: 101-中共重庆市綦江区委办公室 | B20: 101001-中共重庆市綦江区委办公室（本级） | C20: 公用经费 | D20: 50011021Y000000027930-工会经费(行政非统发) | E20: 2.22 | F20: 0.00 | G20: 2.22
A21: 101-中共重庆市綦江区委办公室 | B21: 101001-中共重庆市綦江区委办公室（本级） | C21: 公用经费 | D21: 50011021Y000000027931-工会经费(行政统发) | E21: 1.48 | F21: 0.00 | G21: 1.48
A22: 101-中共重庆市綦江区委办公室 | B22: 101001-中共重庆市綦江区委办公室（本级） | C22: 公用经费 | D22: 50011021Y000000027933-福利费(行政离退休) | E22: 3.14 | F22: 0.00 | G22: 3.14
A23: 101-中共重庆市綦江区委办公室 | B23: 101001-中共重庆市綦江区委办公室（本级） | C23: 公用经费 | D23: 50011021Y000000027934-福利费(行政在职) | E23: 3.28 | F23: 0.00 | G23: 3.28
A24: 101-中共重庆市綦江区委办公室 | B24: 101001-中共重庆市綦江区委办公室（本级） | C24: 公用经费 | D24: 50011021Y000000027940-培训费（行政） | E24: 2.78 | F24: 0.00 | G24: 2.78
A25: 101-中共重庆市綦江区委办公室 | B25: 101001-中共重庆市綦江区委办公室（本级） | C25: 公用经费 | D25: 50011021Y000000027944-公务交通补贴 | E25: 14.80 | F25: 0.00 | G25: 14.80
A26: 101-中共重庆市綦江区委办公室 | B26: 101001-中共重庆市綦江区委办公室（本级） | C26: 公用经费 | D26: 50011021Y000000027946-通讯费补贴(行政) | E26: 5.71 | F26: 0.00 | G26: 5.71
A27: 101-中共重庆市綦江区委办公室 | B27: 101001-中共重庆市綦江区委办公室（本级） | C27: 公用经费 | D27: 50011021Y000000027947-通讯费补贴(工勤) | E27: 1.25 | F27: 0.00 | G27: 1.25
A28: 101-中共重庆市綦江区委办公室 | B28: 101001-中共重庆市綦江区委办公室（本级） | C28: 公用经费 | D28: 50011021Y000000027948-公务用车运行维护费 | E28: 21.00 | F28: 0.00 | G28: 21.00
A29: 101-中共重庆市綦江区委办公室 | B29: 101001-中共重庆市綦江区委办公室（本级） | C29: 公用经费 | D29: 50011024Y000003988179-非在编人员 | E29: 5.75 | F29: 0.00 | G29: 5.75
A30: 101-中共重庆市綦江区委办公室 | B30: 101001-中共重庆市綦江区委办公室（本级） | C30: 公用经费 | D30: 50011024Y000004239411-离退休人员活动费 | E30: 0.50 | F30: 0.00 | G30: 0.50
A31: 101-中共重庆市綦江区委办公室 | B31: 101001-中共重庆市綦江区委办公室（本级） | C31: 公用经费 | D31: 50011026Y000005531980-残疾人保障金 | E31: 3.30 | F31: 0.00 | G31: 3.30
A32: 101-中共重庆市綦江区委办公室 | B32: 101001-中共重庆市綦江区委办公室（本级） | C32: 人员类小计 | E32: 538.65 | F32: 0.00 | G32: 538.65
A33: 101-中共重庆市綦江区委办公室 | B33: 101001-中共重庆市綦江区委办公室（本级） | C33: 人员类 | D33: 50011021R000000027843-基本工资(行政统发) | E33: 109.20 | F33: 0.00 | G33: 109.20
A34: 101-中共重庆市綦江区委办公室 | B34: 101001-中共重庆市綦江区委办公室（本级） | C34: 人员类 | D34: 50011021R000000027846-津补贴(行政统发) | E34: 75.63 | F34: 0.00 | G34: 75.63
A35: 101-中共重庆市綦江区委办公室 | B35: 101001-中共重庆市綦江区委办公室（本级） | C35: 人员类 | D35: 50011021R000000027848-乡镇工作补贴 | E35: 0.36 | F35: 0.00 | G35: 0.36
A36: 101-中共重庆市綦江区委办公室 | B36: 101001-中共重庆市綦江区委办公室（本级） | C36: 人员类 | D36: 50011021R000000027851-年终一次性奖金(行政统发) | E36: 9.10 | F36: 0.00 | G36: 9.10
A37: 101-中共重庆市綦江区委办公室 | B37: 101001-中共重庆市綦江区委办公室（本级） | C37: 人员类 | D37: 50011021R000000027853-基本医疗保险（行政） | E37: 27.65 | F37: 0.00 | G37: 27.65
A38: 101-中共重庆市綦江区委办公室 | B38: 101001-中共重庆市綦江区委办公室（本级） | C38: 人员类 | D38: 50011021R000000027859-职业年金（行政） | E38: 23.28 | F38: 0.00 | G38: 23.28
A39: 101-中共重庆市綦江区委办公室 | B39: 101001-中共重庆市綦江区委办公室（本级） | C39: 人员类 | D39: 50011021R000000027863-工伤保险(行政) | E39: 0.58 | F39: 0.00 | G39: 0.58
A40: 101-中共重庆市綦江区委办公室 | B40: 101001-中共重庆市綦江区委办公室（本级） | C40: 人员类 | D40: 50011021R000000027866-生育保险(行政) | E40: 0.97 | F40: 0.00 | G40: 0.97
A41: 101-中共重庆市綦江区委办公室 | B41: 101001-中共重庆市綦江区委办公室（本级） | C41: 人员类 | D41: 50011021R000000027873-医疗补助（行政离退休） | E41: 5.20 | F41: 0.00 | G41: 5.20
A42: 101-中共重庆市綦江区委办公室 | B42: 101001-中共重庆市綦江区委办公室（本级） | C42: 人员类 | D42: 50011021R000000027880-基本养老保险（行政） | E42: 46.56 | F42: 0.00 | G42: 46.56
A43: 101-中共重庆市綦江区委办公室 | B43: 101001-中共重庆市綦江区委办公室（本级） | C43: 人员类 | D43: 50011021R000000027888-住房公积金(行政) | E43: 39.60 | F43: 0.00 | G43: 39.60
A44: 101-中共重庆市綦江区委办公室 | B44: 101001-中共重庆市綦江区委办公室（本级） | C44: 人员类 | D44: 50011021R000000027899-遗属、长赡人员生活补助 | E44: 4.91 | F44: 0.00 | G44: 4.91
A45: 101-中共重庆市綦江区委办公室 | B45: 101001-中共重庆市綦江区委办公室（本级） | C45: 人员类 | D45: 50011021R000000031995-综合目标考核奖励（行政离退休） | E45: 56.42 | F45: 0.00 | G45: 56.42
A46: 101-中共重庆市綦江区委办公室 | B46: 101001-中共重庆市綦江区委办公室（本级） | C46: 人员类 | D46: 50011021R000000032052-医疗补助（行政） | E46: 3.52 | F46: 0.00 | G46: 3.52
A47: 101-中共重庆市綦江区委办公室 | B47: 101001-中共重庆市綦江区委办公室（本级） | C47: 人员类 | D47: 50011022R000002249364-基础绩效奖（统发） | E47: 97.08 | F47: 0.00 | G47: 97.08
A48: 101-中共重庆市綦江区委办公室 | B48: 101001-中共重庆市綦江区委办公室（本级） | C48: 人员类 | D48: 50011022R000002250100-年度考核奖（在职）（统发） | E48: 38.59 | F48: 0.00 | G48: 38.59
A49: 101-中共重庆市綦江区委办公室 | B49: 101002-重庆市綦江区专用通信服务中心小计 | E49: 338.00 | F49: 0.00 | G49: 338.00
A50: 101-中共重庆市綦江区委办公室 | B50: 101002-重庆市綦江区专用通信服务中心 | C50: 部门项目小计 | E50: 227.05 | F50: 0.00 | G50: 227.05
A51: 101-中共重庆市綦江区委办公室 | B51: 101002-重庆市綦江区专用通信服务中心 | C51: 部门项目 | D51: *涉密项目* | E51: 76.05 | F51: 0.00 | G51: 76.05
A52: 101-中共重庆市綦江区委办公室 | B52: 101002-重庆市綦江区专用通信服务中心 | C52: 部门项目 | D52: *涉密项目* | E52: 20.00 | F52: 0.00 | G52: 20.00
A53: 101-中共重庆市綦江区委办公室 | B53: 101002-重庆市綦江区专用通信服务中心 | C53: 部门项目 | D53: *涉密项目* | E53: 30.00 | F53: 0.00 | G53: 30.00
A54: 101-中共重庆市綦江区委办公室 | B54: 101002-重庆市綦江区专用通信服务中心 | C54: 部门项目 | D54: *涉密项目* | E54: 51.00 | F54: 0.00 | G54: 51.00
A55: 101-中共重庆市綦江区委办公室 | B55: 101002-重庆市綦江区专用通信服务中心 | C55: 部门项目 | D55: *涉密项目* | E55: 50.00 | F55: 0.00 | G55: 50.00
A56: 101-中共重庆市綦江区委办公室 | B56: 101002-重庆市綦江区专用通信服务中心 | C56: 公用经费小计 | E56: 18.59 | F56: 0.00 | G56: 18.59
A57: 101-中共重庆市綦江区委办公室 | B57: 101002-重庆市綦江区专用通信服务中心 | C57: 公用经费 | D57: 50011021Y000000027926-公用经费综合定额(事业) | E57: 12.25 | F57: 0.00 | G57: 12.25
A58: 101-中共重庆市綦江区委办公室 | B58: 101002-重庆市綦江区专用通信服务中心 | C58: 公用经费 | D58: 50011021Y000000027927-工会经费(事业非统发) | E58: 0.49 | F58: 0.00 | G58: 0.49
A59: 101-中共重庆市綦江区委办公室 | B59: 101002-重庆市綦江区专用通信服务中心 | C59: 公用经费 | D59: 50011021Y000000027932-工会经费(事业统发) | E59: 0.33 | F59: 0.00 | G59: 0.33
A60: 101-中共重庆市綦江区委办公室 | B60: 101002-重庆市綦江区专用通信服务中心 | C60: 公用经费 | D60: 50011021Y000000027935-福利费(事业在职) | E60: 0.67 | F60: 0.00 | G60: 0.67
A61: 101-中共重庆市綦江区委办公室 | B61: 101002-重庆市綦江区专用通信服务中心 | C61: 公用经费 | D61: 50011021Y000000027941-培训费（事业） | E61: 0.61 | F61: 0.00 | G61: 0.61
A62: 101-中共重庆市綦江区委办公室 | B62: 101002-重庆市綦江区专用通信服务中心 | C62: 公用经费 | D62: 50011021Y000000027948-公务用车运行维护费 | E62: 3.50 | F62: 0.00 | G62: 3.50
A63: 101-中共重庆市綦江区委办公室 | B63: 101002-重庆市綦江区专用通信服务中心 | C63: 公用经费 | D63: 50011026Y000005531980-残疾人保障金 | E63: 0.75 | F63: 0.00 | G63: 0.75
A64: 101-中共重庆市綦江区委办公室 | B64: 101002-重庆市綦江区专用通信服务中心 | C64: 人员类小计 | E64: 92.36 | F64: 0.00 | G64: 92.36
A65: 101-中共重庆市綦江区委办公室 | B65: 101002-重庆市綦江区专用通信服务中心 | C65: 人员类 | D65: 50011021R000000027845-基本工资(事业统发) | E65: 22.19 | F65: 0.00 | G65: 22.19
A66: 101-中共重庆市綦江区委办公室 | B66: 101002-重庆市綦江区专用通信服务中心 | C66: 人员类 | D66: 50011021R000000027847-津补贴(事业统发) | E66: 1.49 | F66: 0.00 | G66: 1.49
A67: 101-中共重庆市綦江区委办公室 | B67: 101002-重庆市綦江区专用通信服务中心 | C67: 人员类 | D67: 50011021R000000027850-独生子女费 | E67: 0.01 | F67: 0.00 | G67: 0.01
A68: 101-中共重庆市綦江区委办公室 | B68: 101002-重庆市綦江区专用通信服务中心 | C68: 人员类 | D68: 50011021R000000027854-基础绩效（统发） | E68: 11.93 | F68: 0.00 | G68: 11.93
A69: 101-中共重庆市綦江区委办公室 | B69: 101002-重庆市綦江区专用通信服务中心 | C69: 人员类 | D69: 50011021R000000027855-超额绩效（事业） | E69: 19.68 | F69: 0.00 | G69: 19.68
A70: 101-中共重庆市綦江区委办公室 | B70: 101002-重庆市綦江区专用通信服务中心 | C70: 人员类 | D70: 50011021R000000027856-奖励性绩效（非统发） | E70: 5.06 | F70: 0.00 | G70: 5.06
A71: 101-中共重庆市綦江区委办公室 | B71: 101002-重庆市綦江区专用通信服务中心 | C71: 人员类 | D71: 50011021R000000027858-基本养老保险（事业） | E71: 9.66 | F71: 0.00 | G71: 9.66
A72: 101-中共重庆市綦江区委办公室 | B72: 101002-重庆市綦江区专用通信服务中心 | C72: 人员类 | D72: 50011021R000000027860-基本医疗保险（事业） | E72: 3.86 | F72: 0.00 | G72: 3.86
A73: 101-中共重庆市綦江区委办公室 | B73: 101002-重庆市綦江区专用通信服务中心 | C73: 人员类 | D73: 50011021R000000027864-工伤保险(事业) | E73: 0.12 | F73: 0.00 | G73: 0.12
A74: 101-中共重庆市綦江区委办公室 | B74: 101002-重庆市綦江区专用通信服务中心 | C74: 人员类 | D74: 50011021R000000027867-生育保险(事业) | E74: 0.20 | F74: 0.00 | G74: 0.20
A75: 101-中共重庆市綦江区委办公室 | B75: 101002-重庆市綦江区专用通信服务中心 | C75: 人员类 | D75: 50011021R000000027870-住房公积金（事业） | E75: 4.88 | F75: 0.00 | G75: 4.88
A76: 101-中共重庆市綦江区委办公室 | B76: 101002-重庆市綦江区专用通信服务中心 | C76: 人员类 | D76: 50011021R000000027879-职业年金（事业） | E76: 4.83 | F76: 0.00 | G76: 4.83
A77: 101-中共重庆市綦江区委办公室 | B77: 101002-重庆市綦江区专用通信服务中心 | C77: 人员类 | D77: 50011021R000000031998-综合目标考核奖励（事业在职） | E77: 7.30 | F77: 0.00 | G77: 7.30
A78: 101-中共重庆市綦江区委办公室 | B78: 101002-重庆市綦江区专用通信服务中心 | C78: 人员类 | D78: 50011021R000000032053-医疗补助（事业） | E78: 0.80 | F78: 0.00 | G78: 0.80
A79: 101-中共重庆市綦江区委办公室 | B79: 101002-重庆市綦江区专用通信服务中心 | C79: 人员类 | D79: 50011026R000005565139-失业保险（事业） | E79: 0.35 | F79: 0.00 | G79: 0.35
A80: 102-重庆市綦江区人民代表大会常务委员会办公室合计 | E80: 3,050.48 | F80: 0.00 | G80: 3,050.48
A81: 102-重庆市綦江区人民代表大会常务委员会办公室 | B81: 102001-重庆市綦江区人民代表大会常务委员会办公室（本级）小计 | E81: 2,883.48 | F81: 0.00 | G81: 2,883.48
A82: 102-重庆市綦江区人民代表大会常务委员会办公室 | B82: 102001-重庆市綦江区人民代表大会常务委员会办公室（本级） | C82: 部门项目小计 | E82: 728.77 | F82: 0.00 | G82: 728.77
A83: 102-重庆市綦江区人民代表大会常务委员会办公室 | B83: 102001-重庆市綦江区人民代表大会常务委员会办公室（本级） | C83: 部门项目 | D83: 50011022T000000138758-人代会会议费（预安排） | E83: 71.02 | F83: 0.00 | G83: 71.02
A84: 102-重庆市綦江区人民代表大会常务委员会办公室 | B84: 102001-重庆市綦江区人民代表大会常务委员会办公室（本级） | C84: 部门项目 | D84: 50011022T000002012997-人大监督专项经费 | E84: 53.00 | F84: 0.00 | G84: 53.00
A85: 102-重庆市綦江区人民代表大会常务委员会办公室 | B85: 102001-重庆市綦江区人民代表大会常务委员会办公室（本级） | C85: 部门项目 | D85: 50011024T000004133567-常委会、主任会、镇街人大联席会会议专项经费 | E85: 27.55 | F85: 0.00 | G85: 27.55
A86: 102-重庆市綦江区人民代表大会常务委员会办公室 | B86: 102001-重庆市綦江区人民代表大会常务委员会办公室（本级） | C86: 部门项目 | D86: 50011026T000005586928-代表履职联络组专项 | E86: 248.70 | F86: 0.00 | G86: 248.70
A87: 102-重庆市綦江区人民代表大会常务委员会办公室 | B87: 102001-重庆市綦江区人民代表大会常务委员会办公室（本级） | C87: 部门项目 | D87: 50011026T000005587812-人大代表建议办理专项 | E87: 40.00 | F87: 0.00 | G87: 40.00
A88: 102-重庆市綦江区人民代表大会常务委员会办公室 | B88: 102001-重庆市綦江区人民代表大会常务委员会办公室（本级） | C88: 部门项目 | D88: 50011026T000005587867-依法行政专项 | E88: 25.00 | F88: 0.00 | G88: 25.00
A89: 102-重庆市綦江区人民代表大会常务委员会办公室 | B89: 102001-重庆市綦江区人民代表大会常务委员会办公室（本级） | C89: 部门项目 | D89: 50011026T000005587890-市人大代表履职经费 | E89: 43.50 | F89: 0.00 | G89: 43.50
A90: 102-重庆市綦江区人民代表大会常务委员会办公室 | B90: 102001-重庆市綦江区人民代表大会常务委员会办公室（本级） | C90: 部门项目 | D90: 50011026T000005587909-换届工作专项经费 | E90: 200.00 | F90: 0.00 | G90: 200.00
A91: 102-重庆市綦江区人民代表大会常务委员会办公室 | B91: 102001-重庆市綦江区人民代表大会常务委员会办公室（本级） | C91: 部门项目 | D91: 50011026T000005590679-人大调研及网络信息运维 | E91: 20.00 | F91: 0.00 | G91: 20.00
A92: 102-重庆市綦江区人民代表大会常务委员会办公室 | B92: 102001-重庆市綦江区人民代表大会常务委员会办公室（本级） | C92: 公用经费小计 | E92: 318.26 | F92: 0.00 | G92: 318.26
A93: 102-重庆市綦江区人民代表大会常务委员会办公室 | B93: 102001-重庆市綦江区人民代表大会常务委员会办公室（本级） | C93: 公用经费 | D93: 50011021Y000000027925-公用经费综合定额(行政) | E93: 155.55 | F93: 0.00 | G93: 155.55
A94: 102-重庆市綦江区人民代表大会常务委员会办公室 | B94: 102001-重庆市綦江区人民代表大会常务委员会办公室（本级） | C94: 公用经费 | D94: 50011021Y000000027930-工会经费(行政非统发) | E94: 8.12 | F94: 0.00 | G94: 8.12
A95: 102-重庆市綦江区人民代表大会常务委员会办公室 | B95: 102001-重庆市綦江区人民代表大会常务委员会办公室（本级） | C95: 公用经费 | D95: 50011021Y000000027931-工会经费(行政统发) | E95: 5.41 | F95: 0.00 | G95: 5.41
A96: 102-重庆市綦江区人民代表大会常务委员会办公室 | B96: 102001-重庆市綦江区人民代表大会常务委员会办公室（本级） | C96: 公用经费 | D96: 50011021Y000000027933-福利费(行政离退休) | E96: 9.21 | F96: 0.00 | G96: 9.21
A97: 102-重庆市綦江区人民代表大会常务委员会办公室 | B97: 102001-重庆市綦江区人民代表大会常务委员会办公室（本级） | C97: 公用经费 | D97: 50011021Y000000027934-福利费(行政在职) | E97: 13.01 | F97: 0.00 | G97: 13.01
A98: 102-重庆市綦江区人民代表大会常务委员会办公室 | B98: 102001-重庆市綦江区人民代表大会常务委员会办公室（本级） | C98: 公用经费 | D98: 50011021Y000000027940-培训费（行政） | E98: 10.15 | F98: 0.00 | G98: 10.15
A99: 102-重庆市綦江区人民代表大会常务委员会办公室 | B99: 102001-重庆市綦江区人民代表大会常务委员会办公室（本级） | C99: 公用经费 | D99: 50011021Y000000027944-公务交通补贴 | E99: 68.64 | F99: 0.00 | G99: 68.64
A100: 102-重庆市綦江区人民代表大会常务委员会办公室 | B100: 102001-重庆市綦江区人民代表大会常务委员会办公室（本级） | C100: 公用经费 | D100: 50011021Y000000027946-通讯费补贴(行政) | E100: 17.81 | F100: 0.00 | G100: 17.81
A101: 102-重庆市綦江区人民代表大会常务委员会办公室 | B101: 102001-重庆市綦江区人民代表大会常务委员会办公室（本级） | C101: 公用经费 | D101: 50011021Y000000027947-通讯费补贴(工勤) | E101: 1.56 | F101: 0.00 | G101: 1.56
A102: 102-重庆市綦江区人民代表大会常务委员会办公室 | B102: 102001-重庆市綦江区人民代表大会常务委员会办公室（本级） | C102: 公用经费 | D102: 50011021Y000000027948-公务用车运行维护费 | E102: 17.50 | F102: 0.00 | G102: 17.50
A103: 102-重庆市綦江区人民代表大会常务委员会办公室 | B103: 102001-重庆市綦江区人民代表大会常务委员会办公室（本级） | C103: 公用经费 | D103: 50011024Y000004239411-离退休人员活动费 | E103: 2.15 | F103: 0.00 | G103: 2.15
A104: 102-重庆市綦江区人民代表大会常务委员会办公室 | B104: 102001-重庆市綦江区人民代表大会常务委员会办公室（本级） | C104: 公用经费 | D104: 50011026Y000005531980-残疾人保障金 | E104: 9.15 | F104: 0.00 | G104: 9.15
A105: 102-重庆市綦江区人民代表大会常务委员会办公室 | B105: 102001-重庆市綦江区人民代表大会常务委员会办公室（本级） | C105: 人员类小计 | E105: 1,836.44 | F105: 0.00 | G105: 1,836.44
A106: 102-重庆市綦江区人民代表大会常务委员会办公室 | B106: 102001-重庆市綦江区人民代表大会常务委员会办公室（本级） | C106: 人员类 | D106: 50011021R000000027843-基本工资(行政统发) | E106: 433.80 | F106: 0.00 | G106: 433.80
A107: 102-重庆市綦江区人民代表大会常务委员会办公室 | B107: 102001-重庆市綦江区人民代表大会常务委员会办公室（本级） | C107: 人员类 | D107: 50011021R000000027846-津补贴(行政统发) | E107: 242.85 | F107: 0.00 | G107: 242.85
A108: 102-重庆市綦江区人民代表大会常务委员会办公室 | B108: 102001-重庆市綦江区人民代表大会常务委员会办公室（本级） | C108: 人员类 | D108: 50011021R000000027850-独生子女费 | E108: 0.01 | F108: 0.00 | G108: 0.01
A109: 102-重庆市綦江区人民代表大会常务委员会办公室 | B109: 102001-重庆市綦江区人民代表大会常务委员会办公室（本级） | C109: 人员类 | D109: 50011021R000000027851-年终一次性奖金(行政统发) | E109: 36.15 | F109: 0.00 | G109: 36.15
A110: 102-重庆市綦江区人民代表大会常务委员会办公室 | B110: 102001-重庆市綦江区人民代表大会常务委员会办公室（本级） | C110: 人员类 | D110: 50011021R000000027853-基本医疗保险（行政） | E110: 98.56 | F110: 0.00 | G110: 98.56
A111: 102-重庆市綦江区人民代表大会常务委员会办公室 | B111: 102001-重庆市綦江区人民代表大会常务委员会办公室（本级） | C111: 人员类 | D111: 50011021R000000027859-职业年金（行政） | E111: 83.00 | F111: 0.00 | G111: 83.00
A112: 102-重庆市綦江区人民代表大会常务委员会办公室 | B112: 102001-重庆市綦江区人民代表大会常务委员会办公室（本级） | C112: 人员类 | D112: 50011021R000000027863-工伤保险(行政) | E112: 2.14 | F112: 0.00 | G112: 2.14
A113: 102-重庆市綦江区人民代表大会常务委员会办公室 | B113: 102001-重庆市綦江区人民代表大会常务委员会办公室（本级） | C113: 人员类 | D113: 50011021R000000027866-生育保险(行政) | E113: 3.56 | F113: 0.00 | G113: 3.56
A114: 102-重庆市綦江区人民代表大会常务委员会办公室 | B114: 102001-重庆市綦江区人民代表大会常务委员会办公室（本级） | C114: 人员类 | D114: 50011021R000000027873-医疗补助（行政离退休） | E114: 12.80 | F114: 0.00 | G114: 12.80
A115: 102-重庆市綦江区人民代表大会常务委员会办公室 | B115: 102001-重庆市綦江区人民代表大会常务委员会办公室（本级） | C115: 人员类 | D115: 50011021R000000027880-基本养老保险（行政） | E115: 166.00 | F115: 0.00 | G115: 166.00
A116: 102-重庆市綦江区人民代表大会常务委员会办公室 | B116: 102001-重庆市綦江区人民代表大会常务委员会办公室（本级） | C116: 人员类 | D116: 50011021R000000027888-住房公积金(行政) | E116: 139.62 | F116: 0.00 | G116: 139.62
A117: 102-重庆市綦江区人民代表大会常务委员会办公室 | B117: 102001-重庆市綦江区人民代表大会常务委员会办公室（本级） | C117: 人员类 | D117: 50011021R000000027899-遗属、长赡人员生活补助 | E117: 4.80 | F117: 0.00 | G117: 4.80
A118: 102-重庆市綦江区人民代表大会常务委员会办公室 | B118: 102001-重庆市綦江区人民代表大会常务委员会办公室（本级） | C118: 人员类 | D118: 50011021R000000031995-综合目标考核奖励（行政离退休） | E118: 152.69 | F118: 0.00 | G118: 152.69
A119: 102-重庆市綦江区人民代表大会常务委员会办公室 | B119: 102001-重庆市綦江区人民代表大会常务委员会办公室（本级） | C119: 人员类 | D119: 50011021R000000032052-医疗补助（行政） | E119: 9.76 | F119: 0.00 | G119: 9.76
A120: 102-重庆市綦江区人民代表大会常务委员会办公室 | B120: 102001-重庆市綦江区人民代表大会常务委员会办公室（本级） | C120: 人员类 | D120: 50011022R000002249364-基础绩效奖（统发） | E120: 324.72 | F120: 0.00 | G120: 324.72
A121: 102-重庆市綦江区人民代表大会常务委员会办公室 | B121: 102001-重庆市綦江区人民代表大会常务委员会办公室（本级） | C121: 人员类 | D121: 50011022R000002250100-年度考核奖（在职）（统发） | E121: 125.97 | F121: 0.00 | G121: 125.97
A122: 102-重庆市綦江区人民代表大会常务委员会办公室 | B122: 102003-重庆市綦江区人大常委会办公室预算审查中心小计 | E122: 167.00 | F122: 0.00 | G122: 167.00
A123: 102-重庆市綦江区人民代表大会常务委员会办公室 | B123: 102003-重庆市綦江区人大常委会办公室预算审查中心 | C123: 公用经费小计 | E123: 24.94 | F123: 0.00 | G123: 24.94
A124: 102-重庆市綦江区人民代表大会常务委员会办公室 | B124: 102003-重庆市綦江区人大常委会办公室预算审查中心 | C124: 公用经费 | D124: 50011021Y000000027926-公用经费综合定额(事业) | E124: 17.15 | F124: 0.00 | G124: 17.15
A125: 102-重庆市綦江区人民代表大会常务委员会办公室 | B125: 102003-重庆市綦江区人大常委会办公室预算审查中心 | C125: 公用经费 | D125: 50011021Y000000027927-工会经费(事业非统发) | E125: 0.75 | F125: 0.00 | G125: 0.75
A126: 102-重庆市綦江区人民代表大会常务委员会办公室 | B126: 102003-重庆市綦江区人大常委会办公室预算审查中心 | C126: 公用经费 | D126: 50011021Y000000027932-工会经费(事业统发) | E126: 0.50 | F126: 0.00 | G126: 0.50
A127: 102-重庆市綦江区人民代表大会常务委员会办公室 | B127: 102003-重庆市綦江区人大常委会办公室预算审查中心 | C127: 公用经费 | D127: 50011021Y000000027935-福利费(事业在职) | E127: 1.06 | F127: 0.00 | G127: 1.06
A128: 102-重庆市綦江区人民代表大会常务委员会办公室 | B128: 102003-重庆市綦江区人大常委会办公室预算审查中心 | C128: 公用经费 | D128: 50011021Y000000027941-培训费（事业） | E128: 0.93 | F128: 0.00 | G128: 0.93
A129: 102-重庆市綦江区人民代表大会常务委员会办公室 | B129: 102003-重庆市綦江区人大常委会办公室预算审查中心 | C129: 公用经费 | D129: 50011021Y000000027948-公务用车运行维护费 | E129: 3.50 | F129: 0.00 | G129: 3.50
A130: 102-重庆市綦江区人民代表大会常务委员会办公室 | B130: 102003-重庆市綦江区人大常委会办公室预算审查中心 | C130: 公用经费 | D130: 50011026Y000005531980-残疾人保障金 | E130: 1.05 | F130: 0.00 | G130: 1.05
A131: 102-重庆市綦江区人民代表大会常务委员会办公室 | B131: 102003-重庆市綦江区人大常委会办公室预算审查中心 | C131: 人员类小计 | E131: 142.06 | F131: 0.00 | G131: 142.06
A132: 102-重庆市綦江区人民代表大会常务委员会办公室 | B132: 102003-重庆市綦江区人大常委会办公室预算审查中心 | C132: 人员类 | D132: 50011021R000000027845-基本工资(事业统发) | E132: 35.33 | F132: 0.00 | G132: 35.33
A133: 102-重庆市綦江区人民代表大会常务委员会办公室 | B133: 102003-重庆市綦江区人大常委会办公室预算审查中心 | C133: 人员类 | D133: 50011021R000000027847-津补贴(事业统发) | E133: 1.08 | F133: 0.00 | G133: 1.08
A134: 102-重庆市綦江区人民代表大会常务委员会办公室 | B134: 102003-重庆市綦江区人大常委会办公室预算审查中心 | C134: 人员类 | D134: 50011021R000000027848-乡镇工作补贴 | E134: 0.36 | F134: 0.00 | G134: 0.36
A135: 102-重庆市綦江区人民代表大会常务委员会办公室 | B135: 102003-重庆市綦江区人大常委会办公室预算审查中心 | C135: 人员类 | D135: 50011021R000000027850-独生子女费 | E135: 0.01 | F135: 0.00 | G135: 0.01
A136: 102-重庆市綦江区人民代表大会常务委员会办公室 | B136: 102003-重庆市綦江区人大常委会办公室预算审查中心 | C136: 人员类 | D136: 50011021R000000027854-基础绩效（统发） | E136: 18.13 | F136: 0.00 | G136: 18.13
A137: 102-重庆市綦江区人民代表大会常务委员会办公室 | B137: 102003-重庆市綦江区人大常委会办公室预算审查中心 | C137: 人员类 | D137: 50011021R000000027855-超额绩效（事业） | E137: 30.36 | F137: 0.00 | G137: 30.36
A138: 102-重庆市綦江区人民代表大会常务委员会办公室 | B138: 102003-重庆市綦江区人大常委会办公室预算审查中心 | C138: 人员类 | D138: 50011021R000000027856-奖励性绩效（非统发） | E138: 7.70 | F138: 0.00 | G138: 7.70
A139: 102-重庆市綦江区人民代表大会常务委员会办公室 | B139: 102003-重庆市綦江区人大常委会办公室预算审查中心 | C139: 人员类 | D139: 50011021R000000027858-基本养老保险（事业） | E139: 14.82 | F139: 0.00 | G139: 14.82
A140: 102-重庆市綦江区人民代表大会常务委员会办公室 | B140: 102003-重庆市綦江区人大常委会办公室预算审查中心 | C140: 人员类 | D140: 50011021R000000027860-基本医疗保险（事业） | E140: 5.91 | F140: 0.00 | G140: 5.91
A141: 102-重庆市綦江区人民代表大会常务委员会办公室 | B141: 102003-重庆市綦江区人大常委会办公室预算审查中心 | C141: 人员类 | D141: 50011021R000000027864-工伤保险(事业) | E141: 0.19 | F141: 0.00 | G141: 0.19
A142: 102-重庆市綦江区人民代表大会常务委员会办公室 | B142: 102003-重庆市綦江区人大常委会办公室预算审查中心 | C142: 人员类 | D142: 50011021R000000027867-生育保险(事业) | E142: 0.31 | F142: 0.00 | G142: 0.31
A143: 102-重庆市綦江区人民代表大会常务委员会办公室 | B143: 102003-重庆市綦江区人大常委会办公室预算审查中心 | C143: 人员类 | D143: 50011021R000000027870-住房公积金（事业） | E143: 7.56 | F143: 0.00 | G143: 7.56
A144: 102-重庆市綦江区人民代表大会常务委员会办公室 | B144: 102003-重庆市綦江区人大常委会办公室预算审查中心 | C144: 人员类 | D144: 50011021R000000027879-职业年金（事业） | E144: 7.41 | F144: 0.00 | G144: 7.41
A145: 102-重庆市綦江区人民代表大会常务委员会办公室 | B145: 102003-重庆市綦江区人大常委会办公室预算审查中心 | C145: 人员类 | D145: 50011021R000000031998-综合目标考核奖励（事业在职） | E145: 11.23 | F145: 0.00 | G145: 11.23
A146: 102-重庆市綦江区人民代表大会常务委员会办公室 | B146: 102003-重庆市綦江区人大常委会办公室预算审查中心 | C146: 人员类 | D146: 50011021R000000032053-医疗补助（事业） | E146: 1.12 | F146: 0.00 | G146: 1.12
A147: 102-重庆市綦江区人民代表大会常务委员会办公室 | B147: 102003-重庆市綦江区人大常委会办公室预算审查中心 | C147: 人员类 | D147: 50011026R000005565139-失业保险（事业） | E147: 0.55 | F147: 0.00 | G147: 0.55
A148: 103-重庆市綦江区人民政府办公室合计 | E148: 2,360.52 | F148: 0.00 | G148: 2,360.52
A149: 103-重庆市綦江区人民政府办公室 | B149: 103001-重庆市綦江区人民政府办公室（本级）小计 | E149: 1,710.24 | F149: 0.00 | G149: 1,710.24
A150: 103-重庆市綦江区人民政府办公室 | B150: 103001-重庆市綦江区人民政府办公室（本级） | C150: 部门项目小计 | E150: 641.30 | F150: 0.00 | G150: 641.30
A151: 103-重庆市綦江区人民政府办公室 | B151: 103001-重庆市綦江区人民政府办公室（本级） | C151: 部门项目 | D151: 50011022T000000155466-会务服务 | E151: 93.52 | F151: 0.00 | G151: 93.52
A152: 103-重庆市綦江区人民政府办公室 | B152: 103001-重庆市綦江区人民政府办公室（本级） | C152: 部门项目 | D152: 50011022T000000155484-政务督查 | E152: 16.00 | F152: 0.00 | G152: 16.00
A153: 103-重庆市綦江区人民政府办公室 | B153: 103001-重庆市綦江区人民政府办公室（本级） | C153: 部门项目 | D153: 50011022T000000155489-信息调研 | E153: 30.00 | F153: 0.00 | G153: 30.00
A154: 103-重庆市綦江区人民政府办公室 | B154: 103001-重庆市綦江区人民政府办公室（本级） | C154: 部门项目 | D154: 50011022T000000155495-区政府后勤保障 | E154: 90.57 | F154: 0.00 | G154: 90.57
A155: 103-重庆市綦江区人民政府办公室 | B155: 103001-重庆市綦江区人民政府办公室（本级） | C155: 部门项目 | D155: 50011024T000004126864-全区政务公开标准化管理 | E155: 56.21 | F155: 0.00 | G155: 56.21
A156: 103-重庆市綦江区人民政府办公室 | B156: 103001-重庆市綦江区人民政府办公室（本级） | C156: 部门项目 | D156: 50011025T000004589278-招商成效考核经费 | E156: 150.00 | F156: 0.00 | G156: 150.00
A157: 103-重庆市綦江区人民政府办公室 | B157: 103001-重庆市綦江区人民政府办公室（本级） | C157: 部门项目 | D157: 50011025T000004589290-招商引资工作经费 | E157: 60.00 | F157: 0.00 | G157: 60.00
A158: 103-重庆市綦江区人民政府办公室 | B158: 103001-重庆市綦江区人民政府办公室（本级） | C158: 部门项目 | D158: 50011025T000005106811-西部国际投资贸易洽谈会布展 | E158: 80.00 | F158: 0.00 | G158: 80.00
A159: 103-重庆市綦江区人民政府办公室 | B159: 103001-重庆市綦江区人民政府办公室（本级） | C159: 部门项目 | D159: 50011026T000005580072-真抓实干激励 | E159: 30.00 | F159: 0.00 | G159: 30.00
A160: 103-重庆市綦江区人民政府办公室 | B160: 103001-重庆市綦江区人民政府办公室（本级） | C160: 部门项目 | D160: 50011026T000005587846-西部陆海新通道专题招商 | E160: 35.00 | F160: 0.00 | G160: 35.00
A161: 103-重庆市綦江区人民政府办公室 | B161: 103001-重庆市綦江区人民政府办公室（本级） | C161: 公用经费小计 | E161: 198.56 | F161: 0.00 | G161: 198.56
A162: 103-重庆市綦江区人民政府办公室 | B162: 103001-重庆市綦江区人民政府办公室（本级） | C162: 公用经费 | D162: 50011021Y000000027925-公用经费综合定额(行政) | E162: 86.70 | F162: 0.00 | G162: 86.70
A163: 103-重庆市綦江区人民政府办公室 | B163: 103001-重庆市綦江区人民政府办公室（本级） | C163: 公用经费 | D163: 50011021Y000000027930-工会经费(行政非统发) | E163: 3.80 | F163: 0.00 | G163: 3.80
A164: 103-重庆市綦江区人民政府办公室 | B164: 103001-重庆市綦江区人民政府办公室（本级） | C164: 公用经费 | D164: 50011021Y000000027931-工会经费(行政统发) | E164: 2.53 | F164: 0.00 | G164: 2.53
A165: 103-重庆市綦江区人民政府办公室 | B165: 103001-重庆市綦江区人民政府办公室（本级） | C165: 公用经费 | D165: 50011021Y000000027933-福利费(行政离退休) | E165: 3.02 | F165: 0.00 | G165: 3.02
A166: 103-重庆市綦江区人民政府办公室 | B166: 103001-重庆市綦江区人民政府办公室（本级） | C166: 公用经费 | D166: 50011021Y000000027934-福利费(行政在职) | E166: 5.76 | F166: 0.00 | G166: 5.76
A167: 103-重庆市綦江区人民政府办公室 | B167: 103001-重庆市綦江区人民政府办公室（本级） | C167: 公用经费 | D167: 50011021Y000000027940-培训费（行政） | E167: 4.75 | F167: 0.00 | G167: 4.75
A168: 103-重庆市綦江区人民政府办公室 | B168: 103001-重庆市綦江区人民政府办公室（本级） | C168: 公用经费 | D168: 50011021Y000000027944-公务交通补贴 | E168: 31.96 | F168: 0.00 | G168: 31.96
A169: 103-重庆市綦江区人民政府办公室 | B169: 103001-重庆市綦江区人民政府办公室（本级） | C169: 公用经费 | D169: 50011021Y000000027946-通讯费补贴(行政) | E169: 9.96 | F169: 0.00 | G169: 9.96
A170: 103-重庆市綦江区人民政府办公室 | B170: 103001-重庆市綦江区人民政府办公室（本级） | C170: 公用经费 | D170: 50011021Y000000027947-通讯费补贴(工勤) | E170: 0.94 | F170: 0.00 | G170: 0.94
A171: 103-重庆市綦江区人民政府办公室 | B171: 103001-重庆市綦江区人民政府办公室（本级） | C171: 公用经费 | D171: 50011021Y000000027948-公务用车运行维护费 | E171: 21.00 | F171: 0.00 | G171: 21.00
A172: 103-重庆市綦江区人民政府办公室 | B172: 103001-重庆市綦江区人民政府办公室（本级） | C172: 公用经费 | D172: 50011024Y000003988179-非在编人员 | E172: 22.50 | F172: 0.00 | G172: 22.50
A173: 103-重庆市綦江区人民政府办公室 | B173: 103001-重庆市綦江区人民政府办公室（本级） | C173: 公用经费 | D173: 50011024Y000004239411-离退休人员活动费 | E173: 0.55 | F173: 0.00 | G173: 0.55
A174: 103-重庆市綦江区人民政府办公室 | B174: 103001-重庆市綦江区人民政府办公室（本级） | C174: 公用经费 | D174: 50011026Y000005531980-残疾人保障金 | E174: 5.10 | F174: 0.00 | G174: 5.10
A175: 103-重庆市綦江区人民政府办公室 | B175: 103001-重庆市綦江区人民政府办公室（本级） | C175: 人员类小计 | E175: 870.37 | F175: 0.00 | G175: 870.37
A176: 103-重庆市綦江区人民政府办公室 | B176: 103001-重庆市綦江区人民政府办公室（本级） | C176: 人员类 | D176: 50011021R000000027843-基本工资(行政统发) | E176: 191.90 | F176: 0.00 | G176: 191.90
A177: 103-重庆市綦江区人民政府办公室 | B177: 103001-重庆市綦江区人民政府办公室（本级） | C177: 人员类 | D177: 50011021R000000027846-津补贴(行政统发) | E177: 124.49 | F177: 0.00 | G177: 124.49
A178: 103-重庆市綦江区人民政府办公室 | B178: 103001-重庆市綦江区人民政府办公室（本级） | C178: 人员类 | D178: 50011021R000000027848-乡镇工作补贴 | E178: 0.36 | F178: 0.00 | G178: 0.36
A179: 103-重庆市綦江区人民政府办公室 | B179: 103001-重庆市綦江区人民政府办公室（本级） | C179: 人员类 | D179: 50011021R000000027851-年终一次性奖金(行政统发) | E179: 15.99 | F179: 0.00 | G179: 15.99
A180: 103-重庆市綦江区人民政府办公室 | B180: 103001-重庆市綦江区人民政府办公室（本级） | C180: 人员类 | D180: 50011021R000000027853-基本医疗保险（行政） | E180: 46.92 | F180: 0.00 | G180: 46.92
A181: 103-重庆市綦江区人民政府办公室 | B181: 103001-重庆市綦江区人民政府办公室（本级） | C181: 人员类 | D181: 50011021R000000027859-职业年金（行政） | E181: 39.51 | F181: 0.00 | G181: 39.51
A182: 103-重庆市綦江区人民政府办公室 | B182: 103001-重庆市綦江区人民政府办公室（本级） | C182: 人员类 | D182: 50011021R000000027863-工伤保险(行政) | E182: 1.00 | F182: 0.00 | G182: 1.00
A183: 103-重庆市綦江区人民政府办公室 | B183: 103001-重庆市綦江区人民政府办公室（本级） | C183: 人员类 | D183: 50011021R000000027866-生育保险(行政) | E183: 1.66 | F183: 0.00 | G183: 1.66
A184: 103-重庆市綦江区人民政府办公室 | B184: 103001-重庆市綦江区人民政府办公室（本级） | C184: 人员类 | D184: 50011021R000000027873-医疗补助（行政离退休） | E184: 5.40 | F184: 0.00 | G184: 5.40
A185: 103-重庆市綦江区人民政府办公室 | B185: 103001-重庆市綦江区人民政府办公室（本级） | C185: 人员类 | D185: 50011021R000000027880-基本养老保险（行政） | E185: 79.02 | F185: 0.00 | G185: 79.02
A186: 103-重庆市綦江区人民政府办公室 | B186: 103001-重庆市綦江区人民政府办公室（本级） | C186: 人员类 | D186: 50011021R000000027888-住房公积金(行政) | E186: 66.92 | F186: 0.00 | G186: 66.92
A187: 103-重庆市綦江区人民政府办公室 | B187: 103001-重庆市綦江区人民政府办公室（本级） | C187: 人员类 | D187: 50011021R000000027899-遗属、长赡人员生活补助 | E187: 3.48 | F187: 0.00 | G187: 3.48
A188: 103-重庆市綦江区人民政府办公室 | B188: 103001-重庆市綦江区人民政府办公室（本级） | C188: 人员类 | D188: 50011021R000000031995-综合目标考核奖励（行政离退休） | E188: 63.32 | F188: 0.00 | G188: 63.32
A189: 103-重庆市綦江区人民政府办公室 | B189: 103001-重庆市綦江区人民政府办公室（本级） | C189: 人员类 | D189: 50011021R000000032052-医疗补助（行政） | E189: 5.44 | F189: 0.00 | G189: 5.44
A190: 103-重庆市綦江区人民政府办公室 | B190: 103001-重庆市綦江区人民政府办公室（本级） | C190: 人员类 | D190: 50011022R000002249364-基础绩效奖（统发） | E190: 161.52 | F190: 0.00 | G190: 161.52
A191: 103-重庆市綦江区人民政府办公室 | B191: 103001-重庆市綦江区人民政府办公室（本级） | C191: 人员类 | D191: 50011022R000002250100-年度考核奖（在职）（统发） | E191: 63.45 | F191: 0.00 | G191: 63.45
A192: 103-重庆市綦江区人民政府办公室 | B192: 103002-重庆市綦江区电子政务中心小计 | E192: 330.18 | F192: 0.00 | G192: 330.18
A193: 103-重庆市綦江区人民政府办公室 | B193: 103002-重庆市綦江区电子政务中心 | C193: 公用经费小计 | E193: 46.30 | F193: 0.00 | G193: 46.30
A194: 103-重庆市綦江区人民政府办公室 | B194: 103002-重庆市綦江区电子政务中心 | C194: 公用经费 | D194: 50011021Y000000027926-公用经费综合定额(事业) | E194: 34.30 | F194: 0.00 | G194: 34.30
A195: 103-重庆市綦江区人民政府办公室 | B195: 103002-重庆市綦江区电子政务中心 | C195: 公用经费 | D195: 50011021Y000000027927-工会经费(事业非统发) | E195: 1.49 | F195: 0.00 | G195: 1.49
A196: 103-重庆市綦江区人民政府办公室 | B196: 103002-重庆市綦江区电子政务中心 | C196: 公用经费 | D196: 50011021Y000000027932-工会经费(事业统发) | E196: 0.99 | F196: 0.00 | G196: 0.99
A197: 103-重庆市綦江区人民政府办公室 | B197: 103002-重庆市綦江区电子政务中心 | C197: 公用经费 | D197: 50011021Y000000027935-福利费(事业在职) | E197: 2.07 | F197: 0.00 | G197: 2.07
A198: 103-重庆市綦江区人民政府办公室 | B198: 103002-重庆市綦江区电子政务中心 | C198: 公用经费 | D198: 50011021Y000000027941-培训费（事业） | E198: 1.86 | F198: 0.00 | G198: 1.86
A199: 103-重庆市綦江区人民政府办公室 | B199: 103002-重庆市綦江区电子政务中心 | C199: 公用经费 | D199: 50011021Y000000027948-公务用车运行维护费 | E199: 3.50 | F199: 0.00 | G199: 3.50
A200: 103-重庆市綦江区人民政府办公室 | B200: 103002-重庆市綦江区电子政务中心 | C200: 公用经费 | D200: 50011026Y000005531980-残疾人保障金 | E200: 2.10 | F200: 0.00 | G200: 2.10
... 13520 more rows

Sheet 33
A1: 表33
A2: 重庆市綦江区2026年上年结转支出明细表
A3: （分单位，分功能科目）
F4: 单位：万元
A5: 单位信息 | B5: 支出功能科目 | C5: 公共预算 | D5: 基金预算 | E5: 国资预算 | F5: 总计
A6: 全区总计 | C6: 173,358.3 | D6: 153,353.8 | E6: 108.0 | F6: 326,820.2
A7: 111-中共重庆市綦江区委组织部小计 | C7: 62.3 | D7: 0.0 | E7: 0.0 | F7: 62.3
B8: 2013202-一般行政管理事务 | C8: 62.3 | D8: 0.0 | E8: 0.0 | F8: 62.3
A9: 112-中共重庆市綦江区委宣传部小计 | C9: 66.0 | D9: 0.0 | E9: 0.0 | F9: 66.0
B10: 2070199-其他文化和旅游支出 | C10: 45.3 | D10: 0.0 | E10: 0.0 | F10: 45.3
B11: 2079903-文化产业发展专项支出 | C11: 20.7 | D11: 0.0 | E11: 0.0 | F11: 20.7
A12: 120-中共重庆市綦江区委机要保密局小计 | C12: 1,169.7 | D12: 0.0 | E12: 0.0 | F12: 1,169.7
B13: 2150599-其他工业和信息产业支出 | C13: 1,169.7 | D13: 0.0 | E13: 0.0 | F13: 1,169.7
A14: 203-重庆市綦江区发展和改革委员会小计 | C14: 49.9 | D14: 0.0 | E14: 0.0 | F14: 49.9
B15: 2220499-其他粮油储备支出 | C15: 49.9 | D15: 0.0 | E15: 0.0 | F15: 49.9
A16: 204-重庆市綦江区教育委员会小计 | C16: 7,035.4 | D16: 10,215.6 | E16: 0.0 | F16: 17,250.9
B17: 2050199-其他教育管理事务支出 | C17: 102.0 | D17: 0.0 | E17: 0.0 | F17: 102.0
B18: 2050201-学前教育 | C18: 1,114.1 | D18: 0.0 | E18: 0.0 | F18: 1,114.1
B19: 2050202-小学教育 | C19: 1,522.4 | D19: 0.0 | E19: 0.0 | F19: 1,522.4
B20: 2050203-初中教育 | C20: 764.3 | D20: 0.0 | E20: 0.0 | F20: 764.3
B21: 2050204-高中教育 | C21: 1,191.7 | D21: 0.0 | E21: 0.0 | F21: 1,191.7
B22: 2050299-其他普通教育支出 | C22: 900.0 | D22: 0.0 | E22: 0.0 | F22: 900.0
B23: 2050302-中等职业教育 | C23: 1,229.4 | D23: 0.0 | E23: 0.0 | F23: 1,229.4
B24: 2050701-特殊学校教育 | C24: 111.7 | D24: 0.0 | E24: 0.0 | F24: 111.7
B25: 2050799-其他特殊教育支出 | C25: 10.0 | D25: 0.0 | E25: 0.0 | F25: 10.0
B26: 2050801-教师进修 | C26: 80.0 | D26: 0.0 | E26: 0.0 | F26: 80.0
B27: 2210111-配租型住房保障 | C27: 6.1 | D27: 0.0 | E27: 0.0 | F27: 6.1
B28: 2210199-其他保障性安居工程支出 | C28: 3.8 | D28: 0.0 | E28: 0.0 | F28: 3.8
B29: 2296004-用于教育事业的彩票公益金支出 | C29: 0.0 | D29: 37.8 | E29: 0.0 | F29: 37.8
B30: 2299899-其他支出 | C30: 0.0 | D30: 10,177.7 | E30: 0.0 | F30: 10,177.7
A31: 206-重庆市綦江区经济和信息化委员会小计 | C31: 234.0 | D31: 0.0 | E31: 0.0 | F31: 234.0
B32: 2150517-产业发展 | C32: 150.0 | D32: 0.0 | E32: 0.0 | F32: 150.0
B33: 2170399-其他金融发展支出 | C33: 84.0 | D33: 0.0 | E33: 0.0 | F33: 84.0
A34: 207-重庆市綦江区民政局小计 | C34: 5,614.0 | D34: 587.1 | E34: 0.0 | F34: 6,201.1
B35: 2080299-其他民政管理事务支出 | C35: 50.0 | D35: 0.0 | E35: 0.0 | F35: 50.0
B36: 2081004-殡葬 | C36: 180.0 | D36: 0.0 | E36: 0.0 | F36: 180.0
B37: 2081006-养老服务 | C37: 5,379.7 | D37: 0.0 | E37: 0.0 | F37: 5,379.7
B38: 2081099-其他社会福利支出 | C38: 4.3 | D38: 0.0 | E38: 0.0 | F38: 4.3
B39: 2296002-用于社会福利的彩票公益金支出 | C39: 0.0 | D39: 567.1 | E39: 0.0 | F39: 567.1
B40: 2296006-用于残疾人事业的彩票公益金支出 | C40: 0.0 | D40: 14.0 | E40: 0.0 | F40: 14.0
B41: 2296099-用于其他社会公益事业的彩票公益金支出 | C41: 0.0 | D41: 6.0 | E41: 0.0 | F41: 6.0
A42: 208-重庆市綦江区公安局小计 | C42: 3,117.4 | D42: 0.0 | E42: 0.0 | F42: 3,117.4
B43: 2040202-一般行政管理事务 | C43: 1,668.0 | D43: 0.0 | E43: 0.0 | F43: 1,668.0
B44: 2040220-执法办案 | C44: 1,449.4 | D44: 0.0 | E44: 0.0 | F44: 1,449.4
A45: 209-重庆市綦江区司法局小计 | C45: 38.3 | D45: 0.0 | E45: 0.0 | F45: 38.3
B46: 2040602-一般行政管理事务 | C46: 1.9 | D46: 0.0 | E46: 0.0 | F46: 1.9
B47: 2040605-普法宣传 | C47: 0.1 | D47: 0.0 | E47: 0.0 | F47: 0.1
B48: 2040607-公共法律服务 | C48: 31.8 | D48: 0.0 | E48: 0.0 | F48: 31.8
B49: 2040699-其他司法支出 | C49: 4.5 | D49: 0.0 | E49: 0.0 | F49: 4.5
A50: 210-重庆市綦江区财政局小计 | C50: 432.9 | D50: 0.0 | E50: 0.0 | F50: 432.9
B51: 2010602-一般行政管理事务 | C51: 40.3 | D51: 0.0 | E51: 0.0 | F51: 40.3
B52: 2130701-对村级公益事业建设的补助 | C52: 392.6 | D52: 0.0 | E52: 0.0 | F52: 392.6
A53: 211-重庆市医科学校小计 | C53: 339.9 | D53: 0.0 | E53: 0.0 | F53: 339.9
B54: 2050302-中等职业教育 | C54: 339.9 | D54: 0.0 | E54: 0.0 | F54: 339.9
A55: 212-重庆市綦江区人力资源和社会保障局小计 | C55: 2,851.3 | D55: 0.0 | E55: 108.0 | F55: 2,959.3
B56: 2080102-一般行政管理事务 | C56: 1,976.0 | D56: 0.0 | E56: 0.0 | F56: 1,976.0
B57: 2080109-社会保险经办机构 | C57: 49.0 | D57: 0.0 | E57: 0.0 | F57: 49.0
B58: 2080116-引进人才费用 | C58: 9.1 | D58: 0.0 | E58: 0.0 | F58: 9.1
B59: 2080199-其他人力资源和社会保障管理事务支出 | C59: 76.9 | D59: 0.0 | E59: 0.0 | F59: 76.9
B60: 2080699-其他企业改革发展补助 | C60: 77.0 | D60: 0.0 | E60: 0.0 | F60: 77.0
B61: 2080704-社会保险补贴 | C61: 189.6 | D61: 0.0 | E61: 0.0 | F61: 189.6
B62: 2089999-其他社会保障和就业支出 | C62: 4.0 | D62: 0.0 | E62: 0.0 | F62: 4.0
B63: 2130804-创业担保贷款贴息及奖补 | C63: 469.7 | D63: 0.0 | E63: 0.0 | F63: 469.7
B64: 2230105-国有企业退休人员社会化管理补助支出 | C64: 0.0 | D64: 0.0 | E64: 108.0 | F64: 108.0
A65: 213-重庆市綦江区生态环境局小计 | C65: 5,968.2 | D65: 3,746.2 | E65: 0.0 | F65: 9,714.4
B66: 2110199-其他环境保护管理事务支出 | C66: 433.6 | D66: 0.0 | E66: 0.0 | F66: 433.6
B67: 2110301-大气 | C67: 1,561.4 | D67: 0.0 | E67: 0.0 | F67: 1,561.4
B68: 2110302-水体 | C68: 2,436.2 | D68: 0.0 | E68: 0.0 | F68: 2,436.2
B69: 2110307-土壤 | C69: 1,537.0 | D69: 0.0 | E69: 0.0 | F69: 1,537.0
B70: 2119899-其他节能环保支出 | C70: 0.0 | D70: 3,746.2 | E70: 0.0 | F70: 3,746.2
A71: 214-重庆市綦江区住房和城乡建设委员会小计 | C71: 52,451.5 | D71: 11,926.2 | E71: 0.0 | F71: 64,377.7
B72: 2110302-水体 | C72: 47.9 | D72: 0.0 | E72: 0.0 | F72: 47.9
B73: 2110399-其他污染防治支出 | C73: 68.3 | D73: 0.0 | E73: 0.0 | F73: 68.3
B74: 2119801-水污染综合治理 | C74: 0.0 | D74: 7,858.0 | E74: 0.0 | F74: 7,858.0
B75: 2120399-其他城乡社区公共设施支出 | C75: 7,267.5 | D75: 0.0 | E75: 0.0 | F75: 7,267.5
B76: 2120803-城市建设支出 | C76: 0.0 | D76: 971.0 | E76: 0.0 | F76: 971.0
B77: 2120804-农村基础设施建设支出 | C77: 0.0 | D77: 304.0 | E77: 0.0 | F77: 304.0
B78: 2121399-其他城市基础设施配套费安排的支出 | C78: 0.0 | D78: 1,903.0 | E78: 0.0 | F78: 1,903.0
B79: 2121401-污水处理设施建设和运营 | C79: 0.0 | D79: 42.7 | E79: 0.0 | F79: 42.7
B80: 2210103-棚户区改造 | C80: 7,361.3 | D80: 0.0 | E80: 0.0 | F80: 7,361.3
B81: 2210108-老旧小区改造 | C81: 16,212.5 | D81: 0.0 | E81: 0.0 | F81: 16,212.5
B82: 2210111-配租型住房保障 | C82: 5,109.4 | D82: 0.0 | E82: 0.0 | F82: 5,109.4
B83: 2210112-配售型保障性住房 | C83: 10,218.0 | D83: 0.0 | E83: 0.0 | F83: 10,218.0
B84: 2210113-城中村改造 | C84: 5,970.0 | D84: 0.0 | E84: 0.0 | F84: 5,970.0
B85: 2210199-其他保障性安居工程支出 | C85: 196.6 | D85: 0.0 | E85: 0.0 | F85: 196.6
B86: 2219899-其他住房保障支出 | C86: 0.0 | D86: 847.5 | E86: 0.0 | F86: 847.5
A87: 215-重庆市綦江区城市管理局小计 | C87: 2,816.6 | D87: 10,525.3 | E87: 0.0 | F87: 13,342.0
B88: 2070308-群众体育 | C88: 715.1 | D88: 0.0 | E88: 0.0 | F88: 715.1
B89: 2110304-固体废弃物与化学品 | C89: 89.0 | D89: 0.0 | E89: 0.0 | F89: 89.0
B90: 2120399-其他城乡社区公共设施支出 | C90: 1,742.0 | D90: 0.0 | E90: 0.0 | F90: 1,742.0
B91: 2129801-城乡社区公共设施 | C91: 0.0 | D91: 10,444.3 | E91: 0.0 | F91: 10,444.3
B92: 2130701-对村级公益事业建设的补助 | C92: 270.6 | D92: 0.0 | E92: 0.0 | F92: 270.6
B93: 2136701-基础设施建设和经济发展 | C93: 0.0 | D93: 81.0 | E93: 0.0 | F93: 81.0
A94: 216-重庆市綦江区交通运输委员会小计 | C94: 20,928.5 | D94: 972.7 | E94: 0.0 | F94: 21,901.2
B95: 2120899-其他国有土地使用权出让收入安排的支出 | C95: 0.0 | D95: 972.7 | E95: 0.0 | F95: 972.7
B96: 2140104-公路建设 | C96: 16,098.8 | D96: 0.0 | E96: 0.0 | F96: 16,098.8
B97: 2140106-公路养护 | C97: 3,481.2 | D97: 0.0 | E97: 0.0 | F97: 3,481.2
B98: 2140112-公路运输管理 | C98: 273.9 | D98: 0.0 | E98: 0.0 | F98: 273.9
B99: 2140136-水路运输管理支出 | C99: 178.5 | D99: 0.0 | E99: 0.0 | F99: 178.5
B100: 2140199-其他公路水路运输支出 | C100: 359.3 | D100: 0.0 | E100: 0.0 | F100: 359.3
B101: 2149999-其他交通运输支出 | C101: 536.7 | D101: 0.0 | E101: 0.0 | F101: 536.7
A102: 217-重庆市綦江区水利局小计 | C102: 25,077.4 | D102: 234.1 | E102: 0.0 | F102: 25,311.5
B103: 21211-农业土地开发资金安排的支出 | C103: 0.0 | D103: 99.7 | E103: 0.0 | F103: 99.7
B104: 2130305-水利工程建设 | C104: 16,002.9 | D104: 0.0 | E104: 0.0 | F104: 16,002.9
B105: 2130306-水利工程运行与维护 | C105: 396.4 | D105: 0.0 | E105: 0.0 | F105: 396.4
B106: 2130310-水土保持 | C106: 0.0 | D106: 0.0 | E106: 0.0 | F106: 0.0
B107: 2130314-防汛 | C107: 168.5 | D107: 0.0 | E107: 0.0 | F107: 168.5
B108: 2130315-抗旱 | C108: 503.7 | D108: 0.0 | E108: 0.0 | F108: 503.7
B109: 2130316-农村水利 | C109: 3,259.4 | D109: 0.0 | E109: 0.0 | F109: 3,259.4
B110: 2130319-江河湖库水系综合整治 | C110: 4,708.0 | D110: 0.0 | E110: 0.0 | F110: 4,708.0
B111: 2130335-农村供水 | C111: 38.5 | D111: 0.0 | E111: 0.0 | F111: 38.5
B112: 2137201-移民补助 | C112: 0.0 | D112: 10.5 | E112: 0.0 | F112: 10.5
B113: 2137202-基础设施建设和经济发展 | C113: 0.0 | D113: 122.0 | E113: 0.0 | F113: 122.0
B114: 2137302-基础设施建设和经济发展 | C114: 0.0 | D114: 2.0 | E114: 0.0 | F114: 2.0
A115: 218-重庆市綦江区农业农村委员会小计 | C115: 5,317.5 | D115: 8,604.3 | E115: 0.0 | F115: 13,921.9
B116: 2130101-行政运行 | C116: 51.2 | D116: 0.0 | E116: 0.0 | F116: 51.2
B117: 2130104-事业运行 | C117: 23.6 | D117: 0.0 | E117: 0.0 | F117: 23.6
B118: 2130106-科技转化与推广服务 | C118: 652.7 | D118: 0.0 | E118: 0.0 | F118: 652.7
B119: 2130108-病虫害控制 | C119: 182.9 | D119: 0.0 | E119: 0.0 | F119: 182.9
B120: 2130109-农产品质量安全 | C120: 5.0 | D120: 0.0 | E120: 0.0 | F120: 5.0
B121: 2130110-执法监管 | C121: 11.8 | D121: 0.0 | E121: 0.0 | F121: 11.8
B122: 2130111-统计监测与信息服务 | C122: 34.0 | D122: 0.0 | E122: 0.0 | F122: 34.0
B123: 2130120-稳定农民收入补贴 | C123: 68.4 | D123: 0.0 | E123: 0.0 | F123: 68.4
B124: 2130122-农业生产发展 | C124: 586.2 | D124: 0.0 | E124: 0.0 | F124: 586.2
B125: 2130124-农村合作经济 | C125: 673.4 | D125: 0.0 | E125: 0.0 | F125: 673.4
B126: 2130125-农产品加工与促销 | C126: 23.1 | D126: 0.0 | E126: 0.0 | F126: 23.1
B127: 2130126-农村社会事业 | C127: 11.6 | D127: 0.0 | E127: 0.0 | F127: 11.6
B128: 2130135-农业生态资源保护 | C128: 192.4 | D128: 0.0 | E128: 0.0 | F128: 192.4
B129: 2130148-渔业发展 | C129: 50.0 | D129: 0.0 | E129: 0.0 | F129: 50.0
B130: 2130153-耕地建设与利用 | C130: 2,747.5 | D130: 0.0 | E130: 0.0 | F130: 2,747.5
B131: 2130803-农业保险保费补贴 | C131: 3.7 | D131: 0.0 | E131: 0.0 | F131: 3.7
B132: 2139801-农业农村支出 | C132: 0.0 | D132: 8,604.3 | E132: 0.0 | F132: 8,604.3
A133: 219-重庆市綦江区商务委员会小计 | C133: 461.0 | D133: 0.0 | E133: 0.0 | F133: 461.0
B134: 2160299-其他商业流通事务支出 | C134: 381.0 | D134: 0.0 | E134: 0.0 | F134: 381.0
B135: 2160699-其他涉外发展服务支出 | C135: 80.0 | D135: 0.0 | E135: 0.0 | F135: 80.0
A136: 220-重庆市綦江区文化和旅游发展委员会小计 | C136: 2,877.0 | D136: 692.7 | E136: 0.0 | F136: 3,569.7
B137: 2070199-其他文化和旅游支出 | C137: 190.5 | D137: 0.0 | E137: 0.0 | F137: 190.5
B138: 2070204-文物保护 | C138: 103.5 | D138: 0.0 | E138: 0.0 | F138: 103.5
B139: 2070205-博物馆 | C139: 122.0 | D139: 0.0 | E139: 0.0 | F139: 122.0
B140: 2070307-体育场馆 | C140: 200.0 | D140: 0.0 | E140: 0.0 | F140: 200.0
B141: 2070308-群众体育 | C141: 2,261.0 | D141: 0.0 | E141: 0.0 | F141: 2,261.0
B142: 2296003-用于体育事业的彩票公益金支出 | C142: 0.0 | D142: 692.7 | E142: 0.0 | F142: 692.7
A143: 221-重庆市綦江区卫生健康委员会小计 | C143: 4,740.4 | D143: 10,413.9 | E143: 0.0 | F143: 15,154.4
B144: 2081006-养老服务 | C144: 3,370.7 | D144: 0.0 | E144: 0.0 | F144: 3,370.7
B145: 2100199-其他卫生健康管理事务支出 | C145: 3.7 | D145: 0.0 | E145: 0.0 | F145: 3.7
B146: 2100202-中医（民族）医院 | C146: 91.7 | D146: 0.0 | E146: 0.0 | F146: 91.7
B147: 2100302-乡镇卫生院 | C147: 72.5 | D147: 0.0 | E147: 0.0 | F147: 72.5
B148: 2100401-疾病预防控制机构 | C148: 41.3 | D148: 0.0 | E148: 0.0 | F148: 41.3
B149: 2100408-基本公共卫生服务 | C149: 0.4 | D149: 0.0 | E149: 0.0 | F149: 0.4
B150: 2100409-重大公共卫生服务 | C150: 464.4 | D150: 0.0 | E150: 0.0 | F150: 464.4
B151: 2100499-其他公共卫生支出 | C151: 141.2 | D151: 0.0 | E151: 0.0 | F151: 141.2
B152: 2101704-中医（民族医）药专项 | C152: 124.6 | D152: 0.0 | E152: 0.0 | F152: 124.6
B153: 2101901-托育机构 | C153: 3.0 | D153: 0.0 | E153: 0.0 | F153: 3.0
B154: 2101999-其他育幼服务支出 | C154: 427.0 | D154: 0.0 | E154: 0.0 | F154: 427.0
B155: 2109801-公立医院 | C155: 0.0 | D155: 6,251.0 | E155: 0.0 | F155: 6,251.0
B156: 2299899-其他支出 | C156: 0.0 | D156: 4,162.9 | E156: 0.0 | F156: 4,162.9
A157: 222-重庆市綦江区退役军人事务局小计 | C157: 1,364.1 | D157: 0.0 | E157: 0.0 | F157: 1,364.1
B158: 2080803-在乡复员、退伍军人生活补助 | C158: 385.0 | D158: 0.0 | E158: 0.0 | F158: 385.0
B159: 2080808-褒扬纪念 | C159: 31.5 | D159: 0.0 | E159: 0.0 | F159: 31.5
B160: 2080899-其他优抚支出 | C160: 116.3 | D160: 0.0 | E160: 0.0 | F160: 116.3
B161: 2080902-军队移交政府的离退休人员安置 | C161: 379.0 | D161: 0.0 | E161: 0.0 | F161: 379.0
B162: 2080903-军队移交政府离退休干部管理机构 | C162: 68.4 | D162: 0.0 | E162: 0.0 | F162: 68.4
B163: 2080904-退役士兵管理教育 | C163: 0.3 | D163: 0.0 | E163: 0.0 | F163: 0.3
B164: 2080905-军队转业干部安置 | C164: 2.1 | D164: 0.0 | E164: 0.0 | F164: 2.1
B165: 2082802-一般行政管理事务 | C165: 127.9 | D165: 0.0 | E165: 0.0 | F165: 127.9
B166: 2101401-优抚对象医疗补助 | C166: 253.5 | D166: 0.0 | E166: 0.0 | F166: 253.5
A167: 223-重庆市綦江区应急管理局小计 | C167: 459.0 | D167: 0.0 | E167: 0.0 | F167: 459.0
B168: 2240108-应急救援 | C168: 232.1 | D168: 0.0 | E168: 0.0 | F168: 232.1
B169: 2240199-其他应急管理支出 | C169: 226.9 | D169: 0.0 | E169: 0.0 | F169: 226.9
A170: 224-重庆市綦江区统计局小计 | C170: 4.1 | D170: 0.0 | E170: 0.0 | F170: 4.1
B171: 2010508-统计抽样调查 | C171: 4.1 | D171: 0.0 | E171: 0.0 | F171: 4.1
A172: 225-重庆市綦江区医疗保障局小计 | C172: 41.2 | D172: 0.0 | E172: 0.0 | F172: 41.2
B173: 2101504-信息化建设 | C173: 0.0 | D173: 0.0 | E173: 0.0 | F173: 0.0
B174: 2101505-医疗保障政策管理 | C174: 41.2 | D174: 0.0 | E174: 0.0 | F174: 41.2
A175: 227-重庆市綦江区林业局小计 | C175: 2,710.1 | D175: 0.0 | E175: 0.0 | F175: 2,710.1
B176: 2110406-自然保护地 | C176: 40.0 | D176: 0.0 | E176: 0.0 | F176: 40.0
B177: 2110501-森林管护 | C177: 14.0 | D177: 0.0 | E177: 0.0 | F177: 14.0
B178: 2130204-事业机构 | C178: 41.4 | D178: 0.0 | E178: 0.0 | F178: 41.4
B179: 2130205-森林资源培育 | C179: 595.2 | D179: 0.0 | E179: 0.0 | F179: 595.2
B180: 2130207-森林资源管理 | C180: 967.3 | D180: 0.0 | E180: 0.0 | F180: 967.3
B181: 2130234-林业草原防灾减灾 | C181: 522.3 | D181: 0.0 | E181: 0.0 | F181: 522.3
B182: 2130237-行业业务管理 | C182: 44.0 | D182: 0.0 | E182: 0.0 | F182: 44.0
B183: 2130238-退耕还林还草 | C183: 485.9 | D183: 0.0 | E183: 0.0 | F183: 485.9
A184: 230-重庆綦江高新技术产业开发区管理委员会小计 | C184: 85.5 | D184: 16,587.5 | E184: 0.0 | F184: 16,673.0
B185: 2111199-其他污染减排支出 | C185: 85.5 | D185: 0.0 | E185: 0.0 | F185: 85.5
B186: 2119801-水污染综合治理 | C186: 0.0 | D186: 11,872.6 | E186: 0.0 | F186: 11,872.6
B187: 2119802-应对气候变化 | C187: 0.0 | D187: 764.9 | E187: 0.0 | F187: 764.9
B188: 2159802-制造业 | C188: 0.0 | D188: 3,288.7 | E188: 0.0 | F188: 3,288.7
B189: 2299899-其他支出 | C189: 0.0 | D189: 661.3 | E189: 0.0 | F189: 661.3
A190: 232-重庆市綦江区新城建设管理委员会小计 | C190: 10,856.0 | D190: 2,620.0 | E190: 0.0 | F190: 13,476.0
B191: 2110302-水体 | C191: 2,056.0 | D191: 0.0 | E191: 0.0 | F191: 2,056.0
B192: 2120399-其他城乡社区公共设施支出 | C192: 8,800.0 | D192: 0.0 | E192: 0.0 | F192: 8,800.0
B193: 2129899-其他城乡社区支出 | C193: 0.0 | D193: 2,620.0 | E193: 0.0 | F193: 2,620.0
A194: 234-重庆市綦江区供销合作社联合社小计 | C194: 109.5 | D194: 0.0 | E194: 0.0 | F194: 109.5
B195: 2110402-农村环境保护 | C195: 3.5 | D195: 0.0 | E195: 0.0 | F195: 3.5
B196: 2130124-农村合作经济 | C196: 106.0 | D196: 0.0 | E196: 0.0 | F196: 106.0
A197: 400-重庆市綦江区人民政府古南街道办事处小计 | C197: 1,746.8 | D197: 16.0 | E197: 0.0 | F197: 1,762.8
B198: 2010301-行政运行 | C198: 1.0 | D198: 0.0 | E198: 0.0 | F198: 1.0
B199: 2010302-一般行政管理事务 | C199: 0.8 | D199: 0.0 | E199: 0.0 | F199: 0.8
B200: 2111301-循环经济 | C200: 0.0 | D200: 0.0 | E200: 0.0 | F200: 0.0
... 264 more rows

Sheet 34
A1: 表34
A2: 綦江区2026年项目绩效目标情况表
A4: 科室编码名称 | B4: 单位编码名称 | C4: 项目名称 | D4: 一级指标名称 | E4: 二级指标名称 | F4: 三级指标 | G4: 绩效指标性质名称 | H4: 指标值 | I4: 绩效度量单位名称 | J4: 权重 | K4: 预算数 （万元）
A5: 行政政法科 | B5: 中共重庆市綦江区委办公室（本级） | C5: 新綦江办刊费 | D5: 产出指标 | E5: 数量指标 | F5: 全年新綦江办刊期数 | G5: ≥ | H5: 12 | I5: 期 | J5: 20 | K5: 9.25
A6: 行政政法科 | B6: 中共重庆市綦江区委办公室（本级） | C6: 新綦江办刊费 | D6: 产出指标 | E6: 数量指标 | F6: 新綦江办刊编制合格率 | G6: ≥ | H6: 90 | I6: % | J6: 20 | K6: 9.25
A7: 行政政法科 | B7: 中共重庆市綦江区委办公室（本级） | C7: 新綦江办刊费 | D7: 产出指标 | E7: 数量指标 | F7: 新綦江办刊每期册数 | G7: ≥ | H7: 800 | I7: 册 | J7: 20 | K7: 9.25
A8: 行政政法科 | B8: 中共重庆市綦江区委办公室（本级） | C8: 新綦江办刊费 | D8: 效益指标 | E8: 社会效益指标 | F8: 期刊阅读量 | G8: ≥ | H8: 90 | I8: % | J8: 20 | K8: 9.25
A9: 行政政法科 | B9: 中共重庆市綦江区委办公室（本级） | C9: 新綦江办刊费 | D9: 满意度指标 | E9: 满意度指标 | F9: 阅读满意度 | G9: ≥ | H9: 90 | I9: % | J9: 10 | K9: 9.25
A10: 行政政法科 | B10: 中共重庆市綦江区委办公室（本级） | C10: *涉密项目* | D10: 产出指标 | E10: 数量指标 | F10: 涉密项目 | G10: ≥ | H10: 100 | I10: % | J10: 20 | K10: 400.00
A11: 行政政法科 | B11: 中共重庆市綦江区委办公室（本级） | C11: *涉密项目* | D11: 产出指标 | E11: 质量指标 | F11: 涉密项目 | G11: ≥ | H11: 100 | I11: % | J11: 20 | K11: 400.00
A12: 行政政法科 | B12: 中共重庆市綦江区委办公室（本级） | C12: *涉密项目* | D12: 效益指标 | E12: 社会效益指标 | F12: 涉密项目 | G12: ≥ | H12: 100 | I12: % | J12: 20 | K12: 400.00
A13: 行政政法科 | B13: 中共重庆市綦江区委办公室（本级） | C13: *涉密项目* | D13: 满意度指标 | E13: 满意度指标 | F13: 涉密项目 | G13: ≥ | H13: 100 | I13: % | J13: 10 | K13: 400.00
A14: 行政政法科 | B14: 中共重庆市綦江区委办公室（本级） | C14: *涉密项目* | D14: 成本指标 | E14: 经济成本指标 | F14: 涉密项目 | G14: ≥ | H14: 100 | I14: % | J14: 20 | K14: 400.00
A15: 行政政法科 | B15: 中共重庆市綦江区委办公室（本级） | C15: *涉密项目* | D15: 产出指标 | E15: 数量指标 | F15: 涉密项目 | G15: ＝ | H15: 100 | I15: % | J15: 20 | K15: 10.00
A16: 行政政法科 | B16: 中共重庆市綦江区委办公室（本级） | C16: *涉密项目* | D16: 产出指标 | E16: 质量指标 | F16: 涉密项目 | G16: ＝ | H16: 100 | I16: % | J16: 20 | K16: 10.00
A17: 行政政法科 | B17: 中共重庆市綦江区委办公室（本级） | C17: *涉密项目* | D17: 产出指标 | E17: 时效指标 | F17: 涉密项目 | G17: ＝ | H17: 100 | I17: % | J17: 20 | K17: 10.00
A18: 行政政法科 | B18: 中共重庆市綦江区委办公室（本级） | C18: *涉密项目* | D18: 效益指标 | E18: 社会效益指标 | F18: 涉密项目 | G18: ＝ | H18: 100 | I18: % | J18: 20 | K18: 10.00
A19: 行政政法科 | B19: 中共重庆市綦江区委办公室（本级） | C19: *涉密项目* | D19: 满意度指标 | E19: 满意度指标 | F19: 涉密项目 | G19: ＝ | H19: 100 | I19: % | J19: 10 | K19: 10.00
A20: 行政政法科 | B20: 中共重庆市綦江区委办公室（本级） | C20: 督查工作专项 | D20: 产出指标 | E20: 数量指标 | F20: 督查次数 | G20: ≥ | H20: 3 | I20: 次 | J20: 20 | K20: 4.00
A21: 行政政法科 | B21: 中共重庆市綦江区委办公室（本级） | C21: 督查工作专项 | D21: 产出指标 | E21: 数量指标 | F21: 督查单位 | G21: ≥ | H21: 10 | I21: 个 | J21: 20 | K21: 4.00
A22: 行政政法科 | B22: 中共重庆市綦江区委办公室（本级） | C22: 督查工作专项 | D22: 产出指标 | E22: 数量指标 | F22: 督查项目 | G22: ≥ | H22: 10 | I22: 个 | J22: 20 | K22: 4.00
A23: 行政政法科 | B23: 中共重庆市綦江区委办公室（本级） | C23: 督查工作专项 | D23: 效益指标 | E23: 社会效益指标 | F23: 问题整改落实情况 | G23: ≥ | H23: 95 | I23: % | J23: 20 | K23: 4.00
A24: 行政政法科 | B24: 中共重庆市綦江区委办公室（本级） | C24: 督查工作专项 | D24: 满意度指标 | E24: 满意度指标 | F24: 督查人员满意度 | G24: ≥ | H24: 90 | I24: % | J24: 10 | K24: 4.00
A25: 行政政法科 | B25: 中共重庆市綦江区委办公室（本级） | C25: 区级重大会议专项 | D25: 产出指标 | E25: 数量指标 | F25: 区委常委会（扩大）会会议次数 | G25: ≥ | H25: 30 | I25: 次 | J25: 20 | K25: 45.00
A26: 行政政法科 | B26: 中共重庆市綦江区委办公室（本级） | C26: 区级重大会议专项 | D26: 产出指标 | E26: 数量指标 | F26: 全会、党建、经济等重大会议活动次数 | G26: ≥ | H26: 40 | I26: 次 | J26: 20 | K26: 45.00
A27: 行政政法科 | B27: 中共重庆市綦江区委办公室（本级） | C27: 区级重大会议专项 | D27: 产出指标 | E27: 质量指标 | F27: 会议活动质量 | G27: 定性 | J27: 20 | K27: 45.00
A28: 行政政法科 | B28: 中共重庆市綦江区委办公室（本级） | C28: 区级重大会议专项 | D28: 效益指标 | E28: 可持续发展指标 | F28: 保障会议服务有成效 | G28: 定性 | J28: 20 | K28: 45.00
A29: 行政政法科 | B29: 中共重庆市綦江区委办公室（本级） | C29: 区级重大会议专项 | D29: 满意度指标 | E29: 满意度指标 | F29: 参会人员满意度 | G29: ≥ | H29: 90 | I29: % | J29: 10 | K29: 45.00
A30: 行政政法科 | B30: 中共重庆市綦江区委办公室（本级） | C30: 区调研信息专项经费 | D30: 产出指标 | E30: 数量指标 | F30: 全年检查指导次数 | G30: ≥ | H30: 1 | I30: 次 | J30: 20 | K30: 13.20
A31: 行政政法科 | B31: 中共重庆市綦江区委办公室（本级） | C31: 区调研信息专项经费 | D31: 产出指标 | E31: 数量指标 | F31: 全年完成重点课题 | G31: ≥ | H31: 20 | I31: 个 | J31: 20 | K31: 13.20
A32: 行政政法科 | B32: 中共重庆市綦江区委办公室（本级） | C32: 区调研信息专项经费 | D32: 产出指标 | E32: 安全指标 | F32: 在预算金额内执行 | G32: ＝ | H32: 100 | I32: % | J32: 20 | K32: 13.20
A33: 行政政法科 | B33: 中共重庆市綦江区委办公室（本级） | C33: 区调研信息专项经费 | D33: 效益指标 | E33: 社会效益指标 | F33: 研究结果参考 | G33: 定性 | J33: 20 | K33: 13.20
A34: 行政政法科 | B34: 中共重庆市綦江区委办公室（本级） | C34: 区调研信息专项经费 | D34: 满意度指标 | E34: 满意度指标 | F34: 工作满意度 | G34: ≥ | H34: 90 | I34: % | J34: 10 | K34: 13.20
A35: 行政政法科 | B35: 中共重庆市綦江区委办公室（本级） | C35: 规范性文件备案审查工作专项 | D35: 产出指标 | E35: 数量指标 | F35: 全年前置审查件数 | G35: ≥ | H35: 5 | I35: 件 | J35: 20 | K35: 2.00
A36: 行政政法科 | B36: 中共重庆市綦江区委办公室（本级） | C36: 规范性文件备案审查工作专项 | D36: 产出指标 | E36: 数量指标 | F36: 全年上报件数 | G36: ≥ | H36: 5 | I36: 件 | J36: 20 | K36: 2.00
A37: 行政政法科 | B37: 中共重庆市綦江区委办公室（本级） | C37: 规范性文件备案审查工作专项 | D37: 产出指标 | E37: 质量指标 | F37: 全区党内法规执行质量 | G37: 定性 | J37: 20 | K37: 2.00
A38: 行政政法科 | B38: 中共重庆市綦江区委办公室（本级） | C38: 规范性文件备案审查工作专项 | D38: 效益指标 | E38: 可持续发展指标 | F38: 促进各级规范文件制发，推动地区经济社会高质量发展 | G38: 定性 | J38: 20 | K38: 2.00
A39: 行政政法科 | B39: 中共重庆市綦江区委办公室（本级） | C39: 规范性文件备案审查工作专项 | D39: 满意度指标 | E39: 满意度指标 | F39: 审查人员满意度 | G39: ≥ | H39: 90 | I39: % | J39: 10 | K39: 2.00
A40: 行政政法科 | B40: 中共重庆市綦江区委办公室（本级） | C40: 全业务通信运维 | D40: 产出指标 | E40: 质量指标 | F40: 网络使用质量 | G40: 定性 | J40: 20 | K40: 23.36
A41: 行政政法科 | B41: 中共重庆市綦江区委办公室（本级） | C41: 全业务通信运维 | D41: 产出指标 | E41: 时效指标 | F41: 维护及时性 | G41: ≥ | H41: 95 | I41: % | J41: 20 | K41: 23.36
A42: 行政政法科 | B42: 中共重庆市綦江区委办公室（本级） | C42: 全业务通信运维 | D42: 产出指标 | E42: 安全指标 | F42: 资金支付合规率 | G42: ＝ | H42: 100 | I42: % | J42: 20 | K42: 23.36
A43: 行政政法科 | B43: 中共重庆市綦江区委办公室（本级） | C43: 全业务通信运维 | D43: 效益指标 | E43: 可持续发展指标 | F43: 保证信息畅通 | G43: 定性 | J43: 20 | K43: 23.36
A44: 行政政法科 | B44: 中共重庆市綦江区委办公室（本级） | C44: 全业务通信运维 | D44: 满意度指标 | E44: 满意度指标 | F44: 使用人员满意度 | G44: ≥ | H44: 90 | I44: % | J44: 10 | K44: 23.36
A45: 行政政法科 | B45: 中共重庆市綦江区委办公室（本级） | C45: 退休干部活动专项 | D45: 产出指标 | E45: 数量指标 | F45: 慰问活动次数 | G45: ≥ | H45: 2 | I45: 次 | J45: 20 | K45: 10.00
A46: 行政政法科 | B46: 中共重庆市綦江区委办公室（本级） | C46: 退休干部活动专项 | D46: 产出指标 | E46: 数量指标 | F46: 学习次数 | G46: ≥ | H46: 5 | I46: 次 | J46: 20 | K46: 10.00
A47: 行政政法科 | B47: 中共重庆市綦江区委办公室（本级） | C47: 退休干部活动专项 | D47: 产出指标 | E47: 安全指标 | F47: 资金支付合规率 | G47: ＝ | H47: 100 | I47: % | J47: 20 | K47: 10.00
A48: 行政政法科 | B48: 中共重庆市綦江区委办公室（本级） | C48: 退休干部活动专项 | D48: 效益指标 | E48: 社会效益指标 | F48: 维护退休干部身心健康 | G48: 定性 | J48: 20 | K48: 10.00
A49: 行政政法科 | B49: 中共重庆市綦江区委办公室（本级） | C49: 退休干部活动专项 | D49: 满意度指标 | E49: 满意度指标 | F49: 退休干部满意度 | G49: ≥ | H49: 90 | I49: % | J49: 10 | K49: 10.00
A50: 行政政法科 | B50: 重庆市綦江区专用通信服务中心 | C50: *涉密项目* | D50: 产出指标 | E50: 数量指标 | F50: 涉密项目 | G50: ＝ | H50: 100 | I50: % | J50: 20 | K50: 76.05
A51: 行政政法科 | B51: 重庆市綦江区专用通信服务中心 | C51: *涉密项目* | D51: 产出指标 | E51: 质量指标 | F51: 涉密项目 | G51: ＝ | H51: 100 | I51: % | J51: 20 | K51: 76.05
A52: 行政政法科 | B52: 重庆市綦江区专用通信服务中心 | C52: *涉密项目* | D52: 产出指标 | E52: 时效指标 | F52: 涉密项目 | G52: ＝ | H52: 100 | I52: % | J52: 20 | K52: 76.05
A53: 行政政法科 | B53: 重庆市綦江区专用通信服务中心 | C53: *涉密项目* | D53: 效益指标 | E53: 社会效益指标 | F53: 涉密项目 | G53: ＝ | H53: 100 | I53: % | J53: 20 | K53: 76.05
A54: 行政政法科 | B54: 重庆市綦江区专用通信服务中心 | C54: *涉密项目* | D54: 满意度指标 | E54: 满意度指标 | F54: 涉密项目 | G54: ＝ | H54: 100 | I54: % | J54: 10 | K54: 76.05
A55: 行政政法科 | B55: 重庆市綦江区专用通信服务中心 | C55: *涉密项目* | D55: 产出指标 | E55: 数量指标 | F55: 涉密项目 | G55: ＝ | H55: 100 | I55: % | J55: 20 | K55: 20.00
A56: 行政政法科 | B56: 重庆市綦江区专用通信服务中心 | C56: *涉密项目* | D56: 产出指标 | E56: 质量指标 | F56: 涉密项目 | G56: ＝ | H56: 100 | I56: % | J56: 20 | K56: 20.00
A57: 行政政法科 | B57: 重庆市綦江区专用通信服务中心 | C57: *涉密项目* | D57: 产出指标 | E57: 时效指标 | F57: 涉密项目 | G57: ＝ | H57: 100 | I57: % | J57: 20 | K57: 20.00
A58: 行政政法科 | B58: 重庆市綦江区专用通信服务中心 | C58: *涉密项目* | D58: 效益指标 | E58: 社会效益指标 | F58: 涉密项目 | G58: ＝ | H58: 100 | I58: % | J58: 20 | K58: 20.00
A59: 行政政法科 | B59: 重庆市綦江区专用通信服务中心 | C59: *涉密项目* | D59: 满意度指标 | E59: 满意度指标 | F59: 涉密项目 | G59: ＝ | H59: 100 | I59: % | J59: 10 | K59: 20.00
A60: 行政政法科 | B60: 重庆市綦江区专用通信服务中心 | C60: *涉密项目* | D60: 产出指标 | E60: 数量指标 | F60: 涉密项目 | G60: ＝ | H60: 100 | I60: % | J60: 20 | K60: 30.00
A61: 行政政法科 | B61: 重庆市綦江区专用通信服务中心 | C61: *涉密项目* | D61: 产出指标 | E61: 质量指标 | F61: 涉密项目 | G61: ＝ | H61: 100 | I61: % | J61: 20 | K61: 30.00
A62: 行政政法科 | B62: 重庆市綦江区专用通信服务中心 | C62: *涉密项目* | D62: 产出指标 | E62: 时效指标 | F62: 涉密项目 | G62: ＝ | H62: 100 | I62: % | J62: 20 | K62: 30.00
A63: 行政政法科 | B63: 重庆市綦江区专用通信服务中心 | C63: *涉密项目* | D63: 效益指标 | E63: 社会效益指标 | F63: 涉密项目 | G63: ＝ | H63: 100 | I63: % | J63: 20 | K63: 30.00
A64: 行政政法科 | B64: 重庆市綦江区专用通信服务中心 | C64: *涉密项目* | D64: 满意度指标 | E64: 满意度指标 | F64: 涉密项目 | G64: ＝ | H64: 100 | I64: % | J64: 10 | K64: 30.00
A65: 行政政法科 | B65: 重庆市綦江区专用通信服务中心 | C65: *涉密项目* | D65: 产出指标 | E65: 数量指标 | F65: 涉密项目 | G65: ＝ | H65: 100 | I65: % | J65: 20 | K65: 51.00
A66: 行政政法科 | B66: 重庆市綦江区专用通信服务中心 | C66: *涉密项目* | D66: 产出指标 | E66: 质量指标 | F66: 涉密项目 | G66: ＝ | H66: 100 | I66: % | J66: 20 | K66: 51.00
A67: 行政政法科 | B67: 重庆市綦江区专用通信服务中心 | C67: *涉密项目* | D67: 产出指标 | E67: 时效指标 | F67: 涉密项目 | G67: ＝ | H67: 100 | I67: % | J67: 20 | K67: 51.00
A68: 行政政法科 | B68: 重庆市綦江区专用通信服务中心 | C68: *涉密项目* | D68: 效益指标 | E68: 社会效益指标 | F68: 涉密项目 | G68: ＝ | H68: 100 | I68: % | J68: 20 | K68: 51.00
A69: 行政政法科 | B69: 重庆市綦江区专用通信服务中心 | C69: *涉密项目* | D69: 满意度指标 | E69: 满意度指标 | F69: 涉密项目 | G69: ＝ | H69: 100 | I69: % | J69: 10 | K69: 51.00
A70: 行政政法科 | B70: 重庆市綦江区专用通信服务中心 | C70: *涉密项目* | D70: 产出指标 | E70: 数量指标 | F70: 涉密项目 | G70: ＝ | H70: 100 | I70: % | J70: 20 | K70: 50.00
A71: 行政政法科 | B71: 重庆市綦江区专用通信服务中心 | C71: *涉密项目* | D71: 产出指标 | E71: 质量指标 | F71: 涉密项目 | G71: ＝ | H71: 100 | I71: % | J71: 20 | K71: 50.00
A72: 行政政法科 | B72: 重庆市綦江区专用通信服务中心 | C72: *涉密项目* | D72: 产出指标 | E72: 时效指标 | F72: 涉密项目 | G72: ＝ | H72: 100 | I72: % | J72: 20 | K72: 50.00
A73: 行政政法科 | B73: 重庆市綦江区专用通信服务中心 | C73: *涉密项目* | D73: 效益指标 | E73: 社会效益指标 | F73: 涉密项目 | G73: ＝ | H73: 100 | I73: % | J73: 20 | K73: 50.00
A74: 行政政法科 | B74: 重庆市綦江区专用通信服务中心 | C74: *涉密项目* | D74: 满意度指标 | E74: 满意度指标 | F74: 涉密项目 | G74: ＝ | H74: 100 | I74: % | J74: 10 | K74: 50.00
A75: 行政政法科 | B75: 重庆市綦江区人民代表大会常务委员会办公室（本级） | C75: 人代会会议费（预安排） | D75: 产出指标 | E75: 数量指标 | F75: 召开次数 | G75: ≥ | H75: 1 | I75: 次 | J75: 40 | K75: 71.02
A76: 行政政法科 | B76: 重庆市綦江区人民代表大会常务委员会办公室（本级） | C76: 人代会会议费（预安排） | D76: 效益指标 | E76: 社会效益指标 | F76: 建议办结率 | G76: ≥ | H76: 90 | I76: % | J76: 20 | K76: 71.02
A77: 行政政法科 | B77: 重庆市綦江区人民代表大会常务委员会办公室（本级） | C77: 人代会会议费（预安排） | D77: 效益指标 | E77: 社会效益指标 | F77: 提出建议数 | G77: ≥ | H77: 100 | I77: % | J77: 20 | K77: 71.02
A78: 行政政法科 | B78: 重庆市綦江区人民代表大会常务委员会办公室（本级） | C78: 人代会会议费（预安排） | D78: 满意度指标 | E78: 服务对象满意度指标 | F78: 满意度 | G78: ≥ | H78: 90 | I78: % | J78: 10 | K78: 71.02
A79: 行政政法科 | B79: 重庆市綦江区人民代表大会常务委员会办公室（本级） | C79: 人大监督专项经费 | D79: 产出指标 | E79: 质量指标 | F79: 会议次数 | G79: ≥ | H79: 5 | I79: 次 | J79: 40 | K79: 53.00
A80: 行政政法科 | B80: 重庆市綦江区人民代表大会常务委员会办公室（本级） | C80: 人大监督专项经费 | D80: 效益指标 | E80: 社会效益指标 | F80: 交办信访件 | G80: ≥ | H80: 100 | I80: 件 | J80: 20 | K80: 53.00
A81: 行政政法科 | B81: 重庆市綦江区人民代表大会常务委员会办公室（本级） | C81: 人大监督专项经费 | D81: 效益指标 | E81: 社会效益指标 | F81: 系统故障率 | G81: ≤ | H81: 10 | I81: % | J81: 20 | K81: 53.00
A82: 行政政法科 | B82: 重庆市綦江区人民代表大会常务委员会办公室（本级） | C82: 人大监督专项经费 | D82: 满意度指标 | E82: 服务对象满意度指标 | F82: 满意度 | G82: ≥ | H82: 90 | I82: % | J82: 10 | K82: 53.00
A83: 行政政法科 | B83: 重庆市綦江区人民代表大会常务委员会办公室（本级） | C83: 常委会、主任会、镇街人大联席会会议专项经费 | D83: 产出指标 | E83: 数量指标 | F83: 常委会次数 | G83: ≥ | H83: 6 | I83: 次 | J83: 40 | K83: 27.55
A84: 行政政法科 | B84: 重庆市綦江区人民代表大会常务委员会办公室（本级） | C84: 常委会、主任会、镇街人大联席会会议专项经费 | D84: 效益指标 | E84: 社会效益指标 | F84: 督办重点项目 | G84: ≥ | H84: 10 | I84: 件 | J84: 40 | K84: 27.55
A85: 行政政法科 | B85: 重庆市綦江区人民代表大会常务委员会办公室（本级） | C85: 常委会、主任会、镇街人大联席会会议专项经费 | D85: 满意度指标 | E85: 服务对象满意度指标 | F85: 满意度 | G85: ≥ | H85: 90 | I85: % | J85: 10 | K85: 27.55
A86: 行政政法科 | B86: 重庆市綦江区人民代表大会常务委员会办公室（本级） | C86: 代表履职联络组专项 | D86: 产出指标 | E86: 数量指标 | F86: 开展调研 | G86: ≥ | H86: 20 | I86: 次 | J86: 40 | K86: 248.70
A87: 行政政法科 | B87: 重庆市綦江区人民代表大会常务委员会办公室（本级） | C87: 代表履职联络组专项 | D87: 效益指标 | E87: 社会效益指标 | F87: 提出建议 | G87: ≥ | H87: 10 | I87: 条 | J87: 20 | K87: 248.70
A88: 行政政法科 | B88: 重庆市綦江区人民代表大会常务委员会办公室（本级） | C88: 代表履职联络组专项 | D88: 满意度指标 | E88: 服务对象满意度指标 | F88: 能够获得公众对人大工作的认可 | G88: ≥ | H88: 90 | I88: % | J88: 10 | K88: 248.70
A89: 行政政法科 | B89: 重庆市綦江区人民代表大会常务委员会办公室（本级） | C89: 代表履职联络组专项 | D89: 成本指标 | E89: 经济成本指标 | F89: 预算指标内完成 | G89: ≥ | H89: 90 | I89: % | J89: 20 | K89: 248.70
A90: 行政政法科 | B90: 重庆市綦江区人民代表大会常务委员会办公室（本级） | C90: 人大代表建议办理专项 | D90: 产出指标 | E90: 数量指标 | F90: 表建议办理成效评估 | G90: ≥ | H90: 1 | I90: 次 | J90: 40 | K90: 40.00
A91: 行政政法科 | B91: 重庆市綦江区人民代表大会常务委员会办公室（本级） | C91: 人大代表建议办理专项 | D91: 效益指标 | E91: 社会效益指标 | F91: 代表建议落实情况 | G91: ≥ | H91: 90 | I91: % | J91: 20 | K91: 40.00
A92: 行政政法科 | B92: 重庆市綦江区人民代表大会常务委员会办公室（本级） | C92: 人大代表建议办理专项 | D92: 满意度指标 | E92: 服务对象满意度指标 | F92: 能够获得公众对人大工作的认可 | G92: ≥ | H92: 90 | I92: % | J92: 10 | K92: 40.00
A93: 行政政法科 | B93: 重庆市綦江区人民代表大会常务委员会办公室（本级） | C93: 人大代表建议办理专项 | D93: 成本指标 | E93: 社会成本指标 | F93: 提升代表建议办理成效 | G93: ≥ | H93: 90 | I93: % | J93: 20 | K93: 40.00
A94: 行政政法科 | B94: 重庆市綦江区人民代表大会常务委员会办公室（本级） | C94: 依法行政专项 | D94: 产出指标 | E94: 质量指标 | F94: 提升代表履职活动能力 | G94: ≥ | H94: 90 | I94: % | J94: 40 | K94: 25.00
A95: 行政政法科 | B95: 重庆市綦江区人民代表大会常务委员会办公室（本级） | C95: 依法行政专项 | D95: 效益指标 | E95: 可持续发展指标 | F95: 人大代表履职活动能力得到提升 | G95: ≥ | H95: 90 | I95: % | J95: 20 | K95: 25.00
A96: 行政政法科 | B96: 重庆市綦江区人民代表大会常务委员会办公室（本级） | C96: 依法行政专项 | D96: 满意度指标 | E96: 服务对象满意度指标 | F96: 能够获得公众对人大工作的认可 | G96: ≥ | H96: 90 | I96: % | J96: 10 | K96: 25.00
A97: 行政政法科 | B97: 重庆市綦江区人民代表大会常务委员会办公室（本级） | C97: 依法行政专项 | D97: 成本指标 | E97: 经济成本指标 | F97: 在预算范围内完成 | G97: ≥ | H97: 90 | I97: % | J97: 20 | K97: 25.00
A98: 行政政法科 | B98: 重庆市綦江区人民代表大会常务委员会办公室（本级） | C98: 市人大代表履职经费 | D98: 产出指标 | E98: 数量指标 | F98: 形成代表建议 | G98: ≥ | H98: 300 | I98: 件 | J98: 40 | K98: 43.50
A99: 行政政法科 | B99: 重庆市綦江区人民代表大会常务委员会办公室（本级） | C99: 市人大代表履职经费 | D99: 效益指标 | E99: 社会效益指标 | F99: 提出代表建议 | G99: ≥ | H99: 300 | I99: 件 | J99: 20 | K99: 43.50
A100: 行政政法科 | B100: 重庆市綦江区人民代表大会常务委员会办公室（本级） | C100: 市人大代表履职经费 | D100: 效益指标 | E100: 可持续发展指标 | F100: 人大代表履职能力普遍提高 | G100: ≥ | H100: 90 | I100: % | J100: 20 | K100: 43.50
A101: 行政政法科 | B101: 重庆市綦江区人民代表大会常务委员会办公室（本级） | C101: 市人大代表履职经费 | D101: 满意度指标 | E101: 服务对象满意度指标 | F101: 能够获得公众对人大工作的认可 | G101: ≥ | H101: 90 | I101: % | J101: 10 | K101: 43.50
A102: 行政政法科 | B102: 重庆市綦江区人民代表大会常务委员会办公室（本级） | C102: 换届工作专项经费 | D102: 产出指标 | E102: 数量指标 | F102: 召开会议 | G102: ≥ | H102: 1 | I102: 次 | J102: 40 | K102: 200.00
A103: 行政政法科 | B103: 重庆市綦江区人民代表大会常务委员会办公室（本级） | C103: 换届工作专项经费 | D103: 效益指标 | E103: 社会效益指标 | F103: 完成换届工作 | G103: ≥ | H103: 100 | I103: % | J103: 30 | K103: 200.00
A104: 行政政法科 | B104: 重庆市綦江区人民代表大会常务委员会办公室（本级） | C104: 换届工作专项经费 | D104: 满意度指标 | E104: 服务对象满意度指标 | F104: 获得公众对人大工作的认可 | G104: ≥ | H104: 90 | I104: % | J104: 10 | K104: 200.00
A105: 行政政法科 | B105: 重庆市綦江区人民代表大会常务委员会办公室（本级） | C105: 换届工作专项经费 | D105: 成本指标 | E105: 经济成本指标 | F105: 预算范围内完成 | G105: ≥ | H105: 90 | I105: % | J105: 10 | K105: 200.00
A106: 行政政法科 | B106: 重庆市綦江区人民代表大会常务委员会办公室（本级） | C106: 人大调研及网络信息运维 | D106: 产出指标 | E106: 数量指标 | F106: 召开会议 | G106: ≥ | H106: 24 | I106: 次 | J106: 40 | K106: 20.00
A107: 行政政法科 | B107: 重庆市綦江区人民代表大会常务委员会办公室（本级） | C107: 人大调研及网络信息运维 | D107: 效益指标 | E107: 可持续发展指标 | F107: 提升人大代表办理建议成效 | G107: ≥ | H107: 80 | I107: % | J107: 20 | K107: 20.00
A108: 行政政法科 | B108: 重庆市綦江区人民代表大会常务委员会办公室（本级） | C108: 人大调研及网络信息运维 | D108: 满意度指标 | E108: 服务对象满意度指标 | F108: 能够提升公众对人大工作的满意度 | G108: ≥ | H108: 90 | I108: % | J108: 10 | K108: 20.00
A109: 行政政法科 | B109: 重庆市綦江区人民代表大会常务委员会办公室（本级） | C109: 人大调研及网络信息运维 | D109: 成本指标 | E109: 经济成本指标 | F109: 预算范围内完成 | G109: ≥ | H109: 100 | I109: % | J109: 20 | K109: 20.00
A110: 行政政法科 | B110: 重庆市綦江区人民政府办公室（本级） | C110: 会务服务 | D110: 产出指标 | E110: 数量指标 | F110: 区政府党组会常务会 | G110: ≥ | H110: 22 | I110: 次 | J110: 20 | K110: 93.52
A111: 行政政法科 | B111: 重庆市綦江区人民政府办公室（本级） | C111: 会务服务 | D111: 产出指标 | E111: 数量指标 | F111: 区政府全体会 | G111: ≥ | H111: 1 | I111: 次 | J111: 10 | K111: 93.52
A112: 行政政法科 | B112: 重庆市綦江区人民政府办公室（本级） | C112: 会务服务 | D112: 产出指标 | E112: 数量指标 | F112: 全区性会议 | G112: ≥ | H112: 40 | I112: 次 | J112: 20 | K112: 93.52
A113: 行政政法科 | B113: 重庆市綦江区人民政府办公室（本级） | C113: 会务服务 | D113: 产出指标 | E113: 数量指标 | F113: 专题会 | G113: ≥ | H113: 800 | I113: 次 | J113: 10 | K113: 93.52
A114: 行政政法科 | B114: 重庆市綦江区人民政府办公室（本级） | C114: 会务服务 | D114: 效益指标 | E114: 可持续发展指标 | F114: 会议数量下降 | G114: 定性 | J114: 20 | K114: 93.52
A115: 行政政法科 | B115: 重庆市綦江区人民政府办公室（本级） | C115: 会务服务 | D115: 满意度指标 | E115: 服务对象满意度指标 | F115: 服务对象满意度 | G115: ≥ | H115: 95 | I115: % | J115: 10 | K115: 93.52
A116: 行政政法科 | B116: 重庆市綦江区人民政府办公室（本级） | C116: 政务督查 | D116: 产出指标 | E116: 数量指标 | F116: “互联网+督查”平台交办问题 | G116: ≥ | H116: 10 | I116: 件 | J116: 20 | K116: 16.00
A117: 行政政法科 | B117: 重庆市綦江区人民政府办公室（本级） | C117: 政务督查 | D117: 产出指标 | E117: 数量指标 | F117: 区政府交办事项督查 | G117: ≥ | H117: 25 | I117: 件 | J117: 20 | K117: 16.00
A118: 行政政法科 | B118: 重庆市綦江区人民政府办公室（本级） | C118: 政务督查 | D118: 产出指标 | E118: 数量指标 | F118: 市级重大项目核查 | G118: ≥ | H118: 3 | I118: 件 | J118: 20 | K118: 16.00
A119: 行政政法科 | B119: 重庆市綦江区人民政府办公室（本级） | C119: 政务督查 | D119: 效益指标 | E119: 可持续发展指标 | F119: 督查完成率 | G119: ≥ | H119: 95 | I119: % | J119: 20 | K119: 16.00
A120: 行政政法科 | B120: 重庆市綦江区人民政府办公室（本级） | C120: 政务督查 | D120: 满意度指标 | E120: 服务对象满意度指标 | F120: 服务对象满意度 | G120: ≥ | H120: 95 | I120: % | J120: 10 | K120: 16.00
A121: 行政政法科 | B121: 重庆市綦江区人民政府办公室（本级） | C121: 信息调研 | D121: 产出指标 | E121: 数量指标 | F121: 调研报告，专题调研 | G121: ≥ | H121: 8 | I121: 次 | J121: 20 | K121: 30.00
A122: 行政政法科 | B122: 重庆市綦江区人民政府办公室（本级） | C122: 信息调研 | D122: 产出指标 | E122: 数量指标 | F122: 上报政务信息 | G122: ≥ | H122: 350 | I122: 篇 | J122: 20 | K122: 30.00
A123: 行政政法科 | B123: 重庆市綦江区人民政府办公室（本级） | C123: 信息调研 | D123: 产出指标 | E123: 数量指标 | F123: 撰写综合材料 | G123: ≥ | H123: 100 | I123: 篇 | J123: 20 | K123: 30.00
A124: 行政政法科 | B124: 重庆市綦江区人民政府办公室（本级） | C124: 信息调研 | D124: 效益指标 | E124: 可持续发展指标 | F124: 向区政府提供决策参考 | G124: ≥ | H124: 5 | I124: 件 | J124: 20 | K124: 30.00
A125: 行政政法科 | B125: 重庆市綦江区人民政府办公室（本级） | C125: 信息调研 | D125: 满意度指标 | E125: 服务对象满意度指标 | F125: 服务对象满意度 | G125: ≥ | H125: 95 | I125: % | J125: 10 | K125: 30.00
A126: 行政政法科 | B126: 重庆市綦江区人民政府办公室（本级） | C126: 政府运转保障 | D126: 产出指标 | E126: 数量指标 | F126: 服务办公室职工人数 | G126: ≥ | H126: 35 | I126: 人 | J126: 20 | K126: 90.57
A127: 行政政法科 | B127: 重庆市綦江区人民政府办公室（本级） | C127: 政府运转保障 | D127: 产出指标 | E127: 数量指标 | F127: 服务区政府领导 | G127: ≥ | H127: 8 | I127: 人 | J127: 20 | K127: 90.57
A128: 行政政法科 | B128: 重庆市綦江区人民政府办公室（本级） | C128: 政府运转保障 | D128: 产出指标 | E128: 数量指标 | F128: 重大项目推进 | G128: ≥ | H128: 40 | I128: 次 | J128: 20 | K128: 90.57
A129: 行政政法科 | B129: 重庆市綦江区人民政府办公室（本级） | C129: 政府运转保障 | D129: 效益指标 | E129: 可持续发展指标 | F129: 政府运转正常 | G129: 定性 | J129: 20 | K129: 90.57
A130: 行政政法科 | B130: 重庆市綦江区人民政府办公室（本级） | C130: 政府运转保障 | D130: 满意度指标 | E130: 服务对象满意度指标 | F130: 服务对象满意度 | G130: ≥ | H130: 95 | I130: % | J130: 10 | K130: 90.57
A131: 行政政法科 | B131: 重庆市綦江区人民政府办公室（本级） | C131: 全区政务公开标准化管理 | D131: 产出指标 | E131: 数量指标 | F131: 政府信息公开全年总数 | G131: ≥ | H131: 10000 | I131: 条 | J131: 20 | K131: 56.21
A132: 行政政法科 | B132: 重庆市綦江区人民政府办公室（本级） | C132: 全区政务公开标准化管理 | D132: 产出指标 | E132: 质量指标 | F132: 政府网站访问量 | G132: ≥ | H132: 300 | I132: 万次 | J132: 20 | K132: 56.21
A133: 行政政法科 | B133: 重庆市綦江区人民政府办公室（本级） | C133: 全区政务公开标准化管理 | D133: 产出指标 | E133: 时效指标 | F133: 信息按期公开率 | G133: ≥ | H133: 98 | I133: % | J133: 20 | K133: 56.21
A134: 行政政法科 | B134: 重庆市綦江区人民政府办公室（本级） | C134: 全区政务公开标准化管理 | D134: 效益指标 | E134: 社会效益指标 | F134: 向公民企业推送政策 | G134: ≥ | H134: 30 | I134: 条 | J134: 20 | K134: 56.21
A135: 行政政法科 | B135: 重庆市綦江区人民政府办公室（本级） | C135: 全区政务公开标准化管理 | D135: 成本指标 | E135: 经济成本指标 | F135: 全年政务公开诉讼量 | G135: ≤ | H135: 5 | I135: 件 | J135: 10 | K135: 56.21
A136: 行政政法科 | B136: 重庆市綦江区人民政府办公室（本级） | C136: 招商成效考核经费 | D136: 产出指标 | E136: 数量指标 | F136: 签约项目 | G136: ≥ | H136: 160 | I136: 个 | J136: 20 | K136: 150.00
A137: 行政政法科 | B137: 重庆市綦江区人民政府办公室（本级） | C137: 招商成效考核经费 | D137: 产出指标 | E137: 数量指标 | F137: 完成市区目标任务 | G137: ≥ | H137: 100 | I137: % | J137: 20 | K137: 150.00
A138: 行政政法科 | B138: 重庆市綦江区人民政府办公室（本级） | C138: 招商成效考核经费 | D138: 产出指标 | E138: 质量指标 | F138: 提升区财政税收 | G138: ≥ | H138: 1 | I138: % | J138: 20 | K138: 150.00
A139: 行政政法科 | B139: 重庆市綦江区人民政府办公室（本级） | C139: 招商成效考核经费 | D139: 效益指标 | E139: 可持续影响指标 | F139: 进一步宣传綦江 | G139: 定性 | J139: 20 | K139: 150.00
A140: 行政政法科 | B140: 重庆市綦江区人民政府办公室（本级） | C140: 招商成效考核经费 | D140: 满意度指标 | E140: 满意度指标 | F140: 服务对象满意度指标 | G140: ≥ | H140: 95 | I140: % | J140: 10 | K140: 150.00
A141: 行政政法科 | B141: 重庆市綦江区人民政府办公室（本级） | C141: 招商引资工作经费 | D141: 产出指标 | E141: 数量指标 | F141: 签约项目 | G141: ≥ | H141: 30 | I141: 个 | J141: 20 | K141: 60.00
A142: 行政政法科 | B142: 重庆市綦江区人民政府办公室（本级） | C142: 招商引资工作经费 | D142: 产出指标 | E142: 数量指标 | F142: 正式合同金额 | G142: ≥ | H142: 330 | I142: 亿元 | J142: 20 | K142: 60.00
A143: 行政政法科 | B143: 重庆市綦江区人民政府办公室（本级） | C143: 招商引资工作经费 | D143: 效益指标 | E143: 经济效益指标 | F143: 到位资金 | G143: ≥ | H143: 80 | I143: 亿元 | J143: 20 | K143: 60.00
A144: 行政政法科 | B144: 重庆市綦江区人民政府办公室（本级） | C144: 招商引资工作经费 | D144: 效益指标 | E144: 社会效益指标 | F144: 开工率 | G144: ≥ | H144: 55 | I144: % | J144: 20 | K144: 60.00
A145: 行政政法科 | B145: 重庆市綦江区人民政府办公室（本级） | C145: 招商引资工作经费 | D145: 满意度指标 | E145: 服务对象满意度指标 | F145: 企业满意度 | G145: ≥ | H145: 90 | I145: % | J145: 10 | K145: 60.00
A146: 行政政法科 | B146: 重庆市綦江区人民政府办公室（本级） | C146: 西部国际投资贸易洽谈会布展 | D146: 产出指标 | E146: 数量指标 | F146: 参展商 | G146: ≥ | H146: 10 | I146: 家 | J146: 20 | K146: 80.00
A147: 行政政法科 | B147: 重庆市綦江区人民政府办公室（本级） | C147: 西部国际投资贸易洽谈会布展 | D147: 产出指标 | E147: 数量指标 | F147: 举办或参加产业发展论坛 | G147: ≥ | H147: 1 | I147: 场次 | J147: 20 | K147: 80.00
A148: 行政政法科 | B148: 重庆市綦江区人民政府办公室（本级） | C148: 西部国际投资贸易洽谈会布展 | D148: 效益指标 | E148: 社会效益指标 | F148: 参展展品 | G148: ≥ | H148: 20 | I148: 种 | J148: 20 | K148: 80.00
A149: 行政政法科 | B149: 重庆市綦江区人民政府办公室（本级） | C149: 西部国际投资贸易洽谈会布展 | D149: 效益指标 | E149: 可持续发展指标 | F149: 签约重大项目 | G149: ≥ | H149: 1 | I149: 个 | J149: 20 | K149: 80.00
A150: 行政政法科 | B150: 重庆市綦江区人民政府办公室（本级） | C150: 西部国际投资贸易洽谈会布展 | D150: 满意度指标 | E150: 服务对象满意度指标 | F150: 服务对象满意度 | G150: ≥ | H150: 95 | I150: % | J150: 10 | K150: 80.00
A151: 行政政法科 | B151: 重庆市綦江区人民政府办公室（本级） | C151: 真抓实干激励 | D151: 产出指标 | E151: 数量指标 | F151: 工作任务完成率 | G151: ＝ | H151: 100 | I151: % | J151: 20 | K151: 30.00
A152: 行政政法科 | B152: 重庆市綦江区人民政府办公室（本级） | C152: 真抓实干激励 | D152: 产出指标 | E152: 质量指标 | F152: 考核指标完成率 | G152: ≥ | H152: 99 | I152: % | J152: 20 | K152: 30.00
A153: 行政政法科 | B153: 重庆市綦江区人民政府办公室（本级） | C153: 真抓实干激励 | D153: 产出指标 | E153: 时效指标 | F153: 规定时间内完成 | G153: ＝ | H153: 100 | I153: % | J153: 20 | K153: 30.00
A154: 行政政法科 | B154: 重庆市綦江区人民政府办公室（本级） | C154: 真抓实干激励 | D154: 效益指标 | E154: 可持续发展指标 | F154: 营商环境好 | G154: 定性 | J154: 20 | K154: 30.00
A155: 行政政法科 | B155: 重庆市綦江区人民政府办公室（本级） | C155: 真抓实干激励 | D155: 满意度指标 | E155: 服务对象满意度指标 | F155: 服务对象满意度 | G155: ≥ | H155: 95 | I155: % | J155: 10 | K155: 30.00
A156: 行政政法科 | B156: 重庆市綦江区人民政府办公室（本级） | C156: 西部陆海新通道专题招商 | D156: 产出指标 | E156: 数量指标 | F156: 人数 | G156: ≤ | H156: 7 | I156: 人 | J156: 20 | K156: 35.00
A157: 行政政法科 | B157: 重庆市綦江区人民政府办公室（本级） | C157: 西部陆海新通道专题招商 | D157: 产出指标 | E157: 数量指标 | F157: 组团 | G157: ＝ | H157: 1 | I157: 个 | J157: 20 | K157: 35.00
A158: 行政政法科 | B158: 重庆市綦江区人民政府办公室（本级） | C158: 西部陆海新通道专题招商 | D158: 产出指标 | E158: 效果指标 | F158: 洽谈会 | G158: ≥ | H158: 2 | I158: 场 | J158: 20 | K158: 35.00
A159: 行政政法科 | B159: 重庆市綦江区人民政府办公室（本级） | C159: 西部陆海新通道专题招商 | D159: 效益指标 | E159: 经济效益指标 | F159: 签署合同 | G159: ≥ | H159: 2 | I159: 个 | J159: 20 | K159: 35.00
A160: 行政政法科 | B160: 重庆市綦江区人民政府办公室（本级） | C160: 西部陆海新通道专题招商 | D160: 满意度指标 | E160: 服务对象满意度指标 | F160: 服务对象满意度 | G160: ≥ | H160: 95 | I160: % | J160: 10 | K160: 35.00
A161: 行政政法科 | B161: 中国人民政治协商会议重庆市綦江区委员会办公室（本级） | C161: 政协委员履职活动 | D161: 产出指标 | E161: 数量指标 | F161: 调教调研报告、社情民意 | G161: ≥ | H161: 50 | I161: 篇（部） | J161: 25 | K161: 217.90
A162: 行政政法科 | B162: 中国人民政治协商会议重庆市綦江区委员会办公室（本级） | C162: 政协委员履职活动 | D162: 产出指标 | E162: 数量指标 | F162: 调研视察天数 | G162: ≥ | H162: 30 | I162: 天 | J162: 25 | K162: 217.90
A163: 行政政法科 | B163: 中国人民政治协商会议重庆市綦江区委员会办公室（本级） | C163: 政协委员履职活动 | D163: 效益指标 | E163: 可持续发展指标 | F163: 成果转化个人 | G163: ≥ | H163: 20 | I163: 个 | J163: 20 | K163: 217.90
A164: 行政政法科 | B164: 中国人民政治协商会议重庆市綦江区委员会办公室（本级） | C164: 政协委员履职活动 | D164: 满意度指标 | E164: 满意度指标 | F164: 满意度 | G164: ≥ | H164: 95 | I164: % | J164: 10 | K164: 217.90
A165: 行政政法科 | B165: 中国人民政治协商会议重庆市綦江区委员会办公室（本级） | C165: 政协委员履职活动 | D165: 成本指标 | E165: 经济成本指标 | F165: 总额控制 | G165: ≤ | H165: 73 | I165: 万元 | J165: 10 | K165: 217.90
A166: 行政政法科 | B166: 中国人民政治协商会议重庆市綦江区委员会办公室（本级） | C166: 政协云及网络平台运维 | D166: 产出指标 | E166: 数量指标 | F166: 平台、网络正常运行天数 | G166: ≥ | H166: 300 | I166: 天 | J166: 25 | K166: 20.00
A167: 行政政法科 | B167: 中国人民政治协商会议重庆市綦江区委员会办公室（本级） | C167: 政协云及网络平台运维 | D167: 产出指标 | E167: 数量指标 | F167: 宣传策划篇数 | G167: ≥ | H167: 10 | I167: 篇（部） | J167: 25 | K167: 20.00
A168: 行政政法科 | B168: 中国人民政治协商会议重庆市綦江区委员会办公室（本级） | C168: 政协云及网络平台运维 | D168: 效益指标 | E168: 社会效益指标 | F168: 门户网站等阅读量 | G168: ≥ | H168: 10000 | I168: 人次 | J168: 20 | K168: 20.00
A169: 行政政法科 | B169: 中国人民政治协商会议重庆市綦江区委员会办公室（本级） | C169: 政协云及网络平台运维 | D169: 满意度指标 | E169: 读者满意度指标 | F169: 满意度 | G169: ≥ | H169: 95 | I169: % | J169: 10 | K169: 20.00
A170: 行政政法科 | B170: 中国人民政治协商会议重庆市綦江区委员会办公室（本级） | C170: 政协云及网络平台运维 | D170: 成本指标 | E170: 经济成本指标 | F170: 总额控制 | G170: ≤ | H170: 58.6 | I170: 万 | J170: 10 | K170: 20.00
A171: 行政政法科 | B171: 中国人民政治协商会议重庆市綦江区委员会办公室（本级） | C171: 常委会及主席会会务费 | D171: 产出指标 | E171: 数量指标 | F171: 常委会会议次数超过4次 | G171: ≥ | H171: 4 | I171: 次 | J171: 30 | K171: 20.50
A172: 行政政法科 | B172: 中国人民政治协商会议重庆市綦江区委员会办公室（本级） | C172: 常委会及主席会会务费 | D172: 产出指标 | E172: 数量指标 | F172: 全会召开次数超过1次 | G172: ≥ | H172: 1 | I172: 次 | J172: 30 | K172: 20.50
A173: 行政政法科 | B173: 中国人民政治协商会议重庆市綦江区委员会办公室（本级） | C173: 常委会及主席会会务费 | D173: 效益指标 | E173: 可持续影响指标 | F173: 社情民意转换率 | G173: ≥ | H173: 60 | I173: % | J173: 20 | K173: 20.50
A174: 行政政法科 | B174: 中国人民政治协商会议重庆市綦江区委员会办公室（本级） | C174: 常委会及主席会会务费 | D174: 满意度指标 | E174: 满意度指标 | F174: 委员满意度 | G174: ≥ | H174: 90 | I174: % | J174: 10 | K174: 20.50
A175: 行政政法科 | B175: 中国人民政治协商会议重庆市綦江区委员会办公室（本级） | C175: 渝事好商量专项 | D175: 产出指标 | E175: 数量指标 | F175: 开展次数 | G175: ≥ | H175: 25 | I175: 个 | J175: 30 | K175: 10.00
A176: 行政政法科 | B176: 中国人民政治协商会议重庆市綦江区委员会办公室（本级） | C176: 渝事好商量专项 | D176: 产出指标 | E176: 数量指标 | F176: 项目落地 | G176: ≥ | H176: 10 | I176: 个 | J176: 30 | K176: 10.00
A177: 行政政法科 | B177: 中国人民政治协商会议重庆市綦江区委员会办公室（本级） | C177: 渝事好商量专项 | D177: 效益指标 | E177: 社会效益指标 | F177: 达到预期目标 | G177: ≥ | H177: 8 | I177: 个 | J177: 20 | K177: 10.00
A178: 行政政法科 | B178: 中国人民政治协商会议重庆市綦江区委员会办公室（本级） | C178: 渝事好商量专项 | D178: 满意度指标 | E178: 满意度指标 | F178: 受益群众满意度 | G178: ≥ | H178: 95 | I178: % | J178: 10 | K178: 10.00
A179: 行政政法科 | B179: 中国人民政治协商会议重庆市綦江区委员会办公室（本级） | C179: 政治协商专项 | D179: 产出指标 | E179: 数量指标 | F179: 成果转换率 | G179: ≥ | H179: 5 | I179: 个 | J179: 30 | K179: 40.00
A180: 行政政法科 | B180: 中国人民政治协商会议重庆市綦江区委员会办公室（本级） | C180: 政治协商专项 | D180: 产出指标 | E180: 数量指标 | F180: 开展协商次数 | G180: ≥ | H180: 20 | I180: 次 | J180: 30 | K180: 40.00
A181: 行政政法科 | B181: 中国人民政治协商会议重庆市綦江区委员会办公室（本级） | C181: 政治协商专项 | D181: 效益指标 | E181: 可持续发展指标 | F181: 推动地域经济发展 | G181: ≥ | H181: 3 | I181: 个 | J181: 20 | K181: 40.00
A182: 行政政法科 | B182: 中国人民政治协商会议重庆市綦江区委员会办公室（本级） | C182: 政治协商专项 | D182: 满意度指标 | E182: 满意度指标 | F182: 群众满意度 | G182: ≥ | H182: 95 | I182: % | J182: 10 | K182: 40.00
A183: 行政政法科 | B183: 中国人民政治协商会议重庆市綦江区委员会办公室（本级） | C183: 政协委员议案办理专项 | D183: 产出指标 | E183: 数量指标 | F183: 办理结束结束数 | G183: ≥ | H183: 300 | I183: 件 | J183: 30 | K183: 40.00
A184: 行政政法科 | B184: 中国人民政治协商会议重庆市綦江区委员会办公室（本级） | C184: 政协委员议案办理专项 | D184: 产出指标 | E184: 数量指标 | F184: 交办议案办理数 | G184: ≥ | H184: 370 | I184: 件 | J184: 30 | K184: 40.00
A185: 行政政法科 | B185: 中国人民政治协商会议重庆市綦江区委员会办公室（本级） | C185: 政协委员议案办理专项 | D185: 效益指标 | E185: 经济效益指标 | F185: 推动项目落地 | G185: ≥ | H185: 10 | I185: 件 | J185: 20 | K185: 40.00
A186: 行政政法科 | B186: 中国人民政治协商会议重庆市綦江区委员会办公室（本级） | C186: 政协委员议案办理专项 | D186: 满意度指标 | E186: 满意度指标 | F186: 群众满意度 | G186: ≥ | H186: 95 | I186: % | J186: 10 | K186: 40.00
A187: 行政政法科 | B187: 中国人民政治协商会议重庆市綦江区委员会办公室（本级） | C187: 市政协委员履职经费 | D187: 产出指标 | E187: 数量指标 | F187: 开展集中视察活动 | G187: ≥ | H187: 3 | I187: 次 | J187: 30 | K187: 12.00
A188: 行政政法科 | B188: 中国人民政治协商会议重庆市綦江区委员会办公室（本级） | C188: 市政协委员履职经费 | D188: 产出指标 | E188: 数量指标 | F188: 市政协全会提交议案数 | G188: ≥ | H188: 10 | I188: 件 | J188: 30 | K188: 12.00
A189: 行政政法科 | B189: 中国人民政治协商会议重庆市綦江区委员会办公室（本级） | C189: 市政协委员履职经费 | D189: 效益指标 | E189: 可持续发展指标 | F189: 议案成果转换率 | G189: ≥ | H189: 50 | I189: % | J189: 20 | K189: 12.00
A190: 行政政法科 | B190: 中国人民政治协商会议重庆市綦江区委员会办公室（本级） | C190: 市政协委员履职经费 | D190: 满意度指标 | E190: 满意度指标 | F190: 群众满意度 | G190: ≥ | H190: 95 | I190: % | J190: 10 | K190: 12.00
A191: 行政政法科 | B191: 中国人民政治协商会议重庆市綦江区委员会办公室（本级） | C191: 区政协文史馆（书画院）运行维护费 | D191: 产出指标 | E191: 数量指标 | F191: 接待人次 | G191: ≥ | H191: 10000 | I191: 人/次 | J191: 30 | K191: 35.00
A192: 行政政法科 | B192: 中国人民政治协商会议重庆市綦江区委员会办公室（本级） | C192: 区政协文史馆（书画院）运行维护费 | D192: 产出指标 | E192: 数量指标 | F192: 正常运行天数 | G192: ≥ | H192: 300 | I192: 天 | J192: 30 | K192: 35.00
A193: 行政政法科 | B193: 中国人民政治协商会议重庆市綦江区委员会办公室（本级） | C193: 区政协文史馆（书画院）运行维护费 | D193: 效益指标 | E193: 可持续发展指标 | F193: 推动地方文化事业发展提升 | G193: ≥ | H193: 5 | I193: % | J193: 20 | K193: 35.00
A194: 行政政法科 | B194: 中国人民政治协商会议重庆市綦江区委员会办公室（本级） | C194: 区政协文史馆（书画院）运行维护费 | D194: 满意度指标 | E194: 满意度指标 | F194: 观众满意度 | G194: ≥ | H194: 95 | I194: % | J194: 10 | K194: 35.00
A195: 行政政法科 | B195: 中国人民政治协商会议重庆市綦江区委员会办公室（本级） | C195: 换届工作专项经费 | D195: 产出指标 | E195: 数量指标 | F195: 完成政协常委71人的考察、协商、选举等 | G195: ≥ | H195: 60 | I195: 人数 | J195: 30 | K195: 63.50
A196: 行政政法科 | B196: 中国人民政治协商会议重庆市綦江区委员会办公室（本级） | C196: 换届工作专项经费 | D196: 产出指标 | E196: 数量指标 | F196: 完成政协委员365人的协商，预留10名 | G196: ≥ | H196: 365 | I196: 人数 | J196: 30 | K196: 63.50
A197: 行政政法科 | B197: 中国人民政治协商会议重庆市綦江区委员会办公室（本级） | C197: 换届工作专项经费 | D197: 效益指标 | E197: 社会效益指标 | F197: 确定参加四届政协一次会议的人选 | G197: ≥ | H197: 90 | I197: % | J197: 20 | K197: 63.50
A198: 行政政法科 | B198: 中国人民政治协商会议重庆市綦江区委员会办公室（本级） | C198: 换届工作专项经费 | D198: 满意度指标 | E198: 满意度指标 | F198: 代表具有可代表性比例 | G198: ≥ | H198: 90 | I198: % | J198: 10 | K198: 63.50
A199: 行政政法科 | B199: 中国人民政治协商会议重庆市綦江区委员会办公室（本级） | C199: 凝聚共识共画同心圆专项活动 | D199: 产出指标 | E199: 数量指标 | F199: 全年召开茶话会一次 | G199: ≥ | H199: 1 | I199: 次 | J199: 30 | K199: 20.00
A200: 行政政法科 | B200: 中国人民政治协商会议重庆市綦江区委员会办公室（本级） | C200: 凝聚共识共画同心圆专项活动 | D200: 产出指标 | E200: 数量指标 | F200: 全年召开智库专家座谈会4次 | G200: ≥ | H200: 4 | I200: 次 | J200: 30 | K200: 20.00
A201: 行政政法科 | B201: 中国人民政治协商会议重庆市綦江区委员会办公室（本级） | C201: 凝聚共识共画同心圆专项活动 | D201: 效益指标 | E201: 可持续发展指标 | F201: 成果转换率 | G201: ≥ | H201: 70 | I201: % | J201: 20 | K201: 20.00
... 8232 more rows
